Department Family,Entity,Date,Expense Type,Expense Area,Supplier,Transaction Number,AP Amount,Description,Supplier Postcode
Department of Health,NHS Sheffield CCG,6/30/2020,C&M-PMS Contract Value,PRC DELEGATED CO-COMMISSIONING,ABBEY LANE SURGERY,32673529,"23,653.91",PRC DELEGATED CO-COMMISSIONING,S8 0BJ
Department of Health,NHS Sheffield CCG,6/30/2020,C&M-PMS DES Minor Surgery,PRC DELEGATED CO-COMMISSIONING,ABBEY LANE SURGERY,32673529,320.00,PRC DELEGATED CO-COMMISSIONING,S8 0BJ
Department of Health,NHS Sheffield CCG,6/30/2020,C&M-PMS PCN DES Participation,PRC DELEGATED CO-COMMISSIONING,ABBEY LANE SURGERY,32673529,449.67,PRC DELEGATED CO-COMMISSIONING,S8 0BJ
Department of Health,NHS Sheffield CCG,6/30/2020,C&M-PMS Prem Notional Rent,PRC DELEGATED CO-COMMISSIONING,ABBEY LANE SURGERY,32673529,"2,122.92",PRC DELEGATED CO-COMMISSIONING,S8 0BJ
Department of Health,NHS Sheffield CCG,6/30/2020,C&M-PMS Prem Rates,PRC DELEGATED CO-COMMISSIONING,ABBEY LANE SURGERY,32673529,"2,523.50",PRC DELEGATED CO-COMMISSIONING,S8 0BJ
Department of Health,NHS Sheffield CCG,6/30/2020,C&M-PMS Prem Water Rates,PRC DELEGATED CO-COMMISSIONING,ABBEY LANE SURGERY,32673529,217.86,PRC DELEGATED CO-COMMISSIONING,S8 0BJ
Department of Health,NHS Sheffield CCG,6/30/2020,C&M-PMS QOF Achievement,PRC DELEGATED CO-COMMISSIONING,ABBEY LANE SURGERY,32673529,"8,097.08",PRC DELEGATED CO-COMMISSIONING,S8 0BJ
Department of Health,NHS Sheffield CCG,6/30/2020,C&M-PMS QOF Aspiration,PRC DELEGATED CO-COMMISSIONING,ABBEY LANE SURGERY,32673529,"7,320.62",PRC DELEGATED CO-COMMISSIONING,S8 0BJ
Department of Health,NHS Sheffield CCG,6/30/2020,Cont Care-Physical Disab (65+),CHC ADULT FULLY FUNDED,ABBEYCARE NURSING,32621898,"54,600.60",CHC ADULT FULLY FUNDED,S35 9YY
Department of Health,NHS Sheffield CCG,6/30/2020,Cont Care-Physical Disab (65+),CHC ADULT FULLY FUNDED,ABBEYCARE NURSING,32699428,"56,420.62",CHC ADULT FULLY FUNDED,S35 9YY
Department of Health,NHS Sheffield CCG,6/30/2020,C&M-PMS Contract Value,PRC DELEGATED CO-COMMISSIONING,AVENUE MEDICAL CENTRE SHEFFIELD,32673526,-763.45,PRC DELEGATED CO-COMMISSIONING,S8 7FH
Department of Health,NHS Sheffield CCG,6/30/2020,C&M-PMS GP Statutory Levy,PRC DELEGATED CO-COMMISSIONING,AVENUE MEDICAL CENTRE SHEFFIELD,32673526,-247.77,PRC DELEGATED CO-COMMISSIONING,S8 7FH
Department of Health,NHS Sheffield CCG,6/30/2020,C&M-PMS Out of Hours Opt Outs,PRC DELEGATED CO-COMMISSIONING,AVENUE MEDICAL CENTRE SHEFFIELD,32673526,"-2,581.00",PRC DELEGATED CO-COMMISSIONING,S8 7FH
Department of Health,NHS Sheffield CCG,6/30/2020,C&M-PMS QOF Aspiration,PRC DELEGATED CO-COMMISSIONING,AVENUE MEDICAL CENTRE SHEFFIELD,32673526,"-11,695.44",PRC DELEGATED CO-COMMISSIONING,S8 7FH
Department of Health,NHS Sheffield CCG,6/30/2020,C&M-PMS Voluntary Levy,PRC DELEGATED CO-COMMISSIONING,AVENUE MEDICAL CENTRE SHEFFIELD,32673526,-35.40,PRC DELEGATED CO-COMMISSIONING,S8 7FH
Department of Health,NHS Sheffield CCG,6/30/2020,C&M-PMS Contract Value,PRC DELEGATED CO-COMMISSIONING,AVENUE MEDICAL CENTRE SHEFFIELD,32673527,"54,503.08",PRC DELEGATED CO-COMMISSIONING,S8 7FH
Department of Health,NHS Sheffield CCG,6/30/2020,C&M-PMS DES Learn Dsblty Hlth Chk,PRC DELEGATED CO-COMMISSIONING,AVENUE MEDICAL CENTRE SHEFFIELD,32673527,"1,260.00",PRC DELEGATED CO-COMMISSIONING,S8 7FH
Department of Health,NHS Sheffield CCG,6/30/2020,C&M-PMS DES Minor Surgery,PRC DELEGATED CO-COMMISSIONING,AVENUE MEDICAL CENTRE SHEFFIELD,32673527,"1,505.00",PRC DELEGATED CO-COMMISSIONING,S8 7FH
Department of Health,NHS Sheffield CCG,6/30/2020,C&M-PMS GP Statutory Levy,PRC DELEGATED CO-COMMISSIONING,AVENUE MEDICAL CENTRE SHEFFIELD,32673527,0.91,PRC DELEGATED CO-COMMISSIONING,S8 7FH
Department of Health,NHS Sheffield CCG,6/30/2020,C&M-PMS Out of Hours Opt Outs,PRC DELEGATED CO-COMMISSIONING,AVENUE MEDICAL CENTRE SHEFFIELD,32673527,36.24,PRC DELEGATED CO-COMMISSIONING,S8 7FH
Department of Health,NHS Sheffield CCG,6/30/2020,C&M-PMS PCN DES Participation,PRC DELEGATED CO-COMMISSIONING,AVENUE MEDICAL CENTRE SHEFFIELD,32673527,"1,049.66",PRC DELEGATED CO-COMMISSIONING,S8 7FH
Department of Health,NHS Sheffield CCG,6/30/2020,C&M-PMS PCO Other,PRC DELEGATED CO-COMMISSIONING,AVENUE MEDICAL CENTRE SHEFFIELD,32673527,"1,368.30",PRC DELEGATED CO-COMMISSIONING,S8 7FH
Department of Health,NHS Sheffield CCG,6/30/2020,C&M-PMS Prem Notional Rent,PRC DELEGATED CO-COMMISSIONING,AVENUE MEDICAL CENTRE SHEFFIELD,32673527,"5,546.67",PRC DELEGATED CO-COMMISSIONING,S8 7FH
Department of Health,NHS Sheffield CCG,6/30/2020,C&M-PMS Prem Rates,PRC DELEGATED CO-COMMISSIONING,AVENUE MEDICAL CENTRE SHEFFIELD,32673527,"1,285.00",PRC DELEGATED CO-COMMISSIONING,S8 7FH
Department of Health,NHS Sheffield CCG,6/30/2020,C&M-PMS QOF Achievement,PRC DELEGATED CO-COMMISSIONING,AVENUE MEDICAL CENTRE SHEFFIELD,32673527,"15,285.42",PRC DELEGATED CO-COMMISSIONING,S8 7FH
Department of Health,NHS Sheffield CCG,6/30/2020,C&M-PMS QOF Aspiration,PRC DELEGATED CO-COMMISSIONING,AVENUE MEDICAL CENTRE SHEFFIELD,32673527,"15,742.02",PRC DELEGATED CO-COMMISSIONING,S8 7FH
Department of Health,NHS Sheffield CCG,6/30/2020,Hcare Srv Rec Fdtn Trust-Contract Baseline,ACUTE COMMISSIONING,BARNSLEY HOSPITAL NHS FOUNDATION TRUST,32681785,"131,016.71",ACUTE COMMISSIONING,S75 2EP
Department of Health,NHS Sheffield CCG,6/30/2020,C&M-PMS Contract Value,PRC DELEGATED CO-COMMISSIONING,BARNSLEY ROAD SURGERY,32673531,"20,816.75",PRC DELEGATED CO-COMMISSIONING,S5 0QJ
Department of Health,NHS Sheffield CCG,6/30/2020,C&M-PMS GP Statutory Levy,PRC DELEGATED CO-COMMISSIONING,BARNSLEY ROAD SURGERY,32673531,0.32,PRC DELEGATED CO-COMMISSIONING,S5 0QJ
Department of Health,NHS Sheffield CCG,6/30/2020,C&M-PMS PCN DES Participation,PRC DELEGATED CO-COMMISSIONING,BARNSLEY ROAD SURGERY,32673531,393.76,PRC DELEGATED CO-COMMISSIONING,S5 0QJ
Department of Health,NHS Sheffield CCG,6/30/2020,C&M-PMS Prem Notional Rent,PRC DELEGATED CO-COMMISSIONING,BARNSLEY ROAD SURGERY,32673531,"2,652.17",PRC DELEGATED CO-COMMISSIONING,S5 0QJ
Department of Health,NHS Sheffield CCG,6/30/2020,C&M-PMS QOF Achievement,PRC DELEGATED CO-COMMISSIONING,BARNSLEY ROAD SURGERY,32673531,"10,384.91",PRC DELEGATED CO-COMMISSIONING,S5 0QJ
Department of Health,NHS Sheffield CCG,6/30/2020,C&M-PMS QOF Aspiration,PRC DELEGATED CO-COMMISSIONING,BARNSLEY ROAD SURGERY,32673531,"6,867.42",PRC DELEGATED CO-COMMISSIONING,S5 0QJ
Department of Health,NHS Sheffield CCG,6/30/2020,C&M-GMS GP Statutory Levy,PRC DELEGATED CO-COMMISSIONING,BASLOW ROAD & SHOREHAM STREET SURGERIES,32885256,-437.78,PRC DELEGATED CO-COMMISSIONING,S17 4DR
Department of Health,NHS Sheffield CCG,6/30/2020,C&M-GMS QOF Aspiration,PRC DELEGATED CO-COMMISSIONING,BASLOW ROAD & SHOREHAM STREET SURGERIES,32885256,"-20,557.92",PRC DELEGATED CO-COMMISSIONING,S17 4DR
Department of Health,NHS Sheffield CCG,6/30/2020,C&M-GMS DES Learn Dsblty Hlth Chk,PRC DELEGATED CO-COMMISSIONING,BASLOW ROAD & SHOREHAM STREET SURGERIES,32885257,560.00,PRC DELEGATED CO-COMMISSIONING,S17 4DR
Department of Health,NHS Sheffield CCG,6/30/2020,C&M-GMS Global Sum,PRC DELEGATED CO-COMMISSIONING,BASLOW ROAD & SHOREHAM STREET SURGERIES,32885257,"99,954.48",PRC DELEGATED CO-COMMISSIONING,S17 4DR
Department of Health,NHS Sheffield CCG,6/30/2020,C&M-GMS PCN DES Participation,PRC DELEGATED CO-COMMISSIONING,BASLOW ROAD & SHOREHAM STREET SURGERIES,32885257,"1,984.37",PRC DELEGATED CO-COMMISSIONING,S17 4DR
Department of Health,NHS Sheffield CCG,6/30/2020,C&M-GMS Prem Notional Rent,PRC DELEGATED CO-COMMISSIONING,BASLOW ROAD & SHOREHAM STREET SURGERIES,32885257,"8,222.71",PRC DELEGATED CO-COMMISSIONING,S17 4DR
Department of Health,NHS Sheffield CCG,6/30/2020,C&M-GMS Prem Rates,PRC DELEGATED CO-COMMISSIONING,BASLOW ROAD & SHOREHAM STREET SURGERIES,32885257,"2,619.00",PRC DELEGATED CO-COMMISSIONING,S17 4DR
Department of Health,NHS Sheffield CCG,6/30/2020,C&M-GMS Prem Water Rates,PRC DELEGATED CO-COMMISSIONING,BASLOW ROAD & SHOREHAM STREET SURGERIES,32885257,77.35,PRC DELEGATED CO-COMMISSIONING,S17 4DR
Department of Health,NHS Sheffield CCG,6/30/2020,C&M-GMS QOF Aspiration,PRC DELEGATED CO-COMMISSIONING,BASLOW ROAD & SHOREHAM STREET SURGERIES,32885257,"22,659.44",PRC DELEGATED CO-COMMISSIONING,S17 4DR
Department of Health,NHS Sheffield CCG,6/30/2020,C&M-GMS QOF Achievement,PRC DELEGATED CO-COMMISSIONING,BASLOW ROAD & SHOREHAM STREET SURGERIES,32953810,"44,903.98",PRC DELEGATED CO-COMMISSIONING,S17 4DR
Department of Health,NHS Sheffield CCG,6/30/2020,C&M-PMS GP Statutory Levy,PRC DELEGATED CO-COMMISSIONING,BIRLEY HEALTH CENTRE,32673532,-299.74,PRC DELEGATED CO-COMMISSIONING,S12 3BP
Department of Health,NHS Sheffield CCG,6/30/2020,C&M-PMS Out of Hours Opt Outs,PRC DELEGATED CO-COMMISSIONING,BIRLEY HEALTH CENTRE,32673532,"-3,009.66",PRC DELEGATED CO-COMMISSIONING,S12 3BP
Department of Health,NHS Sheffield CCG,6/30/2020,C&M-PMS QOF Aspiration,PRC DELEGATED CO-COMMISSIONING,BIRLEY HEALTH CENTRE,32673532,"-15,962.78",PRC DELEGATED CO-COMMISSIONING,S12 3BP
Department of Health,NHS Sheffield CCG,6/30/2020,C&M-PMS Voluntary Levy,PRC DELEGATED CO-COMMISSIONING,BIRLEY HEALTH CENTRE,32673532,-42.82,PRC DELEGATED CO-COMMISSIONING,S12 3BP
Department of Health,NHS Sheffield CCG,6/30/2020,C&M-PMS Contract Value,PRC DELEGATED CO-COMMISSIONING,BIRLEY HEALTH CENTRE,32673533,"64,254.73",PRC DELEGATED CO-COMMISSIONING,S12 3BP
Department of Health,NHS Sheffield CCG,6/30/2020,C&M-PMS DES Learn Dsblty Hlth Chk,PRC DELEGATED CO-COMMISSIONING,BIRLEY HEALTH CENTRE,32673533,140.00,PRC DELEGATED CO-COMMISSIONING,S12 3BP
Department of Health,NHS Sheffield CCG,6/30/2020,C&M-PMS DES Minor Surgery,PRC DELEGATED CO-COMMISSIONING,BIRLEY HEALTH CENTRE,32673533,"4,135.00",PRC DELEGATED CO-COMMISSIONING,S12 3BP
Department of Health,NHS Sheffield CCG,6/30/2020,C&M-PMS GP Statutory Levy,PRC DELEGATED CO-COMMISSIONING,BIRLEY HEALTH CENTRE,32673533,0.56,PRC DELEGATED CO-COMMISSIONING,S12 3BP
Department of Health,NHS Sheffield CCG,6/30/2020,C&M-PMS PCN DES Participation,PRC DELEGATED CO-COMMISSIONING,BIRLEY HEALTH CENTRE,32673533,"1,222.93",PRC DELEGATED CO-COMMISSIONING,S12 3BP
Department of Health,NHS Sheffield CCG,6/30/2020,C&M-PMS PCO Other,PRC DELEGATED CO-COMMISSIONING,BIRLEY HEALTH CENTRE,32673533,539.80,PRC DELEGATED CO-COMMISSIONING,S12 3BP
Department of Health,NHS Sheffield CCG,6/30/2020,C&M-PMS Prem Notional Rent,PRC DELEGATED CO-COMMISSIONING,BIRLEY HEALTH CENTRE,32673533,"7,600.58",PRC DELEGATED CO-COMMISSIONING,S12 3BP
Department of Health,NHS Sheffield CCG,6/30/2020,C&M-PMS Prem Rates,PRC DELEGATED CO-COMMISSIONING,BIRLEY HEALTH CENTRE,32673533,"1,697.00",PRC DELEGATED CO-COMMISSIONING,S12 3BP
Department of Health,NHS Sheffield CCG,6/30/2020,C&M-PMS QOF Achievement,PRC DELEGATED CO-COMMISSIONING,BIRLEY HEALTH CENTRE,32673533,"14,973.25",PRC DELEGATED CO-COMMISSIONING,S12 3BP
Department of Health,NHS Sheffield CCG,6/30/2020,C&M-PMS QOF Aspiration,PRC DELEGATED CO-COMMISSIONING,BIRLEY HEALTH CENTRE,32673533,"20,401.02",PRC DELEGATED CO-COMMISSIONING,S12 3BP
Department of Health,NHS Sheffield CCG,6/30/2020,C&M-GMS Cost of Drugs -Prescribing,LOCAL ENHANCED SERVICES,BROOMHILL SURGERY,32885264,"1,363.57",LOCAL ENHANCED SERVICES,S10 5BU
Department of Health,NHS Sheffield CCG,6/30/2020,C&M-GMS Global Sum,PRC DELEGATED CO-COMMISSIONING,BROOMHILL SURGERY,32885264,"67,364.54",PRC DELEGATED CO-COMMISSIONING,S10 5BU
Department of Health,NHS Sheffield CCG,6/30/2020,C&M-GMS PCN DES Participation,PRC DELEGATED CO-COMMISSIONING,BROOMHILL SURGERY,32885264,"1,329.60",PRC DELEGATED CO-COMMISSIONING,S10 5BU
Department of Health,NHS Sheffield CCG,6/30/2020,C&M-GMS Prem Cost Rent,PRC DELEGATED CO-COMMISSIONING,BROOMHILL SURGERY,32885264,"2,975.42",PRC DELEGATED CO-COMMISSIONING,S10 5BU
Department of Health,NHS Sheffield CCG,6/30/2020,C&M-GMS Prem Notional Rent,PRC DELEGATED CO-COMMISSIONING,BROOMHILL SURGERY,32885264,"2,612.50",PRC DELEGATED CO-COMMISSIONING,S10 5BU
Department of Health,NHS Sheffield CCG,6/30/2020,C&M-GMS Prof Fees Prescribing,PRC DELEGATED CO-COMMISSIONING,BROOMHILL SURGERY,32885264,27.64,PRC DELEGATED CO-COMMISSIONING,S10 5BU
Department of Health,NHS Sheffield CCG,6/30/2020,C&M-GMS QOF Achievement,PRC DELEGATED CO-COMMISSIONING,BROOMHILL SURGERY,32885264,"33,126.94",PRC DELEGATED CO-COMMISSIONING,S10 5BU
Department of Health,NHS Sheffield CCG,6/30/2020,C&M-GMS QOF Aspiration,PRC DELEGATED CO-COMMISSIONING,BROOMHILL SURGERY,32885264,"19,832.46",PRC DELEGATED CO-COMMISSIONING,S10 5BU
Department of Health,NHS Sheffield CCG,6/30/2020,C&M-GMS Cost of Drugs -Prescribing,LOCAL ENHANCED SERVICES,BUCHANAN ROAD SURGERY,32885260,885.66,LOCAL ENHANCED SERVICES,S5 8AL
Department of Health,NHS Sheffield CCG,6/30/2020,C&M-GMS DES Learn Dsblty Hlth Chk,PRC DELEGATED CO-COMMISSIONING,BUCHANAN ROAD SURGERY,32885260,420.00,PRC DELEGATED CO-COMMISSIONING,S5 8AL
Department of Health,NHS Sheffield CCG,6/30/2020,C&M-GMS Global Sum,PRC DELEGATED CO-COMMISSIONING,BUCHANAN ROAD SURGERY,32885260,"37,057.14",PRC DELEGATED CO-COMMISSIONING,S5 8AL
Department of Health,NHS Sheffield CCG,6/30/2020,C&M-GMS PCN DES Participation,PRC DELEGATED CO-COMMISSIONING,BUCHANAN ROAD SURGERY,32885260,734.72,PRC DELEGATED CO-COMMISSIONING,S5 8AL
Department of Health,NHS Sheffield CCG,6/30/2020,C&M-GMS Prem Notional Rent,PRC DELEGATED CO-COMMISSIONING,BUCHANAN ROAD SURGERY,32885260,"2,595.83",PRC DELEGATED CO-COMMISSIONING,S5 8AL
Department of Health,NHS Sheffield CCG,6/30/2020,C&M-GMS Prof Fees Prescribing,PRC DELEGATED CO-COMMISSIONING,BUCHANAN ROAD SURGERY,32885260,94.42,PRC DELEGATED CO-COMMISSIONING,S5 8AL
Department of Health,NHS Sheffield CCG,6/30/2020,C&M-GMS QOF Achievement,PRC DELEGATED CO-COMMISSIONING,BUCHANAN ROAD SURGERY,32885260,"18,798.84",PRC DELEGATED CO-COMMISSIONING,S5 8AL
Department of Health,NHS Sheffield CCG,6/30/2020,C&M-GMS QOF Aspiration,PRC DELEGATED CO-COMMISSIONING,BUCHANAN ROAD SURGERY,32885260,"12,041.27",PRC DELEGATED CO-COMMISSIONING,S5 8AL
Department of Health,NHS Sheffield CCG,6/30/2020,C&M-PMS GP Statutory Levy,PRC DELEGATED CO-COMMISSIONING,BURNCROSS SURGERY,32673534,-529.55,PRC DELEGATED CO-COMMISSIONING,S35 1RN
Department of Health,NHS Sheffield CCG,6/30/2020,C&M-PMS QOF Aspiration,PRC DELEGATED CO-COMMISSIONING,BURNCROSS SURGERY,32673534,"-31,464.80",PRC DELEGATED CO-COMMISSIONING,S35 1RN
Department of Health,NHS Sheffield CCG,6/30/2020,C&M-PMS Voluntary Levy,PRC DELEGATED CO-COMMISSIONING,BURNCROSS SURGERY,32673534,-75.62,PRC DELEGATED CO-COMMISSIONING,S35 1RN
Department of Health,NHS Sheffield CCG,6/30/2020,C&M-PMS Contract Value,PRC DELEGATED CO-COMMISSIONING,BURNCROSS SURGERY,32673535,"121,991.44",PRC DELEGATED CO-COMMISSIONING,S35 1RN
Department of Health,NHS Sheffield CCG,6/30/2020,C&M-PMS DES Learn Dsblty Hlth Chk,PRC DELEGATED CO-COMMISSIONING,BURNCROSS SURGERY,32673535,"2,940.00",PRC DELEGATED CO-COMMISSIONING,S35 1RN
Department of Health,NHS Sheffield CCG,6/30/2020,C&M-PMS DES Minor Surgery,PRC DELEGATED CO-COMMISSIONING,BURNCROSS SURGERY,32673535,"3,915.00",PRC DELEGATED CO-COMMISSIONING,S35 1RN
Department of Health,NHS Sheffield CCG,6/30/2020,C&M-PMS PCN DES Participation,PRC DELEGATED CO-COMMISSIONING,BURNCROSS SURGERY,32673535,"2,282.33",PRC DELEGATED CO-COMMISSIONING,S35 1RN
Department of Health,NHS Sheffield CCG,6/30/2020,C&M-PMS Prem Notional Rent,PRC DELEGATED CO-COMMISSIONING,BURNCROSS SURGERY,32673535,"14,058.33",PRC DELEGATED CO-COMMISSIONING,S35 1RN
Department of Health,NHS Sheffield CCG,6/30/2020,C&M-PMS QOF Achievement,PRC DELEGATED CO-COMMISSIONING,BURNCROSS SURGERY,32673535,"68,727.53",PRC DELEGATED CO-COMMISSIONING,S35 1RN
Department of Health,NHS Sheffield CCG,6/30/2020,C&M-PMS QOF Aspiration,PRC DELEGATED CO-COMMISSIONING,BURNCROSS SURGERY,32673535,"45,760.05",PRC DELEGATED CO-COMMISSIONING,S35 1RN
Department of Health,NHS Sheffield CCG,6/30/2020,C&M-PMS Contract Value,PRC DELEGATED CO-COMMISSIONING,BURNGREAVE SURGERY,32673537,"57,368.92",PRC DELEGATED CO-COMMISSIONING,S3 9DA
Department of Health,NHS Sheffield CCG,6/30/2020,C&M-PMS DES Minor Surgery,PRC DELEGATED CO-COMMISSIONING,BURNGREAVE SURGERY,32673537,"1,455.00",PRC DELEGATED CO-COMMISSIONING,S3 9DA
Department of Health,NHS Sheffield CCG,6/30/2020,C&M-PMS Out of Hours Opt Outs,PRC DELEGATED CO-COMMISSIONING,BURNGREAVE SURGERY,32673537,25.06,PRC DELEGATED CO-COMMISSIONING,S3 9DA
Department of Health,NHS Sheffield CCG,6/30/2020,C&M-PMS PCN DES Participation,PRC DELEGATED CO-COMMISSIONING,BURNGREAVE SURGERY,32673537,"1,090.16",PRC DELEGATED CO-COMMISSIONING,S3 9DA
Department of Health,NHS Sheffield CCG,6/30/2020,C&M-PMS Prem Notional Rent,PRC DELEGATED CO-COMMISSIONING,BURNGREAVE SURGERY,32673537,"6,622.92",PRC DELEGATED CO-COMMISSIONING,S3 9DA
Department of Health,NHS Sheffield CCG,6/30/2020,C&M-PMS Prem Rates,PRC DELEGATED CO-COMMISSIONING,BURNGREAVE SURGERY,32673537,"2,297.00",PRC DELEGATED CO-COMMISSIONING,S3 9DA
Department of Health,NHS Sheffield CCG,6/30/2020,C&M-PMS QOF Achievement,PRC DELEGATED CO-COMMISSIONING,BURNGREAVE SURGERY,32673537,"23,104.99",PRC DELEGATED CO-COMMISSIONING,S3 9DA
Department of Health,NHS Sheffield CCG,6/30/2020,C&M-PMS QOF Aspiration,PRC DELEGATED CO-COMMISSIONING,BURNGREAVE SURGERY,32673537,"15,326.19",PRC DELEGATED CO-COMMISSIONING,S3 9DA
Department of Health,NHS Sheffield CCG,6/30/2020,C&M-GMS GP Statutory Levy,PRC DELEGATED CO-COMMISSIONING,CARTERKNOWLE & DORE MEDICAL PRACTICE,32885269,-440.83,PRC DELEGATED CO-COMMISSIONING,S7 2DW
Department of Health,NHS Sheffield CCG,6/30/2020,C&M-GMS QOF Aspiration,PRC DELEGATED CO-COMMISSIONING,CARTERKNOWLE & DORE MEDICAL PRACTICE,32885269,"-20,110.04",PRC DELEGATED CO-COMMISSIONING,S7 2DW
Department of Health,NHS Sheffield CCG,6/30/2020,C&M-GMS Cost of Drugs -Prescribing,LOCAL ENHANCED SERVICES,CARTERKNOWLE & DORE MEDICAL PRACTICE,32885270,"2,153.80",LOCAL ENHANCED SERVICES,S7 2DW
Department of Health,NHS Sheffield CCG,6/30/2020,C&M-GMS Global Sum,PRC DELEGATED CO-COMMISSIONING,CARTERKNOWLE & DORE MEDICAL PRACTICE,32885270,"89,071.05",PRC DELEGATED CO-COMMISSIONING,S7 2DW
Department of Health,NHS Sheffield CCG,6/30/2020,C&M-GMS PCN DES Participation,PRC DELEGATED CO-COMMISSIONING,CARTERKNOWLE & DORE MEDICAL PRACTICE,32885270,"1,740.63",PRC DELEGATED CO-COMMISSIONING,S7 2DW
Department of Health,NHS Sheffield CCG,6/30/2020,C&M-GMS Prem Notional Rent,PRC DELEGATED CO-COMMISSIONING,CARTERKNOWLE & DORE MEDICAL PRACTICE,32885270,"7,596.50",PRC DELEGATED CO-COMMISSIONING,S7 2DW
Department of Health,NHS Sheffield CCG,6/30/2020,C&M-GMS Prof Fees Prescribing,PRC DELEGATED CO-COMMISSIONING,CARTERKNOWLE & DORE MEDICAL PRACTICE,32885270,69.10,PRC DELEGATED CO-COMMISSIONING,S7 2DW
Department of Health,NHS Sheffield CCG,6/30/2020,C&M-GMS QOF Achievement,PRC DELEGATED CO-COMMISSIONING,CARTERKNOWLE & DORE MEDICAL PRACTICE,32885270,"46,572.35",PRC DELEGATED CO-COMMISSIONING,S7 2DW
Department of Health,NHS Sheffield CCG,6/30/2020,C&M-GMS QOF Aspiration,PRC DELEGATED CO-COMMISSIONING,CARTERKNOWLE & DORE MEDICAL PRACTICE,32885270,"30,805.56",PRC DELEGATED CO-COMMISSIONING,S7 2DW
Department of Health,NHS Sheffield CCG,6/30/2020,C&M-GMS Cost of Drugs -Prescribing,LOCAL ENHANCED SERVICES,CHARNOCK HEALTH PRIMARY CARE CENTRE,32885266,555.17,LOCAL ENHANCED SERVICES,S12 3GH
Department of Health,NHS Sheffield CCG,6/30/2020,C&M-GMS DES Learn Dsblty Hlth Chk,PRC DELEGATED CO-COMMISSIONING,CHARNOCK HEALTH PRIMARY CARE CENTRE,32885266,"1,260.00",PRC DELEGATED CO-COMMISSIONING,S12 3GH
Department of Health,NHS Sheffield CCG,6/30/2020,C&M-GMS Global Sum,PRC DELEGATED CO-COMMISSIONING,CHARNOCK HEALTH PRIMARY CARE CENTRE,32885266,"45,132.16",PRC DELEGATED CO-COMMISSIONING,S12 3GH
Department of Health,NHS Sheffield CCG,6/30/2020,C&M-GMS PCN DES Participation,PRC DELEGATED CO-COMMISSIONING,CHARNOCK HEALTH PRIMARY CARE CENTRE,32885266,893.45,PRC DELEGATED CO-COMMISSIONING,S12 3GH
Department of Health,NHS Sheffield CCG,6/30/2020,C&M-GMS PCO Other,PRC DELEGATED CO-COMMISSIONING,CHARNOCK HEALTH PRIMARY CARE CENTRE,32885266,371.00,PRC DELEGATED CO-COMMISSIONING,S12 3GH
Department of Health,NHS Sheffield CCG,6/30/2020,C&M-GMS Prem Notional Rent,PRC DELEGATED CO-COMMISSIONING,CHARNOCK HEALTH PRIMARY CARE CENTRE,32885266,335.00,PRC DELEGATED CO-COMMISSIONING,S12 3GH
Department of Health,NHS Sheffield CCG,6/30/2020,C&M-GMS Prem Rates,PRC DELEGATED CO-COMMISSIONING,CHARNOCK HEALTH PRIMARY CARE CENTRE,32885266,"1,572.00",PRC DELEGATED CO-COMMISSIONING,S12 3GH
Department of Health,NHS Sheffield CCG,6/30/2020,C&M-GMS Prof Fees Prescribing,PRC DELEGATED CO-COMMISSIONING,CHARNOCK HEALTH PRIMARY CARE CENTRE,32885266,18.43,PRC DELEGATED CO-COMMISSIONING,S12 3GH
Department of Health,NHS Sheffield CCG,6/30/2020,C&M-GMS QOF Achievement,PRC DELEGATED CO-COMMISSIONING,CHARNOCK HEALTH PRIMARY CARE CENTRE,32885266,"21,549.08",PRC DELEGATED CO-COMMISSIONING,S12 3GH
Department of Health,NHS Sheffield CCG,6/30/2020,C&M-GMS QOF Aspiration,PRC DELEGATED CO-COMMISSIONING,CHARNOCK HEALTH PRIMARY CARE CENTRE,32885266,"14,754.34",PRC DELEGATED CO-COMMISSIONING,S12 3GH
Department of Health,NHS Sheffield CCG,6/30/2020,Hcare Srv Rec Fdtn Trust-Contract Baseline,ACUTE COMMISSIONING,CHESTERFIELD ROYAL HOSPITAL NHS FOUNDATION TRUST,32563493,"38,676.00",ACUTE COMMISSIONING,S44 5BL
Department of Health,NHS Sheffield CCG,6/30/2020,Hcare Srv Rec Fdtn Trust-Contract Baseline,ACUTE COMMISSIONING,CHESTERFIELD ROYAL HOSPITAL NHS FOUNDATION TRUST,32681786,"369,177.00",ACUTE COMMISSIONING,S44 5BL
Department of Health,NHS Sheffield CCG,6/30/2020,Clinical&Medical-Voluntary Sector,MENTAL HEALTH SERVICES - OTHER,CHILDREN & YOUNG PEOPLES EMPOWERMENT PROJECT LTD,32563591,"30,537.95",MENTAL HEALTH SERVICES - OTHER,S5 8BB
Department of Health,NHS Sheffield CCG,6/30/2020,C&M-APMS Contract Value,PRC DELEGATED CO-COMMISSIONING,CLOVER CITY PRACTICE,32673604,"31,197.19",PRC DELEGATED CO-COMMISSIONING,S9 4QH
Department of Health,NHS Sheffield CCG,6/30/2020,C&M-APMS DES Minor Surgery,PRC DELEGATED CO-COMMISSIONING,CLOVER CITY PRACTICE,32673604,55.00,PRC DELEGATED CO-COMMISSIONING,S9 4QH
Department of Health,NHS Sheffield CCG,6/30/2020,C&M-APMS PCN DES Participation,PRC DELEGATED CO-COMMISSIONING,CLOVER CITY PRACTICE,32673604,563.87,PRC DELEGATED CO-COMMISSIONING,S9 4QH
Department of Health,NHS Sheffield CCG,6/30/2020,C&M-PMS QOF Achievement,PRC DELEGATED CO-COMMISSIONING,CLOVER CITY PRACTICE,32673604,"7,433.19",PRC DELEGATED CO-COMMISSIONING,S9 4QH
Department of Health,NHS Sheffield CCG,6/30/2020,C&M-PMS QOF Aspiration,PRC DELEGATED CO-COMMISSIONING,CLOVER CITY PRACTICE,32673604,"4,768.01",PRC DELEGATED CO-COMMISSIONING,S9 4QH
Department of Health,NHS Sheffield CCG,6/30/2020,C&M-APMS OOH Opt Outs,PRC DELEGATED CO-COMMISSIONING,CLOVER GROUP PRACTICE,32673538,"-6,192.29",PRC DELEGATED CO-COMMISSIONING,S9 4QH
Department of Health,NHS Sheffield CCG,6/30/2020,C&M-PMS QOF Aspiration,PRC DELEGATED CO-COMMISSIONING,CLOVER GROUP PRACTICE,32673538,"-22,960.40",PRC DELEGATED CO-COMMISSIONING,S9 4QH
Department of Health,NHS Sheffield CCG,6/30/2020,C&M-APMS Contract Value,PRC DELEGATED CO-COMMISSIONING,CLOVER GROUP PRACTICE,32673539,"129,713.45",PRC DELEGATED CO-COMMISSIONING,S9 4QH
Department of Health,NHS Sheffield CCG,6/30/2020,C&M-APMS DES Minor Surgery,PRC DELEGATED CO-COMMISSIONING,CLOVER GROUP PRACTICE,32673539,160.00,PRC DELEGATED CO-COMMISSIONING,S9 4QH
Department of Health,NHS Sheffield CCG,6/30/2020,C&M-APMS PCN DES Participation,PRC DELEGATED CO-COMMISSIONING,CLOVER GROUP PRACTICE,32673539,"2,478.23",PRC DELEGATED CO-COMMISSIONING,S9 4QH
Department of Health,NHS Sheffield CCG,6/30/2020,C&M-APMS Prem Actual Rent,PRC DELEGATED CO-COMMISSIONING,CLOVER GROUP PRACTICE,32673539,"5,169.68",PRC DELEGATED CO-COMMISSIONING,S9 4QH
Department of Health,NHS Sheffield CCG,6/30/2020,C&M-APMS Prem Healthcentre Rent,PRC DELEGATED CO-COMMISSIONING,CLOVER GROUP PRACTICE,32673539,"58,714.62",PRC DELEGATED CO-COMMISSIONING,S9 4QH
Department of Health,NHS Sheffield CCG,6/30/2020,C&M-APMS Prem Notional Rent,PRC DELEGATED CO-COMMISSIONING,CLOVER GROUP PRACTICE,32673539,"2,804.17",PRC DELEGATED CO-COMMISSIONING,S9 4QH
Department of Health,NHS Sheffield CCG,6/30/2020,C&M-APMS QOF Achievement,PRC DELEGATED CO-COMMISSIONING,CLOVER GROUP PRACTICE,32673539,"2,866.81",PRC DELEGATED CO-COMMISSIONING,S9 4QH
Department of Health,NHS Sheffield CCG,6/30/2020,C&M-PMS DES Learn Dsblty Hlth Chk,PRC DELEGATED CO-COMMISSIONING,CLOVER GROUP PRACTICE,32673539,"1,120.00",PRC DELEGATED CO-COMMISSIONING,S9 4QH
Department of Health,NHS Sheffield CCG,6/30/2020,C&M-PMS QOF Achievement,PRC DELEGATED CO-COMMISSIONING,CLOVER GROUP PRACTICE,32673539,"47,284.82",PRC DELEGATED CO-COMMISSIONING,S9 4QH
Department of Health,NHS Sheffield CCG,6/30/2020,C&M-PMS QOF Aspiration,PRC DELEGATED CO-COMMISSIONING,CLOVER GROUP PRACTICE,32673539,"34,087.19",PRC DELEGATED CO-COMMISSIONING,S9 4QH
Department of Health,NHS Sheffield CCG,6/30/2020,Voids and Subsidies,PRC DELEGATED CO-COMMISSIONING,COMMUNITY HEALTH PARTNERSHIPS LTD,32953065,"37,796.72",PRC DELEGATED CO-COMMISSIONING,M1 5AN
Department of Health,NHS Sheffield CCG,6/30/2020,Voids and Subsidies,RECHARGES NHS PROPERTY SERVICES LTD,COMMUNITY HEALTH PARTNERSHIPS LTD,32953065,"96,714.68",https://nww.einvoice-prod.sbs.nhs.uk:8179/invoicepdf/e8fc9722-fb2b-5d8d-836f-e27051ed42c8,M1 5AN
Department of Health,NHS Sheffield CCG,6/30/2020,Cont Care-Physical Disab (<65),CHC ADULT FULLY FUNDED,COUNTRYWIDE CARE HOMES LTD,32706496,"29,176.21",CHC SCHEDULE JUNE 2020 - Heeley Bank Care Home (Countrywide),LS12 6DB
Department of Health,NHS Sheffield CCG,6/30/2020,C&M-GMS Cost of Drugs -Prescribing,LOCAL ENHANCED SERVICES,CROOKES PRACTICE,32908274,94.19,LOCAL ENHANCED SERVICES,S10 1GN
Department of Health,NHS Sheffield CCG,6/30/2020,C&M-GMS DES Learn Dsblty Hlth Chk,PRC DELEGATED CO-COMMISSIONING,CROOKES PRACTICE,32908274,"5,180.00",PRC DELEGATED CO-COMMISSIONING,S10 1GN
Department of Health,NHS Sheffield CCG,6/30/2020,C&M-GMS Global Sum,PRC DELEGATED CO-COMMISSIONING,CROOKES PRACTICE,32908274,"54,938.27",PRC DELEGATED CO-COMMISSIONING,S10 1GN
Department of Health,NHS Sheffield CCG,6/30/2020,C&M-GMS PCN DES Participation,PRC DELEGATED CO-COMMISSIONING,CROOKES PRACTICE,32908274,"1,070.10",PRC DELEGATED CO-COMMISSIONING,S10 1GN
Department of Health,NHS Sheffield CCG,6/30/2020,C&M-GMS PCO Locum Sickness,PRC DELEGATED CO-COMMISSIONING,CROOKES PRACTICE,32908274,"6,181.95",PRC DELEGATED CO-COMMISSIONING,S10 1GN
Department of Health,NHS Sheffield CCG,6/30/2020,C&M-GMS PCO Other,PRC DELEGATED CO-COMMISSIONING,CROOKES PRACTICE,32908274,527.70,PRC DELEGATED CO-COMMISSIONING,S10 1GN
Department of Health,NHS Sheffield CCG,6/30/2020,C&M-GMS Prem Notional Rent,PRC DELEGATED CO-COMMISSIONING,CROOKES PRACTICE,32908274,"3,874.67",PRC DELEGATED CO-COMMISSIONING,S10 1GN
Department of Health,NHS Sheffield CCG,6/30/2020,C&M-GMS Prem Rates,PRC DELEGATED CO-COMMISSIONING,CROOKES PRACTICE,32908274,"1,534.00",PRC DELEGATED CO-COMMISSIONING,S10 1GN
Department of Health,NHS Sheffield CCG,6/30/2020,C&M-GMS Prof Fees Prescribing,PRC DELEGATED CO-COMMISSIONING,CROOKES PRACTICE,32908274,25.33,PRC DELEGATED CO-COMMISSIONING,S10 1GN
Department of Health,NHS Sheffield CCG,6/30/2020,C&M-GMS QOF Achievement,PRC DELEGATED CO-COMMISSIONING,CROOKES PRACTICE,32908274,"21,343.65",PRC DELEGATED CO-COMMISSIONING,S10 1GN
Department of Health,NHS Sheffield CCG,6/30/2020,C&M-GMS QOF Aspiration,PRC DELEGATED CO-COMMISSIONING,CROOKES PRACTICE,32908274,"14,694.97",PRC DELEGATED CO-COMMISSIONING,S10 1GN
Department of Health,NHS Sheffield CCG,6/30/2020,Voids and Subsidies,RECHARGES NHS PROPERTY SERVICES LTD,DARNALL WELL BEING,32677993,"32,150.43",RECHARGES NHS PROPERTY SERVICES LTD,S9 4QH
Department of Health,NHS Sheffield CCG,6/30/2020,C&M-PMS Contract Value,PRC DELEGATED CO-COMMISSIONING,DEEPCAR MEDICAL CENTRE,32673541,"41,477.33",PRC DELEGATED CO-COMMISSIONING,S36 2RA
Department of Health,NHS Sheffield CCG,6/30/2020,C&M-PMS GP Statutory Levy,PRC DELEGATED CO-COMMISSIONING,DEEPCAR MEDICAL CENTRE,32673541,0.46,PRC DELEGATED CO-COMMISSIONING,S36 2RA
Department of Health,NHS Sheffield CCG,6/30/2020,C&M-PMS Out of Hours Opt Outs,PRC DELEGATED CO-COMMISSIONING,DEEPCAR MEDICAL CENTRE,32673541,31.65,PRC DELEGATED CO-COMMISSIONING,S36 2RA
Department of Health,NHS Sheffield CCG,6/30/2020,C&M-PMS PCN DES Participation,PRC DELEGATED CO-COMMISSIONING,DEEPCAR MEDICAL CENTRE,32673541,790.09,PRC DELEGATED CO-COMMISSIONING,S36 2RA
Department of Health,NHS Sheffield CCG,6/30/2020,C&M-PMS Prem Healthcentre Rent,PRC DELEGATED CO-COMMISSIONING,DEEPCAR MEDICAL CENTRE,32673541,"29,915.44",PRC DELEGATED CO-COMMISSIONING,S36 2RA
Department of Health,NHS Sheffield CCG,6/30/2020,C&M-PMS QOF Achievement,PRC DELEGATED CO-COMMISSIONING,DEEPCAR MEDICAL CENTRE,32673541,"18,778.88",PRC DELEGATED CO-COMMISSIONING,S36 2RA
Department of Health,NHS Sheffield CCG,6/30/2020,C&M-PMS QOF Aspiration,PRC DELEGATED CO-COMMISSIONING,DEEPCAR MEDICAL CENTRE,32673541,"12,237.82",PRC DELEGATED CO-COMMISSIONING,S36 2RA
Department of Health,NHS Sheffield CCG,6/30/2020,C&M-GMS Cost of Drugs -Prescribing,LOCAL ENHANCED SERVICES,DEVONSHIRE GREEN MEDICAL CENTRE,32885277,92.49,LOCAL ENHANCED SERVICES,S3 7SF
Department of Health,NHS Sheffield CCG,6/30/2020,C&M-GMS DES Learn Dsblty Hlth Chk,PRC DELEGATED CO-COMMISSIONING,DEVONSHIRE GREEN MEDICAL CENTRE,32885277,"2,100.00",PRC DELEGATED CO-COMMISSIONING,S3 7SF
Department of Health,NHS Sheffield CCG,6/30/2020,C&M-GMS Global Sum,PRC DELEGATED CO-COMMISSIONING,DEVONSHIRE GREEN MEDICAL CENTRE,32885277,"48,953.56",PRC DELEGATED CO-COMMISSIONING,S3 7SF
Department of Health,NHS Sheffield CCG,6/30/2020,C&M-GMS PCN DES Participation,PRC DELEGATED CO-COMMISSIONING,DEVONSHIRE GREEN MEDICAL CENTRE,32885277,935.21,PRC DELEGATED CO-COMMISSIONING,S3 7SF
Department of Health,NHS Sheffield CCG,6/30/2020,C&M-GMS Prem Notional Rent,PRC DELEGATED CO-COMMISSIONING,DEVONSHIRE GREEN MEDICAL CENTRE,32885277,"5,987.50",PRC DELEGATED CO-COMMISSIONING,S3 7SF
Department of Health,NHS Sheffield CCG,6/30/2020,C&M-GMS Prof Fees Prescribing,PRC DELEGATED CO-COMMISSIONING,DEVONSHIRE GREEN MEDICAL CENTRE,32885277,39.14,PRC DELEGATED CO-COMMISSIONING,S3 7SF
Department of Health,NHS Sheffield CCG,6/30/2020,C&M-GMS QOF Achievement,PRC DELEGATED CO-COMMISSIONING,DEVONSHIRE GREEN MEDICAL CENTRE,32885277,"21,266.76",PRC DELEGATED CO-COMMISSIONING,S3 7SF
Department of Health,NHS Sheffield CCG,6/30/2020,C&M-GMS QOF Aspiration,PRC DELEGATED CO-COMMISSIONING,DEVONSHIRE GREEN MEDICAL CENTRE,32885277,"14,540.40",PRC DELEGATED CO-COMMISSIONING,S3 7SF
Department of Health,NHS Sheffield CCG,6/30/2020,Hcare Srv Rec Fdtn Trust-Contract Baseline,ACUTE COMMISSIONING,DONCASTER AND BASSETLAW HOSPITALS NHS FOUNDATION TRUST,32681787,"79,729.44",ACUTE COMMISSIONING,WF3 1WE
Department of Health,NHS Sheffield CCG,6/30/2020,Hcare Srv Rec Fdtn Trust-Contract Baseline,ACUTE COMMISSIONING,DONCASTER AND BASSETLAW HOSPITALS NHS FOUNDATION TRUST,32888357,"79,729.44",MONTH 1 2020/2021 BLOCK CONTRACT,WF3 1WE
Department of Health,NHS Sheffield CCG,6/30/2020,Hcare Srv Rec Fdtn Trust-Contract Baseline,ACUTE COMMISSIONING,DONCASTER AND BASSETLAW HOSPITALS NHS FOUNDATION TRUST,32888467,"-79,729.44",ACUTE COMMISSIONING,WF3 1WE
Department of Health,NHS Sheffield CCG,6/30/2020,C&M-PMS GP Statutory Levy,PRC DELEGATED CO-COMMISSIONING,DOVERCOURT SURGERY,32673542,-306.08,PRC DELEGATED CO-COMMISSIONING,S2 5FX
Department of Health,NHS Sheffield CCG,6/30/2020,C&M-PMS Out of Hours Opt Outs,PRC DELEGATED CO-COMMISSIONING,DOVERCOURT SURGERY,32673542,"-3,541.25",PRC DELEGATED CO-COMMISSIONING,S2 5FX
Department of Health,NHS Sheffield CCG,6/30/2020,C&M-PMS QOF Aspiration,PRC DELEGATED CO-COMMISSIONING,DOVERCOURT SURGERY,32673542,"-15,350.00",PRC DELEGATED CO-COMMISSIONING,S2 5FX
Department of Health,NHS Sheffield CCG,6/30/2020,C&M-PMS Voluntary Levy,PRC DELEGATED CO-COMMISSIONING,DOVERCOURT SURGERY,32673542,-43.44,PRC DELEGATED CO-COMMISSIONING,S2 5FX
Department of Health,NHS Sheffield CCG,6/30/2020,C&M-PMS Contract Value,PRC DELEGATED CO-COMMISSIONING,DOVERCOURT SURGERY,32673543,"75,462.38",PRC DELEGATED CO-COMMISSIONING,S2 5FX
Department of Health,NHS Sheffield CCG,6/30/2020,C&M-PMS DES Learn Dsblty Hlth Chk,PRC DELEGATED CO-COMMISSIONING,DOVERCOURT SURGERY,32673543,980.00,PRC DELEGATED CO-COMMISSIONING,S2 5FX
Department of Health,NHS Sheffield CCG,6/30/2020,C&M-PMS DES Minor Surgery,PRC DELEGATED CO-COMMISSIONING,DOVERCOURT SURGERY,32673543,"2,120.00",PRC DELEGATED CO-COMMISSIONING,S2 5FX
Department of Health,NHS Sheffield CCG,6/30/2020,C&M-PMS PCN DES Participation,PRC DELEGATED CO-COMMISSIONING,DOVERCOURT SURGERY,32673543,"1,405.71",PRC DELEGATED CO-COMMISSIONING,S2 5FX
Department of Health,NHS Sheffield CCG,6/30/2020,C&M-PMS PCO Locum Adop/Pat/Mat,PRC DELEGATED CO-COMMISSIONING,DOVERCOURT SURGERY,32673543,"6,166.56",PRC DELEGATED CO-COMMISSIONING,S2 5FX
Department of Health,NHS Sheffield CCG,6/30/2020,C&M-PMS PCO Other,PRC DELEGATED CO-COMMISSIONING,DOVERCOURT SURGERY,32673543,542.80,PRC DELEGATED CO-COMMISSIONING,S2 5FX
Department of Health,NHS Sheffield CCG,6/30/2020,C&M-PMS Prem Actual Rent,PRC DELEGATED CO-COMMISSIONING,DOVERCOURT SURGERY,32673543,"12,400.00",PRC DELEGATED CO-COMMISSIONING,S2 5FX
Department of Health,NHS Sheffield CCG,6/30/2020,C&M-PMS Prem Notional Rent,PRC DELEGATED CO-COMMISSIONING,DOVERCOURT SURGERY,32673543,"1,708.33",PRC DELEGATED CO-COMMISSIONING,S2 5FX
Department of Health,NHS Sheffield CCG,6/30/2020,C&M-PMS QOF Achievement,PRC DELEGATED CO-COMMISSIONING,DOVERCOURT SURGERY,32673543,"33,528.50",PRC DELEGATED CO-COMMISSIONING,S2 5FX
Department of Health,NHS Sheffield CCG,6/30/2020,C&M-PMS QOF Aspiration,PRC DELEGATED CO-COMMISSIONING,DOVERCOURT SURGERY,32673543,"22,642.00",PRC DELEGATED CO-COMMISSIONING,S2 5FX
Department of Health,NHS Sheffield CCG,6/30/2020,C&M-PMS Contract Value,PRC DELEGATED CO-COMMISSIONING,DR MEHROTRA & PARTNER,32673545,"24,875.33",PRC DELEGATED CO-COMMISSIONING,S9 5DH
Department of Health,NHS Sheffield CCG,6/30/2020,C&M-PMS DES Minor Surgery,PRC DELEGATED CO-COMMISSIONING,DR MEHROTRA & PARTNER,32673545,160.00,PRC DELEGATED CO-COMMISSIONING,S9 5DH
Department of Health,NHS Sheffield CCG,6/30/2020,C&M-PMS PCN DES Participation,PRC DELEGATED CO-COMMISSIONING,DR MEHROTRA & PARTNER,32673545,472.15,PRC DELEGATED CO-COMMISSIONING,S9 5DH
Department of Health,NHS Sheffield CCG,6/30/2020,C&M-PMS Prem Notional Rent,PRC DELEGATED CO-COMMISSIONING,DR MEHROTRA & PARTNER,32673545,"5,157.29",PRC DELEGATED CO-COMMISSIONING,S9 5DH
Department of Health,NHS Sheffield CCG,6/30/2020,C&M-PMS Prem Rates,PRC DELEGATED CO-COMMISSIONING,DR MEHROTRA & PARTNER,32673545,"5,220.80",PRC DELEGATED CO-COMMISSIONING,S9 5DH
Department of Health,NHS Sheffield CCG,6/30/2020,C&M-PMS QOF Achievement,PRC DELEGATED CO-COMMISSIONING,DR MEHROTRA & PARTNER,32673545,"12,073.11",PRC DELEGATED CO-COMMISSIONING,S9 5DH
Department of Health,NHS Sheffield CCG,6/30/2020,C&M-PMS QOF Aspiration,PRC DELEGATED CO-COMMISSIONING,DR MEHROTRA & PARTNER,32673545,"7,744.96",PRC DELEGATED CO-COMMISSIONING,S9 5DH
Department of Health,NHS Sheffield CCG,6/30/2020,C&M-PMS GP Statutory Levy,PRC DELEGATED CO-COMMISSIONING,DR MILNER & PARTNERS,32673546,-377.48,PRC DELEGATED CO-COMMISSIONING,S6 4JQ
Department of Health,NHS Sheffield CCG,6/30/2020,C&M-PMS Out of Hours Opt Outs,PRC DELEGATED CO-COMMISSIONING,DR MILNER & PARTNERS,32673546,"-3,634.06",PRC DELEGATED CO-COMMISSIONING,S6 4JQ
Department of Health,NHS Sheffield CCG,6/30/2020,C&M-PMS QOF Aspiration,PRC DELEGATED CO-COMMISSIONING,DR MILNER & PARTNERS,32673546,"-13,027.80",PRC DELEGATED CO-COMMISSIONING,S6 4JQ
Department of Health,NHS Sheffield CCG,6/30/2020,C&M-PMS Voluntary Levy,PRC DELEGATED CO-COMMISSIONING,DR MILNER & PARTNERS,32673546,-53.79,PRC DELEGATED CO-COMMISSIONING,S6 4JQ
Department of Health,NHS Sheffield CCG,6/30/2020,C&M-PMS Contract Value,PRC DELEGATED CO-COMMISSIONING,DR MILNER & PARTNERS,32673547,"77,623.34",PRC DELEGATED CO-COMMISSIONING,S6 4JQ
Department of Health,NHS Sheffield CCG,6/30/2020,C&M-PMS DES Learn Dsblty Hlth Chk,PRC DELEGATED CO-COMMISSIONING,DR MILNER & PARTNERS,32673547,280.00,PRC DELEGATED CO-COMMISSIONING,S6 4JQ
Department of Health,NHS Sheffield CCG,6/30/2020,C&M-PMS DES Minor Surgery,PRC DELEGATED CO-COMMISSIONING,DR MILNER & PARTNERS,32673547,"3,035.00",PRC DELEGATED CO-COMMISSIONING,S6 4JQ
Department of Health,NHS Sheffield CCG,6/30/2020,C&M-PMS PCN DES Participation,PRC DELEGATED CO-COMMISSIONING,DR MILNER & PARTNERS,32673547,"1,452.54",PRC DELEGATED CO-COMMISSIONING,S6 4JQ
Department of Health,NHS Sheffield CCG,6/30/2020,C&M-PMS Prem Actual Rent,PRC DELEGATED CO-COMMISSIONING,DR MILNER & PARTNERS,32673547,"11,382.00",PRC DELEGATED CO-COMMISSIONING,S6 4JQ
Department of Health,NHS Sheffield CCG,6/30/2020,C&M-PMS Prem Notional Rent,PRC DELEGATED CO-COMMISSIONING,DR MILNER & PARTNERS,32673547,"4,462.42",PRC DELEGATED CO-COMMISSIONING,S6 4JQ
Department of Health,NHS Sheffield CCG,6/30/2020,C&M-PMS Prem Rates,PRC DELEGATED CO-COMMISSIONING,DR MILNER & PARTNERS,32673547,"1,071.00",PRC DELEGATED CO-COMMISSIONING,S6 4JQ
Department of Health,NHS Sheffield CCG,6/30/2020,C&M-PMS QOF Achievement,PRC DELEGATED CO-COMMISSIONING,DR MILNER & PARTNERS,32673547,"29,235.27",PRC DELEGATED CO-COMMISSIONING,S6 4JQ
Department of Health,NHS Sheffield CCG,6/30/2020,C&M-PMS QOF Aspiration,PRC DELEGATED CO-COMMISSIONING,DR MILNER & PARTNERS,32673547,"19,784.31",PRC DELEGATED CO-COMMISSIONING,S6 4JQ
Department of Health,NHS Sheffield CCG,6/30/2020,C&M-GMS Cost of Drugs -Prescribing,LOCAL ENHANCED SERVICES,DUKE MEDICAL CENTRE,32885285,730.36,LOCAL ENHANCED SERVICES,S2 2TD
Department of Health,NHS Sheffield CCG,6/30/2020,C&M-GMS Global Sum,PRC DELEGATED CO-COMMISSIONING,DUKE MEDICAL CENTRE,32885285,"61,537.16",PRC DELEGATED CO-COMMISSIONING,S2 2TD
Department of Health,NHS Sheffield CCG,6/30/2020,C&M-GMS PCN DES Participation,PRC DELEGATED CO-COMMISSIONING,DUKE MEDICAL CENTRE,32885285,"1,155.59",PRC DELEGATED CO-COMMISSIONING,S2 2TD
Department of Health,NHS Sheffield CCG,6/30/2020,C&M-GMS Prem Notional Rent,PRC DELEGATED CO-COMMISSIONING,DUKE MEDICAL CENTRE,32885285,"5,721.67",PRC DELEGATED CO-COMMISSIONING,S2 2TD
Department of Health,NHS Sheffield CCG,6/30/2020,C&M-GMS Prof Fees Prescribing,PRC DELEGATED CO-COMMISSIONING,DUKE MEDICAL CENTRE,32885285,122.06,PRC DELEGATED CO-COMMISSIONING,S2 2TD
Department of Health,NHS Sheffield CCG,6/30/2020,C&M-GMS QOF Achievement,PRC DELEGATED CO-COMMISSIONING,DUKE MEDICAL CENTRE,32885285,"24,100.41",PRC DELEGATED CO-COMMISSIONING,S2 2TD
Department of Health,NHS Sheffield CCG,6/30/2020,C&M-GMS QOF Aspiration,PRC DELEGATED CO-COMMISSIONING,DUKE MEDICAL CENTRE,32885285,"15,860.44",PRC DELEGATED CO-COMMISSIONING,S2 2TD
Department of Health,NHS Sheffield CCG,6/30/2020,C&M-PMS Contract Value,PRC DELEGATED CO-COMMISSIONING,DUNNINC ROAD SURGERY,32690305,"21,584.25",PRC DELEGATED CO-COMMISSIONING,S5 0AE
Department of Health,NHS Sheffield CCG,6/30/2020,C&M-PMS DES Minor Surgery,PRC DELEGATED CO-COMMISSIONING,DUNNINC ROAD SURGERY,32690305,"1,855.00",PRC DELEGATED CO-COMMISSIONING,S5 0AE
Department of Health,NHS Sheffield CCG,6/30/2020,C&M-PMS GP Statutory Levy,PRC DELEGATED CO-COMMISSIONING,DUNNINC ROAD SURGERY,32690305,1.44,PRC DELEGATED CO-COMMISSIONING,S5 0AE
Department of Health,NHS Sheffield CCG,6/30/2020,C&M-PMS PCN DES Participation,PRC DELEGATED CO-COMMISSIONING,DUNNINC ROAD SURGERY,32690305,408.46,PRC DELEGATED CO-COMMISSIONING,S5 0AE
Department of Health,NHS Sheffield CCG,6/30/2020,C&M-PMS PCO Other,PRC DELEGATED CO-COMMISSIONING,DUNNINC ROAD SURGERY,32690305,"2,160.00",PRC DELEGATED CO-COMMISSIONING,S5 0AE
Department of Health,NHS Sheffield CCG,6/30/2020,C&M-PMS Prem Notional Rent,PRC DELEGATED CO-COMMISSIONING,DUNNINC ROAD SURGERY,32690305,"1,695.83",PRC DELEGATED CO-COMMISSIONING,S5 0AE
Department of Health,NHS Sheffield CCG,6/30/2020,C&M-PMS Prem Water Rates,PRC DELEGATED CO-COMMISSIONING,DUNNINC ROAD SURGERY,32690305,266.66,PRC DELEGATED CO-COMMISSIONING,S5 0AE
Department of Health,NHS Sheffield CCG,6/30/2020,C&M-PMS QOF Achievement,PRC DELEGATED CO-COMMISSIONING,DUNNINC ROAD SURGERY,32690305,"8,976.94",PRC DELEGATED CO-COMMISSIONING,S5 0AE
Department of Health,NHS Sheffield CCG,6/30/2020,C&M-PMS QOF Aspiration,PRC DELEGATED CO-COMMISSIONING,DUNNINC ROAD SURGERY,32690305,"5,245.24",PRC DELEGATED CO-COMMISSIONING,S5 0AE
Department of Health,NHS Sheffield CCG,6/30/2020,C&M-PMS Contract Value,PRC DELEGATED CO-COMMISSIONING,DYKES HALL MEDICAL CENTRE,32673548,"-1,694.27",PRC DELEGATED CO-COMMISSIONING,S6 4GQ
Department of Health,NHS Sheffield CCG,6/30/2020,C&M-PMS GP Statutory Levy,PRC DELEGATED CO-COMMISSIONING,DYKES HALL MEDICAL CENTRE,32673548,-333.13,PRC DELEGATED CO-COMMISSIONING,S6 4GQ
Department of Health,NHS Sheffield CCG,6/30/2020,C&M-PMS Out of Hours Opt Outs,PRC DELEGATED CO-COMMISSIONING,DYKES HALL MEDICAL CENTRE,32673548,"-3,332.00",PRC DELEGATED CO-COMMISSIONING,S6 4GQ
Department of Health,NHS Sheffield CCG,6/30/2020,C&M-PMS QOF Aspiration,PRC DELEGATED CO-COMMISSIONING,DYKES HALL MEDICAL CENTRE,32673548,"-16,646.98",PRC DELEGATED CO-COMMISSIONING,S6 4GQ
Department of Health,NHS Sheffield CCG,6/30/2020,C&M-PMS Voluntary Levy,PRC DELEGATED CO-COMMISSIONING,DYKES HALL MEDICAL CENTRE,32673548,-47.59,PRC DELEGATED CO-COMMISSIONING,S6 4GQ
Department of Health,NHS Sheffield CCG,6/30/2020,C&M-PCN DES Support Payment,PRC DELEGATED CO-COMMISSIONING,DYKES HALL MEDICAL CENTRE,32673549,"1,595.45",PRC DELEGATED CO-COMMISSIONING,S6 4GQ
Department of Health,NHS Sheffield CCG,6/30/2020,C&M-PMS Contract Value,PRC DELEGATED CO-COMMISSIONING,DYKES HALL MEDICAL CENTRE,32673549,"71,375.17",PRC DELEGATED CO-COMMISSIONING,S6 4GQ
Department of Health,NHS Sheffield CCG,6/30/2020,C&M-PMS DES Extended Hours Access,PRC DELEGATED CO-COMMISSIONING,DYKES HALL MEDICAL CENTRE,32673549,"4,338.04",PRC DELEGATED CO-COMMISSIONING,S6 4GQ
Department of Health,NHS Sheffield CCG,6/30/2020,C&M-PMS DES Minor Surgery,PRC DELEGATED CO-COMMISSIONING,DYKES HALL MEDICAL CENTRE,32673549,480.00,PRC DELEGATED CO-COMMISSIONING,S6 4GQ
Department of Health,NHS Sheffield CCG,6/30/2020,C&M-PMS GP Statutory Levy,PRC DELEGATED CO-COMMISSIONING,DYKES HALL MEDICAL CENTRE,32673549,2.21,PRC DELEGATED CO-COMMISSIONING,S6 4GQ
Department of Health,NHS Sheffield CCG,6/30/2020,C&M-PMS Out of Hours Opt Outs,PRC DELEGATED CO-COMMISSIONING,DYKES HALL MEDICAL CENTRE,32673549,79.28,PRC DELEGATED CO-COMMISSIONING,S6 4GQ
Department of Health,NHS Sheffield CCG,6/30/2020,C&M-PMS PCN DES Clinical Director,PRC DELEGATED CO-COMMISSIONING,DYKES HALL MEDICAL CENTRE,32673549,"2,160.04",PRC DELEGATED CO-COMMISSIONING,S6 4GQ
Department of Health,NHS Sheffield CCG,6/30/2020,C&M-PMS PCN DES PCN support,LOCAL ENHANCED SERVICES,DYKES HALL MEDICAL CENTRE,32673549,"4,487.63",LOCAL ENHANCED SERVICES,S6 4GQ
Department of Health,NHS Sheffield CCG,6/30/2020,C&M-PMS PCN DES Participation,PRC DELEGATED CO-COMMISSIONING,DYKES HALL MEDICAL CENTRE,32673549,"1,355.09",PRC DELEGATED CO-COMMISSIONING,S6 4GQ
Department of Health,NHS Sheffield CCG,6/30/2020,C&M-PMS Prem Notional Rent,PRC DELEGATED CO-COMMISSIONING,DYKES HALL MEDICAL CENTRE,32673549,"5,377.08",PRC DELEGATED CO-COMMISSIONING,S6 4GQ
Department of Health,NHS Sheffield CCG,6/30/2020,C&M-PMS Prem Rates,PRC DELEGATED CO-COMMISSIONING,DYKES HALL MEDICAL CENTRE,32673549,"1,366.00",PRC DELEGATED CO-COMMISSIONING,S6 4GQ
Department of Health,NHS Sheffield CCG,6/30/2020,C&M-PMS QOF Achievement,PRC DELEGATED CO-COMMISSIONING,DYKES HALL MEDICAL CENTRE,32673549,"36,361.46",PRC DELEGATED CO-COMMISSIONING,S6 4GQ
Department of Health,NHS Sheffield CCG,6/30/2020,C&M-PMS QOF Aspiration,PRC DELEGATED CO-COMMISSIONING,DYKES HALL MEDICAL CENTRE,32673549,"24,262.13",PRC DELEGATED CO-COMMISSIONING,S6 4GQ
Department of Health,NHS Sheffield CCG,6/30/2020,C&M-PMS Contract Value,PRC DELEGATED CO-COMMISSIONING,EAST BANK MEDICAL CENTRE,32673551,"49,156.12",PRC DELEGATED CO-COMMISSIONING,S2 2AG
Department of Health,NHS Sheffield CCG,6/30/2020,C&M-PMS DES Learn Dsblty Hlth Chk,PRC DELEGATED CO-COMMISSIONING,EAST BANK MEDICAL CENTRE,32673551,"5,180.00",PRC DELEGATED CO-COMMISSIONING,S2 2AG
Department of Health,NHS Sheffield CCG,6/30/2020,C&M-PMS DES Minor Surgery,PRC DELEGATED CO-COMMISSIONING,EAST BANK MEDICAL CENTRE,32673551,630.00,PRC DELEGATED CO-COMMISSIONING,S2 2AG
Department of Health,NHS Sheffield CCG,6/30/2020,C&M-PMS PCN DES Participation,PRC DELEGATED CO-COMMISSIONING,EAST BANK MEDICAL CENTRE,32673551,937.18,PRC DELEGATED CO-COMMISSIONING,S2 2AG
Department of Health,NHS Sheffield CCG,6/30/2020,C&M-PMS Prem Notional Rent,PRC DELEGATED CO-COMMISSIONING,EAST BANK MEDICAL CENTRE,32673551,"10,583.33",PRC DELEGATED CO-COMMISSIONING,S2 2AG
Department of Health,NHS Sheffield CCG,6/30/2020,C&M-PMS Prem Rates,PRC DELEGATED CO-COMMISSIONING,EAST BANK MEDICAL CENTRE,32673551,"2,944.00",PRC DELEGATED CO-COMMISSIONING,S2 2AG
Department of Health,NHS Sheffield CCG,6/30/2020,C&M-PMS QOF Achievement,PRC DELEGATED CO-COMMISSIONING,EAST BANK MEDICAL CENTRE,32673551,"23,335.54",PRC DELEGATED CO-COMMISSIONING,S2 2AG
Department of Health,NHS Sheffield CCG,6/30/2020,C&M-PMS QOF Aspiration,PRC DELEGATED CO-COMMISSIONING,EAST BANK MEDICAL CENTRE,32673551,"15,409.23",PRC DELEGATED CO-COMMISSIONING,S2 2AG
Department of Health,NHS Sheffield CCG,6/30/2020,C&M-GMS GP Statutory Levy,PRC DELEGATED CO-COMMISSIONING,ECCLESFIELD GROUP PRACTICE,32885280,-301.60,PRC DELEGATED CO-COMMISSIONING,S35 9XQ
Department of Health,NHS Sheffield CCG,6/30/2020,C&M-GMS QOF Aspiration,PRC DELEGATED CO-COMMISSIONING,ECCLESFIELD GROUP PRACTICE,32885280,"-18,358.98",PRC DELEGATED CO-COMMISSIONING,S35 9XQ
Department of Health,NHS Sheffield CCG,6/30/2020,C&M-GMS Cost of Drugs -Prescribing,LOCAL ENHANCED SERVICES,ECCLESFIELD GROUP PRACTICE,32885281,"2,038.52",LOCAL ENHANCED SERVICES,S35 9XQ
Department of Health,NHS Sheffield CCG,6/30/2020,C&M-GMS DES Extended Hours Access,PRC DELEGATED CO-COMMISSIONING,ECCLESFIELD GROUP PRACTICE,32885281,"5,160.79",PRC DELEGATED CO-COMMISSIONING,S35 9XQ
Department of Health,NHS Sheffield CCG,6/30/2020,C&M-GMS DES Learn Dsblty Hlth Chk,PRC DELEGATED CO-COMMISSIONING,ECCLESFIELD GROUP PRACTICE,32885281,140.00,PRC DELEGATED CO-COMMISSIONING,S35 9XQ
Department of Health,NHS Sheffield CCG,6/30/2020,C&M-GMS Global Sum,PRC DELEGATED CO-COMMISSIONING,ECCLESFIELD GROUP PRACTICE,32885281,"73,114.58",PRC DELEGATED CO-COMMISSIONING,S35 9XQ
Department of Health,NHS Sheffield CCG,6/30/2020,C&M-GMS PCN DES Clinical Director,PRC DELEGATED CO-COMMISSIONING,ECCLESFIELD GROUP PRACTICE,32885281,"2,569.72",PRC DELEGATED CO-COMMISSIONING,S35 9XQ
Department of Health,NHS Sheffield CCG,6/30/2020,C&M-GMS PCN DES PCN support,LOCAL ENHANCED SERVICES,ECCLESFIELD GROUP PRACTICE,32885281,"5,338.75",LOCAL ENHANCED SERVICES,S35 9XQ
Department of Health,NHS Sheffield CCG,6/30/2020,C&M-GMS PCN DES Participation,PRC DELEGATED CO-COMMISSIONING,ECCLESFIELD GROUP PRACTICE,32885281,"1,438.45",PRC DELEGATED CO-COMMISSIONING,S35 9XQ
Department of Health,NHS Sheffield CCG,6/30/2020,C&M-GMS PCO Locum Sickness,PRC DELEGATED CO-COMMISSIONING,ECCLESFIELD GROUP PRACTICE,32885281,"4,944.31",PRC DELEGATED CO-COMMISSIONING,S35 9XQ
Department of Health,NHS Sheffield CCG,6/30/2020,C&M-GMS Prem Notional Rent,PRC DELEGATED CO-COMMISSIONING,ECCLESFIELD GROUP PRACTICE,32885281,"6,805.42",PRC DELEGATED CO-COMMISSIONING,S35 9XQ
Department of Health,NHS Sheffield CCG,6/30/2020,C&M-GMS Prem Rates,PRC DELEGATED CO-COMMISSIONING,ECCLESFIELD GROUP PRACTICE,32885281,551.00,PRC DELEGATED CO-COMMISSIONING,S35 9XQ
Department of Health,NHS Sheffield CCG,6/30/2020,C&M-GMS Prof Fees Prescribing,PRC DELEGATED CO-COMMISSIONING,ECCLESFIELD GROUP PRACTICE,32885281,149.69,PRC DELEGATED CO-COMMISSIONING,S35 9XQ
Department of Health,NHS Sheffield CCG,6/30/2020,C&M-GMS QOF Achievement,PRC DELEGATED CO-COMMISSIONING,ECCLESFIELD GROUP PRACTICE,32885281,"40,100.94",PRC DELEGATED CO-COMMISSIONING,S35 9XQ
Department of Health,NHS Sheffield CCG,6/30/2020,C&M-GMS QOF Aspiration,PRC DELEGATED CO-COMMISSIONING,ECCLESFIELD GROUP PRACTICE,32885281,"26,171.58",PRC DELEGATED CO-COMMISSIONING,S35 9XQ
Department of Health,NHS Sheffield CCG,6/30/2020,C&M-PCN DES Support Payment,PRC DELEGATED CO-COMMISSIONING,ECCLESFIELD GROUP PRACTICE,32885281,"2,071.64",PRC DELEGATED CO-COMMISSIONING,S35 9XQ
Department of Health,NHS Sheffield CCG,6/30/2020,C&M-GMS IT Comm Servs -GP Practices,PRIMARY CARE IT,EE LTD,32897600,"7,983.17",PRIMARY CARE IT,AL10 9BW
Department of Health,NHS Sheffield CCG,6/30/2020,Contract & Agency-Agency Int Mgr,QUALITY PREMIUM PROGRAMME,EE LTD,32897600,"14,793.60",QUALITY PREMIUM PROGRAMME,AL10 9BW
Department of Health,NHS Sheffield CCG,6/30/2020,Protective Clothing,QUALITY PREMIUM PROGRAMME,EE LTD,32897600,"30,000.00",QUALITY PREMIUM PROGRAMME,AL10 9BW
Department of Health,NHS Sheffield CCG,6/30/2020,C&M-GMS Cost of Drugs -Prescribing,LOCAL ENHANCED SERVICES,ELM LANE SURGERY,32885283,497.74,LOCAL ENHANCED SERVICES,S5 7TW
Department of Health,NHS Sheffield CCG,6/30/2020,C&M-GMS Global Sum,PRC DELEGATED CO-COMMISSIONING,ELM LANE SURGERY,32885283,"42,904.58",PRC DELEGATED CO-COMMISSIONING,S5 7TW
Department of Health,NHS Sheffield CCG,6/30/2020,C&M-GMS PCN DES Participation,PRC DELEGATED CO-COMMISSIONING,ELM LANE SURGERY,32885283,851.24,PRC DELEGATED CO-COMMISSIONING,S5 7TW
Department of Health,NHS Sheffield CCG,6/30/2020,C&M-GMS Prem Notional Rent,PRC DELEGATED CO-COMMISSIONING,ELM LANE SURGERY,32885283,"5,343.00",PRC DELEGATED CO-COMMISSIONING,S5 7TW
Department of Health,NHS Sheffield CCG,6/30/2020,C&M-GMS Prem Rates,PRC DELEGATED CO-COMMISSIONING,ELM LANE SURGERY,32885283,"4,582.70",PRC DELEGATED CO-COMMISSIONING,S5 7TW
Department of Health,NHS Sheffield CCG,6/30/2020,C&M-GMS Prof Fees Prescribing,PRC DELEGATED CO-COMMISSIONING,ELM LANE SURGERY,32885283,92.13,PRC DELEGATED CO-COMMISSIONING,S5 7TW
Department of Health,NHS Sheffield CCG,6/30/2020,C&M-GMS QOF Achievement,PRC DELEGATED CO-COMMISSIONING,ELM LANE SURGERY,32885283,"21,330.28",PRC DELEGATED CO-COMMISSIONING,S5 7TW
Department of Health,NHS Sheffield CCG,6/30/2020,C&M-GMS QOF Aspiration,PRC DELEGATED CO-COMMISSIONING,ELM LANE SURGERY,32885283,"14,363.31",PRC DELEGATED CO-COMMISSIONING,S5 7TW
Department of Health,NHS Sheffield CCG,6/30/2020,Cont Care-Physical Disab (<65),CHC ADULT FULLY FUNDED,FAIRWINDS HEALTH CARE LTD,32706450,"40,620.17",CHC SCHEDULE JUNE 2020 - Fairwinds Nursing Home,S61 1AJ
Department of Health,NHS Sheffield CCG,6/30/2020,C&M-PMS Contract Value,PRC DELEGATED CO-COMMISSIONING,FALKLAND HOUSE,32673555,"25,997.42",PRC DELEGATED CO-COMMISSIONING,S11 7PL
Department of Health,NHS Sheffield CCG,6/30/2020,C&M-PMS DES Minor Surgery,PRC DELEGATED CO-COMMISSIONING,FALKLAND HOUSE,32673555,535.00,PRC DELEGATED CO-COMMISSIONING,S11 7PL
Department of Health,NHS Sheffield CCG,6/30/2020,C&M-PMS GP Statutory Levy,PRC DELEGATED CO-COMMISSIONING,FALKLAND HOUSE,32673555,0.28,PRC DELEGATED CO-COMMISSIONING,S11 7PL
Department of Health,NHS Sheffield CCG,6/30/2020,C&M-PMS Out of Hours Opt Outs,PRC DELEGATED CO-COMMISSIONING,FALKLAND HOUSE,32673555,24.12,PRC DELEGATED CO-COMMISSIONING,S11 7PL
Department of Health,NHS Sheffield CCG,6/30/2020,C&M-PMS PCN DES Participation,PRC DELEGATED CO-COMMISSIONING,FALKLAND HOUSE,32673555,497.02,PRC DELEGATED CO-COMMISSIONING,S11 7PL
Department of Health,NHS Sheffield CCG,6/30/2020,C&M-PMS PCO Other,PRC DELEGATED CO-COMMISSIONING,FALKLAND HOUSE,32673555,276.50,PRC DELEGATED CO-COMMISSIONING,S11 7PL
Department of Health,NHS Sheffield CCG,6/30/2020,C&M-PMS Prem Notional Rent,PRC DELEGATED CO-COMMISSIONING,FALKLAND HOUSE,32673555,"1,866.67",PRC DELEGATED CO-COMMISSIONING,S11 7PL
Department of Health,NHS Sheffield CCG,6/30/2020,C&M-PMS Prem Rates,PRC DELEGATED CO-COMMISSIONING,FALKLAND HOUSE,32673555,786.00,PRC DELEGATED CO-COMMISSIONING,S11 7PL
Department of Health,NHS Sheffield CCG,6/30/2020,C&M-PMS QOF Achievement,PRC DELEGATED CO-COMMISSIONING,FALKLAND HOUSE,32673555,"13,143.77",PRC DELEGATED CO-COMMISSIONING,S11 7PL
Department of Health,NHS Sheffield CCG,6/30/2020,C&M-PMS QOF Aspiration,PRC DELEGATED CO-COMMISSIONING,FALKLAND HOUSE,32673555,"8,887.44",PRC DELEGATED CO-COMMISSIONING,S11 7PL
Department of Health,NHS Sheffield CCG,6/30/2020,C&M-GMS Cost of Drugs -Prescribing,LOCAL ENHANCED SERVICES,FAR LANE MEDICAL CENTRE,32885292,41.06,LOCAL ENHANCED SERVICES,S6 4FA
Department of Health,NHS Sheffield CCG,6/30/2020,C&M-GMS DES Learn Dsblty Hlth Chk,PRC DELEGATED CO-COMMISSIONING,FAR LANE MEDICAL CENTRE,32885292,700.00,PRC DELEGATED CO-COMMISSIONING,S6 4FA
Department of Health,NHS Sheffield CCG,6/30/2020,C&M-GMS Global Sum,PRC DELEGATED CO-COMMISSIONING,FAR LANE MEDICAL CENTRE,32885292,"57,482.02",PRC DELEGATED CO-COMMISSIONING,S6 4FA
Department of Health,NHS Sheffield CCG,6/30/2020,C&M-GMS PCN DES Participation,PRC DELEGATED CO-COMMISSIONING,FAR LANE MEDICAL CENTRE,32885292,"1,137.91",PRC DELEGATED CO-COMMISSIONING,S6 4FA
Department of Health,NHS Sheffield CCG,6/30/2020,C&M-GMS PCO Other,PRC DELEGATED CO-COMMISSIONING,FAR LANE MEDICAL CENTRE,32885292,460.10,PRC DELEGATED CO-COMMISSIONING,S6 4FA
Department of Health,NHS Sheffield CCG,6/30/2020,C&M-GMS Prem Notional Rent,PRC DELEGATED CO-COMMISSIONING,FAR LANE MEDICAL CENTRE,32885292,"3,462.50",PRC DELEGATED CO-COMMISSIONING,S6 4FA
Department of Health,NHS Sheffield CCG,6/30/2020,C&M-GMS Prem Rates,PRC DELEGATED CO-COMMISSIONING,FAR LANE MEDICAL CENTRE,32885292,"3,831.56",PRC DELEGATED CO-COMMISSIONING,S6 4FA
Department of Health,NHS Sheffield CCG,6/30/2020,C&M-GMS Prof Fees Prescribing,PRC DELEGATED CO-COMMISSIONING,FAR LANE MEDICAL CENTRE,32885292,11.52,PRC DELEGATED CO-COMMISSIONING,S6 4FA
Department of Health,NHS Sheffield CCG,6/30/2020,C&M-GMS QOF Achievement,PRC DELEGATED CO-COMMISSIONING,FAR LANE MEDICAL CENTRE,32885292,"29,980.05",PRC DELEGATED CO-COMMISSIONING,S6 4FA
Department of Health,NHS Sheffield CCG,6/30/2020,C&M-GMS QOF Aspiration,PRC DELEGATED CO-COMMISSIONING,FAR LANE MEDICAL CENTRE,32885292,"18,166.19",PRC DELEGATED CO-COMMISSIONING,S6 4FA
Department of Health,NHS Sheffield CCG,6/30/2020,C&M-PMS Contract Value,PRC DELEGATED CO-COMMISSIONING,FIRTH PARK SURGERY,32673552,-467.16,PRC DELEGATED CO-COMMISSIONING,S5 6HH
Department of Health,NHS Sheffield CCG,6/30/2020,C&M-PMS GP Statutory Levy,PRC DELEGATED CO-COMMISSIONING,FIRTH PARK SURGERY,32673552,-350.28,PRC DELEGATED CO-COMMISSIONING,S5 6HH
Department of Health,NHS Sheffield CCG,6/30/2020,C&M-PMS Out of Hours Opt Outs,PRC DELEGATED CO-COMMISSIONING,FIRTH PARK SURGERY,32673552,"-3,573.83",PRC DELEGATED CO-COMMISSIONING,S5 6HH
Department of Health,NHS Sheffield CCG,6/30/2020,C&M-PMS QOF Aspiration,PRC DELEGATED CO-COMMISSIONING,FIRTH PARK SURGERY,32673552,"-14,987.84",PRC DELEGATED CO-COMMISSIONING,S5 6HH
Department of Health,NHS Sheffield CCG,6/30/2020,C&M-PMS Voluntary Levy,PRC DELEGATED CO-COMMISSIONING,FIRTH PARK SURGERY,32673552,-50.04,PRC DELEGATED CO-COMMISSIONING,S5 6HH
Department of Health,NHS Sheffield CCG,6/30/2020,C&M-PMS Contract Value,PRC DELEGATED CO-COMMISSIONING,FIRTH PARK SURGERY,32673553,"74,484.92",PRC DELEGATED CO-COMMISSIONING,S5 6HH
Department of Health,NHS Sheffield CCG,6/30/2020,C&M-PMS DES Learn Dsblty Hlth Chk,PRC DELEGATED CO-COMMISSIONING,FIRTH PARK SURGERY,32673553,"3,080.00",PRC DELEGATED CO-COMMISSIONING,S5 6HH
Department of Health,NHS Sheffield CCG,6/30/2020,C&M-PMS DES Minor Surgery,PRC DELEGATED CO-COMMISSIONING,FIRTH PARK SURGERY,32673553,"2,625.00",PRC DELEGATED CO-COMMISSIONING,S5 6HH
Department of Health,NHS Sheffield CCG,6/30/2020,C&M-PMS GP Statutory Levy,PRC DELEGATED CO-COMMISSIONING,FIRTH PARK SURGERY,32673553,0.91,PRC DELEGATED CO-COMMISSIONING,S5 6HH
Department of Health,NHS Sheffield CCG,6/30/2020,C&M-PMS Out of Hours Opt Outs,PRC DELEGATED CO-COMMISSIONING,FIRTH PARK SURGERY,32673553,22.50,PRC DELEGATED CO-COMMISSIONING,S5 6HH
Department of Health,NHS Sheffield CCG,6/30/2020,C&M-PMS PCN DES Participation,PRC DELEGATED CO-COMMISSIONING,FIRTH PARK SURGERY,32673553,"1,453.48",PRC DELEGATED CO-COMMISSIONING,S5 6HH
Department of Health,NHS Sheffield CCG,6/30/2020,C&M-PMS PCO Locum Sickness,PRC DELEGATED CO-COMMISSIONING,FIRTH PARK SURGERY,32673553,"5,159.60",PRC DELEGATED CO-COMMISSIONING,S5 6HH
Department of Health,NHS Sheffield CCG,6/30/2020,C&M-PMS Prem Notional Rent,PRC DELEGATED CO-COMMISSIONING,FIRTH PARK SURGERY,32673553,"4,500.00",PRC DELEGATED CO-COMMISSIONING,S5 6HH
Department of Health,NHS Sheffield CCG,6/30/2020,C&M-PMS Prem Water Rates,PRC DELEGATED CO-COMMISSIONING,FIRTH PARK SURGERY,32673553,207.89,PRC DELEGATED CO-COMMISSIONING,S5 6HH
Department of Health,NHS Sheffield CCG,6/30/2020,C&M-PMS QOF Achievement,PRC DELEGATED CO-COMMISSIONING,FIRTH PARK SURGERY,32673553,"32,737.44",PRC DELEGATED CO-COMMISSIONING,S5 6HH
Department of Health,NHS Sheffield CCG,6/30/2020,C&M-PMS QOF Aspiration,PRC DELEGATED CO-COMMISSIONING,FIRTH PARK SURGERY,32673553,"22,275.49",PRC DELEGATED CO-COMMISSIONING,S5 6HH
Department of Health,NHS Sheffield CCG,6/30/2020,C&M-PMS GP Statutory Levy,PRC DELEGATED CO-COMMISSIONING,FORGE HEALTH GROUP,32673601,-521.68,PRC DELEGATED CO-COMMISSIONING,S3 9DL
Department of Health,NHS Sheffield CCG,6/30/2020,C&M-PMS Out of Hours Opt Outs,PRC DELEGATED CO-COMMISSIONING,FORGE HEALTH GROUP,32673601,"-5,794.14",PRC DELEGATED CO-COMMISSIONING,S3 9DL
Department of Health,NHS Sheffield CCG,6/30/2020,C&M-PMS QOF Aspiration,PRC DELEGATED CO-COMMISSIONING,FORGE HEALTH GROUP,32673601,"-13,928.48",PRC DELEGATED CO-COMMISSIONING,S3 9DL
Department of Health,NHS Sheffield CCG,6/30/2020,C&M-PMS Voluntary Levy,PRC DELEGATED CO-COMMISSIONING,FORGE HEALTH GROUP,32673601,-73.84,PRC DELEGATED CO-COMMISSIONING,S3 9DL
Department of Health,NHS Sheffield CCG,6/30/2020,C&M-PCN DES Support Payment,PRC DELEGATED CO-COMMISSIONING,FORGE HEALTH GROUP,32673602,"2,630.02",PRC DELEGATED CO-COMMISSIONING,S3 9DL
Department of Health,NHS Sheffield CCG,6/30/2020,C&M-PMS Contract Value,PRC DELEGATED CO-COMMISSIONING,FORGE HEALTH GROUP,32673602,"122,760.12",PRC DELEGATED CO-COMMISSIONING,S3 9DL
Department of Health,NHS Sheffield CCG,6/30/2020,C&M-PMS DES Extended Hours Access,PRC DELEGATED CO-COMMISSIONING,FORGE HEALTH GROUP,32673602,"6,849.44",PRC DELEGATED CO-COMMISSIONING,S3 9DL
Department of Health,NHS Sheffield CCG,6/30/2020,C&M-PMS DES Learn Dsblty Hlth Chk,PRC DELEGATED CO-COMMISSIONING,FORGE HEALTH GROUP,32673602,"2,100.00",PRC DELEGATED CO-COMMISSIONING,S3 9DL
Department of Health,NHS Sheffield CCG,6/30/2020,C&M-PMS DES Minor Surgery,PRC DELEGATED CO-COMMISSIONING,FORGE HEALTH GROUP,32673602,"2,500.00",PRC DELEGATED CO-COMMISSIONING,S3 9DL
Department of Health,NHS Sheffield CCG,6/30/2020,C&M-PMS PCN DES Clinical Director,PRC DELEGATED CO-COMMISSIONING,FORGE HEALTH GROUP,32673602,"3,410.55",PRC DELEGATED CO-COMMISSIONING,S3 9DL
Department of Health,NHS Sheffield CCG,6/30/2020,C&M-PMS PCN DES PCN support,LOCAL ENHANCED SERVICES,FORGE HEALTH GROUP,32673602,"7,085.63",LOCAL ENHANCED SERVICES,S3 9DL
Department of Health,NHS Sheffield CCG,6/30/2020,C&M-PMS PCN DES Participation,PRC DELEGATED CO-COMMISSIONING,FORGE HEALTH GROUP,32673602,"2,286.18",PRC DELEGATED CO-COMMISSIONING,S3 9DL
Department of Health,NHS Sheffield CCG,6/30/2020,C&M-PMS Prem Healthcentre Rent,PRC DELEGATED CO-COMMISSIONING,FORGE HEALTH GROUP,32673602,"33,928.01",PRC DELEGATED CO-COMMISSIONING,S3 9DL
Department of Health,NHS Sheffield CCG,6/30/2020,C&M-PMS Prem Notional Rent,PRC DELEGATED CO-COMMISSIONING,FORGE HEALTH GROUP,32673602,"9,650.00",PRC DELEGATED CO-COMMISSIONING,S3 9DL
Department of Health,NHS Sheffield CCG,6/30/2020,C&M-PMS QOF Achievement,PRC DELEGATED CO-COMMISSIONING,FORGE HEALTH GROUP,32673602,"36,223.77",PRC DELEGATED CO-COMMISSIONING,S3 9DL
Department of Health,NHS Sheffield CCG,6/30/2020,C&M-PMS QOF Aspiration,PRC DELEGATED CO-COMMISSIONING,FORGE HEALTH GROUP,32673602,"33,591.00",PRC DELEGATED CO-COMMISSIONING,S3 9DL
Department of Health,NHS Sheffield CCG,6/30/2020,Cont Care-Physical Disab (<65),CHC ADULT FULLY FUNDED,FOUR SEASONS HEALTH CARE LTD,32706440,"33,397.31",CHC SCHEDULE JUNE 2020 - Balmoral Nursing Home (Four Seasons HC),DL1 1RW
Department of Health,NHS Sheffield CCG,6/30/2020,Cont Care-Physical Disab (<65),CHC ADULT FULLY FUNDED,FOUR SEASONS HEALTH CARE LTD,32706455,"32,226.94",CHC SCHEDULE JUNE 2020 - Henleigh Hall Nursing Home,DL1 1RW
Department of Health,NHS Sheffield CCG,6/30/2020,C&M-PMS Contract Value,PRC DELEGATED CO-COMMISSIONING,FOXHILL MEDICAL CENTRE SHEFFIELD,32673599,-833.01,PRC DELEGATED CO-COMMISSIONING,S6 1GA
Department of Health,NHS Sheffield CCG,6/30/2020,C&M-PMS GP Statutory Levy,PRC DELEGATED CO-COMMISSIONING,FOXHILL MEDICAL CENTRE SHEFFIELD,32673599,-213.36,PRC DELEGATED CO-COMMISSIONING,S6 1GA
Department of Health,NHS Sheffield CCG,6/30/2020,C&M-PMS Out of Hours Opt Outs,PRC DELEGATED CO-COMMISSIONING,FOXHILL MEDICAL CENTRE SHEFFIELD,32673599,"-2,413.00",PRC DELEGATED CO-COMMISSIONING,S6 1GA
Department of Health,NHS Sheffield CCG,6/30/2020,C&M-PMS QOF Aspiration,PRC DELEGATED CO-COMMISSIONING,FOXHILL MEDICAL CENTRE SHEFFIELD,32673599,"-11,237.74",PRC DELEGATED CO-COMMISSIONING,S6 1GA
Department of Health,NHS Sheffield CCG,6/30/2020,C&M-PMS Voluntary Levy,PRC DELEGATED CO-COMMISSIONING,FOXHILL MEDICAL CENTRE SHEFFIELD,32673599,-30.48,PRC DELEGATED CO-COMMISSIONING,S6 1GA
Department of Health,NHS Sheffield CCG,6/30/2020,C&M-PMS Contract Value,PRC DELEGATED CO-COMMISSIONING,FOXHILL MEDICAL CENTRE SHEFFIELD,32673600,"51,760.92",PRC DELEGATED CO-COMMISSIONING,S6 1GA
Department of Health,NHS Sheffield CCG,6/30/2020,C&M-PMS DES Learn Dsblty Hlth Chk,PRC DELEGATED CO-COMMISSIONING,FOXHILL MEDICAL CENTRE SHEFFIELD,32673600,"2,520.00",PRC DELEGATED CO-COMMISSIONING,S6 1GA
Department of Health,NHS Sheffield CCG,6/30/2020,C&M-PMS DES Minor Surgery,PRC DELEGATED CO-COMMISSIONING,FOXHILL MEDICAL CENTRE SHEFFIELD,32673600,830.00,PRC DELEGATED CO-COMMISSIONING,S6 1GA
Department of Health,NHS Sheffield CCG,6/30/2020,C&M-PMS GP Statutory Levy,PRC DELEGATED CO-COMMISSIONING,FOXHILL MEDICAL CENTRE SHEFFIELD,32673600,1.23,PRC DELEGATED CO-COMMISSIONING,S6 1GA
Department of Health,NHS Sheffield CCG,6/30/2020,C&M-PMS Out of Hours Opt Outs,PRC DELEGATED CO-COMMISSIONING,FOXHILL MEDICAL CENTRE SHEFFIELD,32673600,38.99,PRC DELEGATED CO-COMMISSIONING,S6 1GA
Department of Health,NHS Sheffield CCG,6/30/2020,C&M-PMS PCN DES Participation,PRC DELEGATED CO-COMMISSIONING,FOXHILL MEDICAL CENTRE SHEFFIELD,32673600,980.95,PRC DELEGATED CO-COMMISSIONING,S6 1GA
Department of Health,NHS Sheffield CCG,6/30/2020,C&M-PMS Prem Healthcentre Rent,PRC DELEGATED CO-COMMISSIONING,FOXHILL MEDICAL CENTRE SHEFFIELD,32673600,"46,647.08",PRC DELEGATED CO-COMMISSIONING,S6 1GA
Department of Health,NHS Sheffield CCG,6/30/2020,C&M-PMS QOF Achievement,PRC DELEGATED CO-COMMISSIONING,FOXHILL MEDICAL CENTRE SHEFFIELD,32673600,"24,546.24",PRC DELEGATED CO-COMMISSIONING,S6 1GA
Department of Health,NHS Sheffield CCG,6/30/2020,C&M-PMS QOF Aspiration,PRC DELEGATED CO-COMMISSIONING,FOXHILL MEDICAL CENTRE SHEFFIELD,32673600,"16,288.23",PRC DELEGATED CO-COMMISSIONING,S6 1GA
Department of Health,NHS Sheffield CCG,6/30/2020,C&M-PMS Contract Value,PRC DELEGATED CO-COMMISSIONING,GLEADLESS MEDICAL CENTRE,32673556,-740.09,PRC DELEGATED CO-COMMISSIONING,S14 1PQ
Department of Health,NHS Sheffield CCG,6/30/2020,C&M-PMS GP Statutory Levy,PRC DELEGATED CO-COMMISSIONING,GLEADLESS MEDICAL CENTRE,32673556,-312.13,PRC DELEGATED CO-COMMISSIONING,S14 1PQ
Department of Health,NHS Sheffield CCG,6/30/2020,C&M-PMS Out of Hours Opt Outs,PRC DELEGATED CO-COMMISSIONING,GLEADLESS MEDICAL CENTRE,32673556,"-3,233.92",PRC DELEGATED CO-COMMISSIONING,S14 1PQ
Department of Health,NHS Sheffield CCG,6/30/2020,C&M-PMS QOF Aspiration,PRC DELEGATED CO-COMMISSIONING,GLEADLESS MEDICAL CENTRE,32673556,"-15,421.80",PRC DELEGATED CO-COMMISSIONING,S14 1PQ
Department of Health,NHS Sheffield CCG,6/30/2020,C&M-PMS Voluntary Levy,PRC DELEGATED CO-COMMISSIONING,GLEADLESS MEDICAL CENTRE,32673556,-44.59,PRC DELEGATED CO-COMMISSIONING,S14 1PQ
Department of Health,NHS Sheffield CCG,6/30/2020,C&M-PMS Contract Value,PRC DELEGATED CO-COMMISSIONING,GLEADLESS MEDICAL CENTRE,32673557,"69,389.67",PRC DELEGATED CO-COMMISSIONING,S14 1PQ
Department of Health,NHS Sheffield CCG,6/30/2020,C&M-PMS DES Learn Dsblty Hlth Chk,PRC DELEGATED CO-COMMISSIONING,GLEADLESS MEDICAL CENTRE,32673557,"3,780.00",PRC DELEGATED CO-COMMISSIONING,S14 1PQ
Department of Health,NHS Sheffield CCG,6/30/2020,C&M-PMS DES Minor Surgery,PRC DELEGATED CO-COMMISSIONING,GLEADLESS MEDICAL CENTRE,32673557,240.00,PRC DELEGATED CO-COMMISSIONING,S14 1PQ
Department of Health,NHS Sheffield CCG,6/30/2020,C&M-PMS GP Statutory Levy,PRC DELEGATED CO-COMMISSIONING,GLEADLESS MEDICAL CENTRE,32673557,0.07,PRC DELEGATED CO-COMMISSIONING,S14 1PQ
Department of Health,NHS Sheffield CCG,6/30/2020,C&M-PMS Out of Hours Opt Outs,PRC DELEGATED CO-COMMISSIONING,GLEADLESS MEDICAL CENTRE,32673557,34.61,PRC DELEGATED CO-COMMISSIONING,S14 1PQ
Department of Health,NHS Sheffield CCG,6/30/2020,C&M-PMS PCN DES Participation,PRC DELEGATED CO-COMMISSIONING,GLEADLESS MEDICAL CENTRE,32673557,"1,315.26",PRC DELEGATED CO-COMMISSIONING,S14 1PQ
Department of Health,NHS Sheffield CCG,6/30/2020,C&M-PMS PCO Other,PRC DELEGATED CO-COMMISSIONING,GLEADLESS MEDICAL CENTRE,32673557,559.20,PRC DELEGATED CO-COMMISSIONING,S14 1PQ
Department of Health,NHS Sheffield CCG,6/30/2020,C&M-PMS Prem Notional Rent,PRC DELEGATED CO-COMMISSIONING,GLEADLESS MEDICAL CENTRE,32673557,"6,750.00",PRC DELEGATED CO-COMMISSIONING,S14 1PQ
Department of Health,NHS Sheffield CCG,6/30/2020,C&M-PMS Prem Rates,PRC DELEGATED CO-COMMISSIONING,GLEADLESS MEDICAL CENTRE,32673557,"1,684.00",PRC DELEGATED CO-COMMISSIONING,S14 1PQ
Department of Health,NHS Sheffield CCG,6/30/2020,C&M-PMS Prem Water Rates,PRC DELEGATED CO-COMMISSIONING,GLEADLESS MEDICAL CENTRE,32673557,407.34,PRC DELEGATED CO-COMMISSIONING,S14 1PQ
Department of Health,NHS Sheffield CCG,6/30/2020,C&M-PMS QOF Achievement,PRC DELEGATED CO-COMMISSIONING,GLEADLESS MEDICAL CENTRE,32673557,"33,685.34",PRC DELEGATED CO-COMMISSIONING,S14 1PQ
Department of Health,NHS Sheffield CCG,6/30/2020,C&M-PMS QOF Aspiration,PRC DELEGATED CO-COMMISSIONING,GLEADLESS MEDICAL CENTRE,32673557,"22,171.59",PRC DELEGATED CO-COMMISSIONING,S14 1PQ
Department of Health,NHS Sheffield CCG,6/30/2020,C&M-GMS GP Statutory Levy,PRC DELEGATED CO-COMMISSIONING,GRENOSIDE SURGERY,32885299,-268.17,PRC DELEGATED CO-COMMISSIONING,S35 8NX
Department of Health,NHS Sheffield CCG,6/30/2020,C&M-GMS QOF Aspiration,PRC DELEGATED CO-COMMISSIONING,GRENOSIDE SURGERY,32885299,"-11,373.70",PRC DELEGATED CO-COMMISSIONING,S35 8NX
Department of Health,NHS Sheffield CCG,6/30/2020,C&M-GMS Cost of Drugs -Prescribing,LOCAL ENHANCED SERVICES,GRENOSIDE SURGERY,32885300,893.32,LOCAL ENHANCED SERVICES,S35 8NX
Department of Health,NHS Sheffield CCG,6/30/2020,C&M-GMS Global Sum,PRC DELEGATED CO-COMMISSIONING,GRENOSIDE SURGERY,32885300,"62,273.39",PRC DELEGATED CO-COMMISSIONING,S35 8NX
Department of Health,NHS Sheffield CCG,6/30/2020,C&M-GMS PCN DES Participation,PRC DELEGATED CO-COMMISSIONING,GRENOSIDE SURGERY,32885300,"1,220.08",PRC DELEGATED CO-COMMISSIONING,S35 8NX
Department of Health,NHS Sheffield CCG,6/30/2020,C&M-GMS PCO Locum Sickness,PRC DELEGATED CO-COMMISSIONING,GRENOSIDE SURGERY,32885300,"10,640.98",PRC DELEGATED CO-COMMISSIONING,S35 8NX
Department of Health,NHS Sheffield CCG,6/30/2020,C&M-GMS Prem Notional Rent,PRC DELEGATED CO-COMMISSIONING,GRENOSIDE SURGERY,32885300,"8,110.42",PRC DELEGATED CO-COMMISSIONING,S35 8NX
Department of Health,NHS Sheffield CCG,6/30/2020,C&M-GMS Prem Rates,PRC DELEGATED CO-COMMISSIONING,GRENOSIDE SURGERY,32885300,"2,109.00",PRC DELEGATED CO-COMMISSIONING,S35 8NX
Department of Health,NHS Sheffield CCG,6/30/2020,C&M-GMS Prof Fees Prescribing,PRC DELEGATED CO-COMMISSIONING,GRENOSIDE SURGERY,32885300,29.94,PRC DELEGATED CO-COMMISSIONING,S35 8NX
Department of Health,NHS Sheffield CCG,6/30/2020,C&M-GMS QOF Achievement,PRC DELEGATED CO-COMMISSIONING,GRENOSIDE SURGERY,32885300,"26,883.48",PRC DELEGATED CO-COMMISSIONING,S35 8NX
Department of Health,NHS Sheffield CCG,6/30/2020,C&M-GMS QOF Aspiration,PRC DELEGATED CO-COMMISSIONING,GRENOSIDE SURGERY,32885300,"17,522.87",PRC DELEGATED CO-COMMISSIONING,S35 8NX
Department of Health,NHS Sheffield CCG,6/30/2020,C&M-GMS Cost of Drugs -Prescribing,LOCAL ENHANCED SERVICES,GREYSTONES MEDICAL CENTRE,32885302,28.68,LOCAL ENHANCED SERVICES,S11 7BJ
Department of Health,NHS Sheffield CCG,6/30/2020,C&M-GMS Global Sum,PRC DELEGATED CO-COMMISSIONING,GREYSTONES MEDICAL CENTRE,32885302,"20,367.90",PRC DELEGATED CO-COMMISSIONING,S11 7BJ
Department of Health,NHS Sheffield CCG,6/30/2020,C&M-GMS PCN DES Participation,PRC DELEGATED CO-COMMISSIONING,GREYSTONES MEDICAL CENTRE,32885302,406.83,PRC DELEGATED CO-COMMISSIONING,S11 7BJ
Department of Health,NHS Sheffield CCG,6/30/2020,C&M-GMS PCO Other,PRC DELEGATED CO-COMMISSIONING,GREYSTONES MEDICAL CENTRE,32885302,264.20,PRC DELEGATED CO-COMMISSIONING,S11 7BJ
Department of Health,NHS Sheffield CCG,6/30/2020,C&M-GMS Prem Notional Rent,PRC DELEGATED CO-COMMISSIONING,GREYSTONES MEDICAL CENTRE,32885302,"2,885.42",PRC DELEGATED CO-COMMISSIONING,S11 7BJ
Department of Health,NHS Sheffield CCG,6/30/2020,C&M-GMS Prem Rates,PRC DELEGATED CO-COMMISSIONING,GREYSTONES MEDICAL CENTRE,32885302,707.00,PRC DELEGATED CO-COMMISSIONING,S11 7BJ
Department of Health,NHS Sheffield CCG,6/30/2020,C&M-GMS Prof Fees Prescribing,PRC DELEGATED CO-COMMISSIONING,GREYSTONES MEDICAL CENTRE,32885302,4.61,PRC DELEGATED CO-COMMISSIONING,S11 7BJ
Department of Health,NHS Sheffield CCG,6/30/2020,C&M-GMS QOF Achievement,PRC DELEGATED CO-COMMISSIONING,GREYSTONES MEDICAL CENTRE,32885302,"10,111.92",PRC DELEGATED CO-COMMISSIONING,S11 7BJ
Department of Health,NHS Sheffield CCG,6/30/2020,C&M-GMS QOF Aspiration,PRC DELEGATED CO-COMMISSIONING,GREYSTONES MEDICAL CENTRE,32885302,"6,905.34",PRC DELEGATED CO-COMMISSIONING,S11 7BJ
Department of Health,NHS Sheffield CCG,6/30/2020,C&M-PMS Contract Value,PRC DELEGATED CO-COMMISSIONING,HACKENTHORPE MEDICAL CENTRE,32673559,"49,218.24",PRC DELEGATED CO-COMMISSIONING,S12 4LA
Department of Health,NHS Sheffield CCG,6/30/2020,C&M-PMS DES Learn Dsblty Hlth Chk,PRC DELEGATED CO-COMMISSIONING,HACKENTHORPE MEDICAL CENTRE,32673559,840.00,PRC DELEGATED CO-COMMISSIONING,S12 4LA
Department of Health,NHS Sheffield CCG,6/30/2020,C&M-PMS DES Minor Surgery,PRC DELEGATED CO-COMMISSIONING,HACKENTHORPE MEDICAL CENTRE,32673559,960.00,PRC DELEGATED CO-COMMISSIONING,S12 4LA
Department of Health,NHS Sheffield CCG,6/30/2020,C&M-PMS PCN DES Participation,PRC DELEGATED CO-COMMISSIONING,HACKENTHORPE MEDICAL CENTRE,32673559,925.92,PRC DELEGATED CO-COMMISSIONING,S12 4LA
Department of Health,NHS Sheffield CCG,6/30/2020,C&M-PMS PCO Other,PRC DELEGATED CO-COMMISSIONING,HACKENTHORPE MEDICAL CENTRE,32673559,435.70,PRC DELEGATED CO-COMMISSIONING,S12 4LA
Department of Health,NHS Sheffield CCG,6/30/2020,C&M-PMS Prem Notional Rent,PRC DELEGATED CO-COMMISSIONING,HACKENTHORPE MEDICAL CENTRE,32673559,"5,116.67",PRC DELEGATED CO-COMMISSIONING,S12 4LA
Department of Health,NHS Sheffield CCG,6/30/2020,C&M-PMS Prem Rates,PRC DELEGATED CO-COMMISSIONING,HACKENTHORPE MEDICAL CENTRE,32673559,"1,385.00",PRC DELEGATED CO-COMMISSIONING,S12 4LA
Department of Health,NHS Sheffield CCG,6/30/2020,C&M-PMS Prem Water Rates,PRC DELEGATED CO-COMMISSIONING,HACKENTHORPE MEDICAL CENTRE,32673559,76.11,PRC DELEGATED CO-COMMISSIONING,S12 4LA
Department of Health,NHS Sheffield CCG,6/30/2020,C&M-PMS QOF Achievement,PRC DELEGATED CO-COMMISSIONING,HACKENTHORPE MEDICAL CENTRE,32673559,"28,519.48",PRC DELEGATED CO-COMMISSIONING,S12 4LA
Department of Health,NHS Sheffield CCG,6/30/2020,C&M-PMS QOF Aspiration,PRC DELEGATED CO-COMMISSIONING,HACKENTHORPE MEDICAL CENTRE,32673559,"19,472.16",PRC DELEGATED CO-COMMISSIONING,S12 4LA
Department of Health,NHS Sheffield CCG,6/30/2020,C&M-GMS GP Statutory Levy,PRC DELEGATED CO-COMMISSIONING,HANDSWORTH MEDICAL PRACTICE SHEFFIELD,32885297,-362.99,PRC DELEGATED CO-COMMISSIONING,S13 9BZ
Department of Health,NHS Sheffield CCG,6/30/2020,C&M-GMS QOF Aspiration,PRC DELEGATED CO-COMMISSIONING,HANDSWORTH MEDICAL PRACTICE SHEFFIELD,32885297,"-15,622.58",PRC DELEGATED CO-COMMISSIONING,S13 9BZ
Department of Health,NHS Sheffield CCG,6/30/2020,C&M-GMS Cost of Drugs -Prescribing,LOCAL ENHANCED SERVICES,HANDSWORTH MEDICAL PRACTICE SHEFFIELD,32885298,174.68,LOCAL ENHANCED SERVICES,S13 9BZ
Department of Health,NHS Sheffield CCG,6/30/2020,C&M-GMS DES Learn Dsblty Hlth Chk,PRC DELEGATED CO-COMMISSIONING,HANDSWORTH MEDICAL PRACTICE SHEFFIELD,32885298,"2,240.00",PRC DELEGATED CO-COMMISSIONING,S13 9BZ
Department of Health,NHS Sheffield CCG,6/30/2020,C&M-GMS Global Sum,PRC DELEGATED CO-COMMISSIONING,HANDSWORTH MEDICAL PRACTICE SHEFFIELD,32885298,"81,694.44",PRC DELEGATED CO-COMMISSIONING,S13 9BZ
Department of Health,NHS Sheffield CCG,6/30/2020,C&M-GMS PCN DES Participation,PRC DELEGATED CO-COMMISSIONING,HANDSWORTH MEDICAL PRACTICE SHEFFIELD,32885298,"1,599.78",PRC DELEGATED CO-COMMISSIONING,S13 9BZ
Department of Health,NHS Sheffield CCG,6/30/2020,C&M-GMS Prem Notional Rent,PRC DELEGATED CO-COMMISSIONING,HANDSWORTH MEDICAL PRACTICE SHEFFIELD,32885298,"3,321.66",PRC DELEGATED CO-COMMISSIONING,S13 9BZ
Department of Health,NHS Sheffield CCG,6/30/2020,C&M-GMS Prem Rates,PRC DELEGATED CO-COMMISSIONING,HANDSWORTH MEDICAL PRACTICE SHEFFIELD,32885298,"1,299.80",PRC DELEGATED CO-COMMISSIONING,S13 9BZ
Department of Health,NHS Sheffield CCG,6/30/2020,C&M-GMS Prof Fees Prescribing,PRC DELEGATED CO-COMMISSIONING,HANDSWORTH MEDICAL PRACTICE SHEFFIELD,32885298,119.75,PRC DELEGATED CO-COMMISSIONING,S13 9BZ
Department of Health,NHS Sheffield CCG,6/30/2020,C&M-GMS QOF Achievement,PRC DELEGATED CO-COMMISSIONING,HANDSWORTH MEDICAL PRACTICE SHEFFIELD,32885298,"34,373.51",PRC DELEGATED CO-COMMISSIONING,S13 9BZ
Department of Health,NHS Sheffield CCG,6/30/2020,C&M-GMS QOF Aspiration,PRC DELEGATED CO-COMMISSIONING,HANDSWORTH MEDICAL PRACTICE SHEFFIELD,32885298,"23,598.72",PRC DELEGATED CO-COMMISSIONING,S13 9BZ
Department of Health,NHS Sheffield CCG,6/30/2020,C&M-GMS Global Sum,PRC DELEGATED CO-COMMISSIONING,HAROLD STREET MEDICAL CENTRE,32885295,"20,162.42",PRC DELEGATED CO-COMMISSIONING,S6 3QW
Department of Health,NHS Sheffield CCG,6/30/2020,C&M-GMS PCN DES Participation,PRC DELEGATED CO-COMMISSIONING,HAROLD STREET MEDICAL CENTRE,32885295,405.11,PRC DELEGATED CO-COMMISSIONING,S6 3QW
Department of Health,NHS Sheffield CCG,6/30/2020,C&M-GMS PCO Other,PRC DELEGATED CO-COMMISSIONING,HAROLD STREET MEDICAL CENTRE,32885295,656.70,PRC DELEGATED CO-COMMISSIONING,S6 3QW
Department of Health,NHS Sheffield CCG,6/30/2020,C&M-GMS Prem Notional Rent,PRC DELEGATED CO-COMMISSIONING,HAROLD STREET MEDICAL CENTRE,32885295,"2,337.50",PRC DELEGATED CO-COMMISSIONING,S6 3QW
Department of Health,NHS Sheffield CCG,6/30/2020,C&M-GMS QOF Aspiration,PRC DELEGATED CO-COMMISSIONING,HAROLD STREET MEDICAL CENTRE,32885295,"4,110.29",PRC DELEGATED CO-COMMISSIONING,S6 3QW
Department of Health,NHS Sheffield CCG,6/30/2020,C&M-GMS Cost of Drugs -Prescribing,LOCAL ENHANCED SERVICES,HEALTH CARE SURGERY,32885308,416.57,LOCAL ENHANCED SERVICES,S5 8GS
Department of Health,NHS Sheffield CCG,6/30/2020,C&M-GMS Global Sum,PRC DELEGATED CO-COMMISSIONING,HEALTH CARE SURGERY,32885308,"40,870.32",PRC DELEGATED CO-COMMISSIONING,S5 8GS
Department of Health,NHS Sheffield CCG,6/30/2020,C&M-GMS PCN DES Participation,PRC DELEGATED CO-COMMISSIONING,HEALTH CARE SURGERY,32885308,802.32,PRC DELEGATED CO-COMMISSIONING,S5 8GS
Department of Health,NHS Sheffield CCG,6/30/2020,C&M-GMS PCO Other,PRC DELEGATED CO-COMMISSIONING,HEALTH CARE SURGERY,32885308,337.00,PRC DELEGATED CO-COMMISSIONING,S5 8GS
Department of Health,NHS Sheffield CCG,6/30/2020,C&M-GMS Prem Notional Rent,PRC DELEGATED CO-COMMISSIONING,HEALTH CARE SURGERY,32885308,"3,862.50",PRC DELEGATED CO-COMMISSIONING,S5 8GS
Department of Health,NHS Sheffield CCG,6/30/2020,C&M-GMS Prem Rates,PRC DELEGATED CO-COMMISSIONING,HEALTH CARE SURGERY,32885308,755.00,PRC DELEGATED CO-COMMISSIONING,S5 8GS
Department of Health,NHS Sheffield CCG,6/30/2020,C&M-GMS Prof Fees Prescribing,PRC DELEGATED CO-COMMISSIONING,HEALTH CARE SURGERY,32885308,80.61,PRC DELEGATED CO-COMMISSIONING,S5 8GS
Department of Health,NHS Sheffield CCG,6/30/2020,C&M-GMS QOF Achievement,PRC DELEGATED CO-COMMISSIONING,HEALTH CARE SURGERY,32885308,"22,238.23",PRC DELEGATED CO-COMMISSIONING,S5 8GS
Department of Health,NHS Sheffield CCG,6/30/2020,C&M-GMS QOF Aspiration,PRC DELEGATED CO-COMMISSIONING,HEALTH CARE SURGERY,32885308,"13,062.99",PRC DELEGATED CO-COMMISSIONING,S5 8GS
Department of Health,NHS Sheffield CCG,6/30/2020,C&M-GMS Cost of Drugs -Prescribing,LOCAL ENHANCED SERVICES,HEELEY GREEN SURGERY,32885304,881.50,LOCAL ENHANCED SERVICES,S2 3AJ
Department of Health,NHS Sheffield CCG,6/30/2020,C&M-GMS DES Learn Dsblty Hlth Chk,PRC DELEGATED CO-COMMISSIONING,HEELEY GREEN SURGERY,32885304,980.00,PRC DELEGATED CO-COMMISSIONING,S2 3AJ
Department of Health,NHS Sheffield CCG,6/30/2020,C&M-GMS Global Sum,PRC DELEGATED CO-COMMISSIONING,HEELEY GREEN SURGERY,32885304,"42,858.71",PRC DELEGATED CO-COMMISSIONING,S2 3AJ
Department of Health,NHS Sheffield CCG,6/30/2020,C&M-GMS PCN DES Participation,PRC DELEGATED CO-COMMISSIONING,HEELEY GREEN SURGERY,32885304,857.46,PRC DELEGATED CO-COMMISSIONING,S2 3AJ
Department of Health,NHS Sheffield CCG,6/30/2020,C&M-GMS Prem Notional Rent,PRC DELEGATED CO-COMMISSIONING,HEELEY GREEN SURGERY,32885304,"3,254.17",PRC DELEGATED CO-COMMISSIONING,S2 3AJ
Department of Health,NHS Sheffield CCG,6/30/2020,C&M-GMS Prof Fees Prescribing,PRC DELEGATED CO-COMMISSIONING,HEELEY GREEN SURGERY,32885304,57.57,PRC DELEGATED CO-COMMISSIONING,S2 3AJ
Department of Health,NHS Sheffield CCG,6/30/2020,C&M-GMS QOF Achievement,PRC DELEGATED CO-COMMISSIONING,HEELEY GREEN SURGERY,32885304,"20,571.50",PRC DELEGATED CO-COMMISSIONING,S2 3AJ
Department of Health,NHS Sheffield CCG,6/30/2020,C&M-GMS QOF Aspiration,PRC DELEGATED CO-COMMISSIONING,HEELEY GREEN SURGERY,32885304,"12,979.49",PRC DELEGATED CO-COMMISSIONING,S2 3AJ
Department of Health,NHS Sheffield CCG,6/30/2020,C&M-GMS Cost of Drugs -Prescribing,LOCAL ENHANCED SERVICES,HOLLIES MEDICAL CENTRE,32885306,65.54,LOCAL ENHANCED SERVICES,S11 9AL
Department of Health,NHS Sheffield CCG,6/30/2020,C&M-GMS DES Learn Dsblty Hlth Chk,PRC DELEGATED CO-COMMISSIONING,HOLLIES MEDICAL CENTRE,32885306,560.00,PRC DELEGATED CO-COMMISSIONING,S11 9AL
Department of Health,NHS Sheffield CCG,6/30/2020,C&M-GMS Global Sum,PRC DELEGATED CO-COMMISSIONING,HOLLIES MEDICAL CENTRE,32885306,"64,319.97",PRC DELEGATED CO-COMMISSIONING,S11 9AL
Department of Health,NHS Sheffield CCG,6/30/2020,C&M-GMS PCN DES Participation,PRC DELEGATED CO-COMMISSIONING,HOLLIES MEDICAL CENTRE,32885306,"1,246.56",PRC DELEGATED CO-COMMISSIONING,S11 9AL
Department of Health,NHS Sheffield CCG,6/30/2020,C&M-GMS PCO Seniority,PRC DELEGATED CO-COMMISSIONING,HOLLIES MEDICAL CENTRE,32885306,"5,968.55",PRC DELEGATED CO-COMMISSIONING,S11 9AL
Department of Health,NHS Sheffield CCG,6/30/2020,C&M-GMS Prem Notional Rent,PRC DELEGATED CO-COMMISSIONING,HOLLIES MEDICAL CENTRE,32885306,"3,229.17",PRC DELEGATED CO-COMMISSIONING,S11 9AL
Department of Health,NHS Sheffield CCG,6/30/2020,C&M-GMS Prof Fees Prescribing,PRC DELEGATED CO-COMMISSIONING,HOLLIES MEDICAL CENTRE,32885306,20.73,PRC DELEGATED CO-COMMISSIONING,S11 9AL
Department of Health,NHS Sheffield CCG,6/30/2020,C&M-GMS QOF Achievement,PRC DELEGATED CO-COMMISSIONING,HOLLIES MEDICAL CENTRE,32885306,"35,238.51",PRC DELEGATED CO-COMMISSIONING,S11 9AL
Department of Health,NHS Sheffield CCG,6/30/2020,C&M-GMS QOF Aspiration,PRC DELEGATED CO-COMMISSIONING,HOLLIES MEDICAL CENTRE,32885306,"21,946.59",PRC DELEGATED CO-COMMISSIONING,S11 9AL
Department of Health,NHS Sheffield CCG,6/30/2020,Cont Care-Physical Disab (<65),CHC ADULT FULLY FUNDED,HORIZON CARE HOMES LTD,32706484,"31,581.37",CHC SCHEDULE JUNE 2020 - Wood Hill Grange (Horizon Care Homes),S25 3QA
Department of Health,NHS Sheffield CCG,6/30/2020,Cont Care-Physical Disab (<65),CHC ADULT FULLY FUNDED,HORIZON CARE HOMES LTD,32706513,"31,835.33",CHC SCHEDULE JUNE 2020 - Wood Hill House,S25 3QA
Department of Health,NHS Sheffield CCG,6/30/2020,Cont Care-Physical Disab (<65),CHC ADULT FULLY FUNDED,HORIZON CARE HOMES LTD,32706517,"59,249.13",CHC SCHEDULE JUNE 2020 - Wood Hill Lodge,S25 3QA
Department of Health,NHS Sheffield CCG,6/30/2020,Cont Care-Physical Disab (<65),CHC ADULT FULLY FUNDED,INLET LTD,32706524,"71,259.18",CHC SCHEDULE JUNE 2020 - Loxley Court (Inlet Ltd),S48NB
Department of Health,NHS Sheffield CCG,6/30/2020,Cont Care-Physical Disab (<65),CHC ADULT FULLY FUNDED,INLET LTD,32745108,"86,922.71",CHC MAY SCHEDULE 2020 - Loxley Court (Inlet Ltd.),S48NB
Department of Health,NHS Sheffield CCG,6/30/2020,C&M-PCN DES Support Payment,PRC DELEGATED CO-COMMISSIONING,JAUNTY SPRINGS HEALTH CENTRE,32673561,"1,639.52",PRC DELEGATED CO-COMMISSIONING,S12 3DZ
Department of Health,NHS Sheffield CCG,6/30/2020,C&M-PMS Contract Value,PRC DELEGATED CO-COMMISSIONING,JAUNTY SPRINGS HEALTH CENTRE,32673561,"31,178.75",PRC DELEGATED CO-COMMISSIONING,S12 3DZ
Department of Health,NHS Sheffield CCG,6/30/2020,C&M-PMS DES Extended Hours Access,PRC DELEGATED CO-COMMISSIONING,JAUNTY SPRINGS HEALTH CENTRE,32673561,"4,214.06",PRC DELEGATED CO-COMMISSIONING,S12 3DZ
Department of Health,NHS Sheffield CCG,6/30/2020,C&M-PMS DES Learn Dsblty Hlth Chk,PRC DELEGATED CO-COMMISSIONING,JAUNTY SPRINGS HEALTH CENTRE,32673561,140.00,PRC DELEGATED CO-COMMISSIONING,S12 3DZ
Department of Health,NHS Sheffield CCG,6/30/2020,C&M-PMS DES Minor Surgery,PRC DELEGATED CO-COMMISSIONING,JAUNTY SPRINGS HEALTH CENTRE,32673561,160.00,PRC DELEGATED CO-COMMISSIONING,S12 3DZ
Department of Health,NHS Sheffield CCG,6/30/2020,C&M-PMS Out of Hours Opt Outs,PRC DELEGATED CO-COMMISSIONING,JAUNTY SPRINGS HEALTH CENTRE,32673561,15.22,PRC DELEGATED CO-COMMISSIONING,S12 3DZ
Department of Health,NHS Sheffield CCG,6/30/2020,C&M-PMS PCN DES Clinical Director,PRC DELEGATED CO-COMMISSIONING,JAUNTY SPRINGS HEALTH CENTRE,32673561,"2,098.31",PRC DELEGATED CO-COMMISSIONING,S12 3DZ
Department of Health,NHS Sheffield CCG,6/30/2020,C&M-PMS PCN DES PCN support,LOCAL ENHANCED SERVICES,JAUNTY SPRINGS HEALTH CENTRE,32673561,"4,359.38",LOCAL ENHANCED SERVICES,S12 3DZ
Department of Health,NHS Sheffield CCG,6/30/2020,C&M-PMS PCN DES Participation,PRC DELEGATED CO-COMMISSIONING,JAUNTY SPRINGS HEALTH CENTRE,32673561,592.79,PRC DELEGATED CO-COMMISSIONING,S12 3DZ
Department of Health,NHS Sheffield CCG,6/30/2020,C&M-PMS PCO Other,PRC DELEGATED CO-COMMISSIONING,JAUNTY SPRINGS HEALTH CENTRE,32673561,266.60,PRC DELEGATED CO-COMMISSIONING,S12 3DZ
Department of Health,NHS Sheffield CCG,6/30/2020,C&M-PMS Prem Notional Rent,PRC DELEGATED CO-COMMISSIONING,JAUNTY SPRINGS HEALTH CENTRE,32673561,"3,208.33",PRC DELEGATED CO-COMMISSIONING,S12 3DZ
Department of Health,NHS Sheffield CCG,6/30/2020,C&M-PMS Prem Rates,PRC DELEGATED CO-COMMISSIONING,JAUNTY SPRINGS HEALTH CENTRE,32673561,830.00,PRC DELEGATED CO-COMMISSIONING,S12 3DZ
Department of Health,NHS Sheffield CCG,6/30/2020,C&M-PMS QOF Achievement,PRC DELEGATED CO-COMMISSIONING,JAUNTY SPRINGS HEALTH CENTRE,32673561,"17,562.00",PRC DELEGATED CO-COMMISSIONING,S12 3DZ
Department of Health,NHS Sheffield CCG,6/30/2020,C&M-PMS QOF Aspiration,PRC DELEGATED CO-COMMISSIONING,JAUNTY SPRINGS HEALTH CENTRE,32673561,"11,079.52",PRC DELEGATED CO-COMMISSIONING,S12 3DZ
Department of Health,NHS Sheffield CCG,6/30/2020,Payments received on account <1Yr,PRIMARY CARE IT - DUPLICATE PAYMENT REFUND,KIER BUSINESS SERVICES LTD,32962993,"176,129.60","CN7016203595,7016203596&7016203597 ON ACC",SG19 2BD
Department of Health,NHS Sheffield CCG,6/30/2020,Hcare Srv Rec NHS Trust-Contract Baseline,ACUTE COMMISSIONING,LEEDS TEACHING HOSPITALS NHS TRUST,32681789,"47,860.51",ACUTE COMMISSIONING,LS9 7TF
Department of Health,NHS Sheffield CCG,6/30/2020,Cont Care-Physical Disab (<65),CHC ADULT FULLY FUNDED,LONGLEY HEALTH CARE LTD,32706458,"88,532.60",CHC SCHEDULE JUNE 2020 - Longley Park View Nursing Home (Exemplar HC),S5 7JZ
Department of Health,NHS Sheffield CCG,6/30/2020,C&M-PMS Contract Value,PRC DELEGATED CO-COMMISSIONING,MANCHESTER ROAD SURGERY SHEFFIELD,32673565,"33,169.83",PRC DELEGATED CO-COMMISSIONING,S10 5PN
Department of Health,NHS Sheffield CCG,6/30/2020,C&M-PMS DES Learn Dsblty Hlth Chk,PRC DELEGATED CO-COMMISSIONING,MANCHESTER ROAD SURGERY SHEFFIELD,32673565,"1,540.00",PRC DELEGATED CO-COMMISSIONING,S10 5PN
Department of Health,NHS Sheffield CCG,6/30/2020,C&M-PMS DES Minor Surgery,PRC DELEGATED CO-COMMISSIONING,MANCHESTER ROAD SURGERY SHEFFIELD,32673565,855.00,PRC DELEGATED CO-COMMISSIONING,S10 5PN
Department of Health,NHS Sheffield CCG,6/30/2020,C&M-PMS GP Statutory Levy,PRC DELEGATED CO-COMMISSIONING,MANCHESTER ROAD SURGERY SHEFFIELD,32673565,0.18,PRC DELEGATED CO-COMMISSIONING,S10 5PN
Department of Health,NHS Sheffield CCG,6/30/2020,C&M-PMS Out of Hours Opt Outs,PRC DELEGATED CO-COMMISSIONING,MANCHESTER ROAD SURGERY SHEFFIELD,32673565,13.26,PRC DELEGATED CO-COMMISSIONING,S10 5PN
Department of Health,NHS Sheffield CCG,6/30/2020,C&M-PMS PCN DES Participation,PRC DELEGATED CO-COMMISSIONING,MANCHESTER ROAD SURGERY SHEFFIELD,32673565,631.34,PRC DELEGATED CO-COMMISSIONING,S10 5PN
Department of Health,NHS Sheffield CCG,6/30/2020,C&M-PMS PCO Other,PRC DELEGATED CO-COMMISSIONING,MANCHESTER ROAD SURGERY SHEFFIELD,32673565,"3,269.00",PRC DELEGATED CO-COMMISSIONING,S10 5PN
Department of Health,NHS Sheffield CCG,6/30/2020,C&M-PMS Prem Cost Rent,PRC DELEGATED CO-COMMISSIONING,MANCHESTER ROAD SURGERY SHEFFIELD,32673565,"3,091.46",PRC DELEGATED CO-COMMISSIONING,S10 5PN
Department of Health,NHS Sheffield CCG,6/30/2020,C&M-PMS Prem Notional Rent,PRC DELEGATED CO-COMMISSIONING,MANCHESTER ROAD SURGERY SHEFFIELD,32673565,442.92,PRC DELEGATED CO-COMMISSIONING,S10 5PN
Department of Health,NHS Sheffield CCG,6/30/2020,C&M-PMS Prem Rates,PRC DELEGATED CO-COMMISSIONING,MANCHESTER ROAD SURGERY SHEFFIELD,32673565,986.00,PRC DELEGATED CO-COMMISSIONING,S10 5PN
Department of Health,NHS Sheffield CCG,6/30/2020,C&M-PMS Prem Water Rates,PRC DELEGATED CO-COMMISSIONING,MANCHESTER ROAD SURGERY SHEFFIELD,32673565,112.85,PRC DELEGATED CO-COMMISSIONING,S10 5PN
Department of Health,NHS Sheffield CCG,6/30/2020,C&M-PMS QOF Achievement,PRC DELEGATED CO-COMMISSIONING,MANCHESTER ROAD SURGERY SHEFFIELD,32673565,"17,410.16",PRC DELEGATED CO-COMMISSIONING,S10 5PN
Department of Health,NHS Sheffield CCG,6/30/2020,C&M-PMS QOF Aspiration,PRC DELEGATED CO-COMMISSIONING,MANCHESTER ROAD SURGERY SHEFFIELD,32673565,"11,511.16",PRC DELEGATED CO-COMMISSIONING,S10 5PN
Department of Health,NHS Sheffield CCG,6/30/2020,Hcare Srv Rec Fdtn Trust-Contract Baseline,ACUTE COMMISSIONING,MANCHESTER UNIVERSITY NHS FOUNDATION TRUST,32681799,"25,929.20",ACUTE COMMISSIONING,M41 5SL
Department of Health,NHS Sheffield CCG,6/30/2020,C&M-PMS Contract Value,PRC DELEGATED CO-COMMISSIONING,MANOR & PARK GROUP PRACTICE,32674354,"-4,614.22",PRC DELEGATED CO-COMMISSIONING,S2 5QQ
Department of Health,NHS Sheffield CCG,6/30/2020,C&M-PMS GP Statutory Levy,PRC DELEGATED CO-COMMISSIONING,MANOR & PARK GROUP PRACTICE,32674354,-303.35,PRC DELEGATED CO-COMMISSIONING,S2 5QQ
Department of Health,NHS Sheffield CCG,6/30/2020,C&M-PMS Out of Hours Opt Outs,PRC DELEGATED CO-COMMISSIONING,MANOR & PARK GROUP PRACTICE,32674354,"-7,812.65",PRC DELEGATED CO-COMMISSIONING,S2 5QQ
Department of Health,NHS Sheffield CCG,6/30/2020,C&M-PMS QOF Aspiration,PRC DELEGATED CO-COMMISSIONING,MANOR & PARK GROUP PRACTICE,32674354,"-14,841.50",PRC DELEGATED CO-COMMISSIONING,S2 5QQ
Department of Health,NHS Sheffield CCG,6/30/2020,C&M-PMS Voluntary Levy,PRC DELEGATED CO-COMMISSIONING,MANOR & PARK GROUP PRACTICE,32674354,-43.34,PRC DELEGATED CO-COMMISSIONING,S2 5QQ
Department of Health,NHS Sheffield CCG,6/30/2020,C&M-PMS Contract Value,PRC DELEGATED CO-COMMISSIONING,MANOR & PARK GROUP PRACTICE,32674355,"70,956.83",PRC DELEGATED CO-COMMISSIONING,S2 5QQ
Department of Health,NHS Sheffield CCG,6/30/2020,C&M-PMS GP Statutory Levy,PRC DELEGATED CO-COMMISSIONING,MANOR & PARK GROUP PRACTICE,32674355,6.41,PRC DELEGATED CO-COMMISSIONING,S2 5QQ
Department of Health,NHS Sheffield CCG,6/30/2020,C&M-PMS PCN DES Participation,PRC DELEGATED CO-COMMISSIONING,MANOR & PARK GROUP PRACTICE,32674355,"1,387.49",PRC DELEGATED CO-COMMISSIONING,S2 5QQ
Department of Health,NHS Sheffield CCG,6/30/2020,C&M-PMS Prem Notional Rent,PRC DELEGATED CO-COMMISSIONING,MANOR & PARK GROUP PRACTICE,32674355,"9,050.00",PRC DELEGATED CO-COMMISSIONING,S2 5QQ
Department of Health,NHS Sheffield CCG,6/30/2020,C&M-PMS Prem Rates,PRC DELEGATED CO-COMMISSIONING,MANOR & PARK GROUP PRACTICE,32674355,"1,864.00",PRC DELEGATED CO-COMMISSIONING,S2 5QQ
Department of Health,NHS Sheffield CCG,6/30/2020,C&M-PMS Prem Water Rates,PRC DELEGATED CO-COMMISSIONING,MANOR & PARK GROUP PRACTICE,32674355,107.38,PRC DELEGATED CO-COMMISSIONING,S2 5QQ
Department of Health,NHS Sheffield CCG,6/30/2020,C&M-PMS QOF Achievement,PRC DELEGATED CO-COMMISSIONING,MANOR & PARK GROUP PRACTICE,32674355,"10,197.19",PRC DELEGATED CO-COMMISSIONING,S2 5QQ
Department of Health,NHS Sheffield CCG,6/30/2020,C&M-PMS QOF Aspiration,PRC DELEGATED CO-COMMISSIONING,MANOR & PARK GROUP PRACTICE,32674355,"18,281.88",PRC DELEGATED CO-COMMISSIONING,S2 5QQ
Department of Health,NHS Sheffield CCG,6/30/2020,C&M-GMS Global Sum,PRC DELEGATED CO-COMMISSIONING,MATHEWS PRACTICE,32885316,"59,691.47",PRC DELEGATED CO-COMMISSIONING,S2 4UJ
Department of Health,NHS Sheffield CCG,6/30/2020,C&M-GMS PCN DES Participation,PRC DELEGATED CO-COMMISSIONING,MATHEWS PRACTICE,32885316,"1,189.39",PRC DELEGATED CO-COMMISSIONING,S2 4UJ
Department of Health,NHS Sheffield CCG,6/30/2020,C&M-GMS Prem Rates,PRC DELEGATED CO-COMMISSIONING,MATHEWS PRACTICE,32885316,"2,183.00",PRC DELEGATED CO-COMMISSIONING,S2 4UJ
Department of Health,NHS Sheffield CCG,6/30/2020,C&M-GMS QOF Aspiration,PRC DELEGATED CO-COMMISSIONING,MATHEWS PRACTICE,32885316,"15,154.88",PRC DELEGATED CO-COMMISSIONING,S2 4UJ
Department of Health,NHS Sheffield CCG,6/30/2020,C&M-PMS Contract Value,PRC DELEGATED CO-COMMISSIONING,MEADOWHEAD GROUP PRACTICE,32673562,"-1,220.88",PRC DELEGATED CO-COMMISSIONING,S8 7RL
Department of Health,NHS Sheffield CCG,6/30/2020,C&M-PMS GP Statutory Levy,PRC DELEGATED CO-COMMISSIONING,MEADOWHEAD GROUP PRACTICE,32673562,-325.43,PRC DELEGATED CO-COMMISSIONING,S8 7RL
Department of Health,NHS Sheffield CCG,6/30/2020,C&M-PMS Out of Hours Opt Outs,PRC DELEGATED CO-COMMISSIONING,MEADOWHEAD GROUP PRACTICE,32673562,"-3,404.33",PRC DELEGATED CO-COMMISSIONING,S8 7RL
Department of Health,NHS Sheffield CCG,6/30/2020,C&M-PMS QOF Aspiration,PRC DELEGATED CO-COMMISSIONING,MEADOWHEAD GROUP PRACTICE,32673562,"-18,153.04",PRC DELEGATED CO-COMMISSIONING,S8 7RL
Department of Health,NHS Sheffield CCG,6/30/2020,C&M-PMS Voluntary Levy,PRC DELEGATED CO-COMMISSIONING,MEADOWHEAD GROUP PRACTICE,32673562,-46.49,PRC DELEGATED CO-COMMISSIONING,S8 7RL
Department of Health,NHS Sheffield CCG,6/30/2020,C&M-PMS Contract Value,PRC DELEGATED CO-COMMISSIONING,MEADOWHEAD GROUP PRACTICE,32673563,"73,065.42",PRC DELEGATED CO-COMMISSIONING,S8 7RL
Department of Health,NHS Sheffield CCG,6/30/2020,C&M-PMS DES Learn Dsblty Hlth Chk,PRC DELEGATED CO-COMMISSIONING,MEADOWHEAD GROUP PRACTICE,32673563,"1,960.00",PRC DELEGATED CO-COMMISSIONING,S8 7RL
Department of Health,NHS Sheffield CCG,6/30/2020,C&M-PMS DES Minor Surgery,PRC DELEGATED CO-COMMISSIONING,MEADOWHEAD GROUP PRACTICE,32673563,"1,385.00",PRC DELEGATED CO-COMMISSIONING,S8 7RL
Department of Health,NHS Sheffield CCG,6/30/2020,C&M-PMS GP Statutory Levy,PRC DELEGATED CO-COMMISSIONING,MEADOWHEAD GROUP PRACTICE,32673563,1.33,PRC DELEGATED CO-COMMISSIONING,S8 7RL
Department of Health,NHS Sheffield CCG,6/30/2020,C&M-PMS Out of Hours Opt Outs,PRC DELEGATED CO-COMMISSIONING,MEADOWHEAD GROUP PRACTICE,32673563,57.04,PRC DELEGATED CO-COMMISSIONING,S8 7RL
Department of Health,NHS Sheffield CCG,6/30/2020,C&M-PMS PCN DES Participation,PRC DELEGATED CO-COMMISSIONING,MEADOWHEAD GROUP PRACTICE,32673563,"1,384.54",PRC DELEGATED CO-COMMISSIONING,S8 7RL
Department of Health,NHS Sheffield CCG,6/30/2020,C&M-PMS PCO Other,PRC DELEGATED CO-COMMISSIONING,MEADOWHEAD GROUP PRACTICE,32673563,"5,826.00",PRC DELEGATED CO-COMMISSIONING,S8 7RL
Department of Health,NHS Sheffield CCG,6/30/2020,C&M-PMS Prem Cost Rent,PRC DELEGATED CO-COMMISSIONING,MEADOWHEAD GROUP PRACTICE,32673563,"3,647.42",PRC DELEGATED CO-COMMISSIONING,S8 7RL
Department of Health,NHS Sheffield CCG,6/30/2020,C&M-PMS Prem Notional Rent,PRC DELEGATED CO-COMMISSIONING,MEADOWHEAD GROUP PRACTICE,32673563,"3,358.33",PRC DELEGATED CO-COMMISSIONING,S8 7RL
Department of Health,NHS Sheffield CCG,6/30/2020,C&M-PMS Prem Rates,PRC DELEGATED CO-COMMISSIONING,MEADOWHEAD GROUP PRACTICE,32673563,"1,968.00",PRC DELEGATED CO-COMMISSIONING,S8 7RL
Department of Health,NHS Sheffield CCG,6/30/2020,C&M-PMS Prem Water Rates,PRC DELEGATED CO-COMMISSIONING,MEADOWHEAD GROUP PRACTICE,32673563,122.65,PRC DELEGATED CO-COMMISSIONING,S8 7RL
Department of Health,NHS Sheffield CCG,6/30/2020,C&M-PMS QOF Achievement,PRC DELEGATED CO-COMMISSIONING,MEADOWHEAD GROUP PRACTICE,32673563,"39,651.08",PRC DELEGATED CO-COMMISSIONING,S8 7RL
Department of Health,NHS Sheffield CCG,6/30/2020,C&M-PMS QOF Aspiration,PRC DELEGATED CO-COMMISSIONING,MEADOWHEAD GROUP PRACTICE,32673563,"25,143.11",PRC DELEGATED CO-COMMISSIONING,S8 7RL
Department of Health,NHS Sheffield CCG,6/30/2020,C&M-GMS Cost of Drugs -Prescribing,LOCAL ENHANCED SERVICES,MEDICAL CENTRE CRYSTAL PEAKS,32885312,484.20,LOCAL ENHANCED SERVICES,S20 7HZ
Department of Health,NHS Sheffield CCG,6/30/2020,C&M-GMS DES Learn Dsblty Hlth Chk,PRC DELEGATED CO-COMMISSIONING,MEDICAL CENTRE CRYSTAL PEAKS,32885312,"1,120.00",PRC DELEGATED CO-COMMISSIONING,S20 7HZ
Department of Health,NHS Sheffield CCG,6/30/2020,C&M-GMS Global Sum,PRC DELEGATED CO-COMMISSIONING,MEDICAL CENTRE CRYSTAL PEAKS,32885312,"49,336.98",PRC DELEGATED CO-COMMISSIONING,S20 7HZ
Department of Health,NHS Sheffield CCG,6/30/2020,C&M-GMS PCN DES Participation,PRC DELEGATED CO-COMMISSIONING,MEDICAL CENTRE CRYSTAL PEAKS,32885312,973.29,PRC DELEGATED CO-COMMISSIONING,S20 7HZ
Department of Health,NHS Sheffield CCG,6/30/2020,C&M-GMS PCO Locum Adop/Pat/Mat,PRC DELEGATED CO-COMMISSIONING,MEDICAL CENTRE CRYSTAL PEAKS,32885312,"2,040.61",PRC DELEGATED CO-COMMISSIONING,S20 7HZ
Department of Health,NHS Sheffield CCG,6/30/2020,C&M-GMS PCO Other,PRC DELEGATED CO-COMMISSIONING,MEDICAL CENTRE CRYSTAL PEAKS,32885312,431.60,PRC DELEGATED CO-COMMISSIONING,S20 7HZ
Department of Health,NHS Sheffield CCG,6/30/2020,C&M-GMS Prem Notional Rent,PRC DELEGATED CO-COMMISSIONING,MEDICAL CENTRE CRYSTAL PEAKS,32885312,270.00,PRC DELEGATED CO-COMMISSIONING,S20 7HZ
Department of Health,NHS Sheffield CCG,6/30/2020,C&M-GMS Prem Rates,PRC DELEGATED CO-COMMISSIONING,MEDICAL CENTRE CRYSTAL PEAKS,32885312,"1,073.00",PRC DELEGATED CO-COMMISSIONING,S20 7HZ
Department of Health,NHS Sheffield CCG,6/30/2020,C&M-GMS Prof Fees Prescribing,PRC DELEGATED CO-COMMISSIONING,MEDICAL CENTRE CRYSTAL PEAKS,32885312,172.71,PRC DELEGATED CO-COMMISSIONING,S20 7HZ
Department of Health,NHS Sheffield CCG,6/30/2020,C&M-GMS QOF Achievement,PRC DELEGATED CO-COMMISSIONING,MEDICAL CENTRE CRYSTAL PEAKS,32885312,"29,119.13",PRC DELEGATED CO-COMMISSIONING,S20 7HZ
Department of Health,NHS Sheffield CCG,6/30/2020,C&M-GMS QOF Aspiration,PRC DELEGATED CO-COMMISSIONING,MEDICAL CENTRE CRYSTAL PEAKS,32885312,"19,095.12",PRC DELEGATED CO-COMMISSIONING,S20 7HZ
Department of Health,NHS Sheffield CCG,6/30/2020,Hcare Srv Rec NHS Trust-Contract Baseline,ACUTE COMMISSIONING,MID YORKSHIRE HOSPITALS NHS TRUST,32681790,"26,386.10",ACUTE COMMISSIONING,WF1 4DG
Department of Health,NHS Sheffield CCG,6/30/2020,C&M-GMS Cost of Drugs -Prescribing,LOCAL ENHANCED SERVICES,MILL ROAD SURGERY SHEFFIELD,32885319,88.61,LOCAL ENHANCED SERVICES,S35 9XQ
Department of Health,NHS Sheffield CCG,6/30/2020,C&M-GMS DES Learn Dsblty Hlth Chk,PRC DELEGATED CO-COMMISSIONING,MILL ROAD SURGERY SHEFFIELD,32885319,280.00,PRC DELEGATED CO-COMMISSIONING,S35 9XQ
Department of Health,NHS Sheffield CCG,6/30/2020,C&M-GMS Global Sum,PRC DELEGATED CO-COMMISSIONING,MILL ROAD SURGERY SHEFFIELD,32885319,"42,215.80",PRC DELEGATED CO-COMMISSIONING,S35 9XQ
Department of Health,NHS Sheffield CCG,6/30/2020,C&M-GMS PCN DES Participation,PRC DELEGATED CO-COMMISSIONING,MILL ROAD SURGERY SHEFFIELD,32885319,834.04,PRC DELEGATED CO-COMMISSIONING,S35 9XQ
Department of Health,NHS Sheffield CCG,6/30/2020,C&M-GMS PCO Other,PRC DELEGATED CO-COMMISSIONING,MILL ROAD SURGERY SHEFFIELD,32885319,352.00,PRC DELEGATED CO-COMMISSIONING,S35 9XQ
Department of Health,NHS Sheffield CCG,6/30/2020,C&M-GMS Prem Notional Rent,PRC DELEGATED CO-COMMISSIONING,MILL ROAD SURGERY SHEFFIELD,32885319,"4,593.33",PRC DELEGATED CO-COMMISSIONING,S35 9XQ
Department of Health,NHS Sheffield CCG,6/30/2020,C&M-GMS Prem Rates,PRC DELEGATED CO-COMMISSIONING,MILL ROAD SURGERY SHEFFIELD,32885319,"1,073.00",PRC DELEGATED CO-COMMISSIONING,S35 9XQ
Department of Health,NHS Sheffield CCG,6/30/2020,C&M-GMS Prof Fees Prescribing,PRC DELEGATED CO-COMMISSIONING,MILL ROAD SURGERY SHEFFIELD,32885319,62.18,PRC DELEGATED CO-COMMISSIONING,S35 9XQ
Department of Health,NHS Sheffield CCG,6/30/2020,C&M-GMS QOF Achievement,PRC DELEGATED CO-COMMISSIONING,MILL ROAD SURGERY SHEFFIELD,32885319,"13,241.42",PRC DELEGATED CO-COMMISSIONING,S35 9XQ
Department of Health,NHS Sheffield CCG,6/30/2020,C&M-GMS QOF Aspiration,PRC DELEGATED CO-COMMISSIONING,MILL ROAD SURGERY SHEFFIELD,32885319,"13,687.25",PRC DELEGATED CO-COMMISSIONING,S35 9XQ
Department of Health,NHS Sheffield CCG,6/30/2020,Clinical&Medical-Independent Sector,Mental Health Services - S117 Mental Health,MOORVILLE RESIDENTIAL,32649063,"28,302.60",Mental Health Services - S117 Mental Health,S10 5FA
Department of Health,NHS Sheffield CCG,6/30/2020,Cont Care-Learning Disab(<65),CHC ADULT FULLY FUNDED,MOORVILLE RESIDENTIAL,32649063,"8,853.90",https://nww.einvoice-prod.sbs.nhs.uk:8179/invoicepdf/e4177752-fbbf-5f8f-84f9-1c37053cd183,S10 5FA
Department of Health,NHS Sheffield CCG,6/30/2020,Cont Care-Learning Disab(<65),CHC ADULT JOINT FUNDED,MOORVILLE RESIDENTIAL,32649063,"3,894.90",CHC ADULT JOINT FUNDED,S10 5FA
Department of Health,NHS Sheffield CCG,6/30/2020,C&M-PMS Contract Value,PRC DELEGATED CO-COMMISSIONING,MOSBOROUGH HEALTH CENTRE,32673567,"51,471.30",PRC DELEGATED CO-COMMISSIONING,S20 5BQ
Department of Health,NHS Sheffield CCG,6/30/2020,C&M-PMS DES Learn Dsblty Hlth Chk,PRC DELEGATED CO-COMMISSIONING,MOSBOROUGH HEALTH CENTRE,32673567,"1,260.00",PRC DELEGATED CO-COMMISSIONING,S20 5BQ
Department of Health,NHS Sheffield CCG,6/30/2020,C&M-PMS DES Minor Surgery,PRC DELEGATED CO-COMMISSIONING,MOSBOROUGH HEALTH CENTRE,32673567,"1,280.00",PRC DELEGATED CO-COMMISSIONING,S20 5BQ
Department of Health,NHS Sheffield CCG,6/30/2020,C&M-PMS PCN DES Participation,PRC DELEGATED CO-COMMISSIONING,MOSBOROUGH HEALTH CENTRE,32673567,955.17,PRC DELEGATED CO-COMMISSIONING,S20 5BQ
Department of Health,NHS Sheffield CCG,6/30/2020,C&M-PMS Prem Notional Rent,PRC DELEGATED CO-COMMISSIONING,MOSBOROUGH HEALTH CENTRE,32673567,"4,091.67",PRC DELEGATED CO-COMMISSIONING,S20 5BQ
Department of Health,NHS Sheffield CCG,6/30/2020,C&M-PMS QOF Achievement,PRC DELEGATED CO-COMMISSIONING,MOSBOROUGH HEALTH CENTRE,32673567,"25,060.35",PRC DELEGATED CO-COMMISSIONING,S20 5BQ
Department of Health,NHS Sheffield CCG,6/30/2020,C&M-PMS QOF Aspiration,PRC DELEGATED CO-COMMISSIONING,MOSBOROUGH HEALTH CENTRE,32673567,"16,889.71",PRC DELEGATED CO-COMMISSIONING,S20 5BQ
Department of Health,NHS Sheffield CCG,6/30/2020,C&M-PMS Contract Value,PRC DELEGATED CO-COMMISSIONING,NETHERGREEN SURGERY,32673568,-167.25,PRC DELEGATED CO-COMMISSIONING,S11 7EJ
Department of Health,NHS Sheffield CCG,6/30/2020,C&M-PMS GP Statutory Levy,PRC DELEGATED CO-COMMISSIONING,NETHERGREEN SURGERY,32673568,-324.07,PRC DELEGATED CO-COMMISSIONING,S11 7EJ
Department of Health,NHS Sheffield CCG,6/30/2020,C&M-PMS Out of Hours Opt Outs,PRC DELEGATED CO-COMMISSIONING,NETHERGREEN SURGERY,32673568,"-2,953.58",PRC DELEGATED CO-COMMISSIONING,S11 7EJ
Department of Health,NHS Sheffield CCG,6/30/2020,C&M-PMS QOF Aspiration,PRC DELEGATED CO-COMMISSIONING,NETHERGREEN SURGERY,32673568,"-12,813.58",PRC DELEGATED CO-COMMISSIONING,S11 7EJ
Department of Health,NHS Sheffield CCG,6/30/2020,C&M-PMS Voluntary Levy,PRC DELEGATED CO-COMMISSIONING,NETHERGREEN SURGERY,32673568,-46.30,PRC DELEGATED CO-COMMISSIONING,S11 7EJ
Department of Health,NHS Sheffield CCG,6/30/2020,C&M-PMS Contract Value,PRC DELEGATED CO-COMMISSIONING,NETHERGREEN SURGERY,32673569,"63,326.25",PRC DELEGATED CO-COMMISSIONING,S11 7EJ
Department of Health,NHS Sheffield CCG,6/30/2020,C&M-PMS DES Learn Dsblty Hlth Chk,PRC DELEGATED CO-COMMISSIONING,NETHERGREEN SURGERY,32673569,280.00,PRC DELEGATED CO-COMMISSIONING,S11 7EJ
Department of Health,NHS Sheffield CCG,6/30/2020,C&M-PMS DES Minor Surgery,PRC DELEGATED CO-COMMISSIONING,NETHERGREEN SURGERY,32673569,"2,740.00",PRC DELEGATED CO-COMMISSIONING,S11 7EJ
Department of Health,NHS Sheffield CCG,6/30/2020,C&M-PMS GP Statutory Levy,PRC DELEGATED CO-COMMISSIONING,NETHERGREEN SURGERY,32673569,0.32,PRC DELEGATED CO-COMMISSIONING,S11 7EJ
Department of Health,NHS Sheffield CCG,6/30/2020,C&M-PMS Out of Hours Opt Outs,PRC DELEGATED CO-COMMISSIONING,NETHERGREEN SURGERY,32673569,7.84,PRC DELEGATED CO-COMMISSIONING,S11 7EJ
Department of Health,NHS Sheffield CCG,6/30/2020,C&M-PMS PCN DES Participation,PRC DELEGATED CO-COMMISSIONING,NETHERGREEN SURGERY,32673569,"1,201.24",PRC DELEGATED CO-COMMISSIONING,S11 7EJ
Department of Health,NHS Sheffield CCG,6/30/2020,C&M-PMS Prem Cost Rent,PRC DELEGATED CO-COMMISSIONING,NETHERGREEN SURGERY,32673569,"5,057.33",PRC DELEGATED CO-COMMISSIONING,S11 7EJ
Department of Health,NHS Sheffield CCG,6/30/2020,C&M-PMS Prem Rates,PRC DELEGATED CO-COMMISSIONING,NETHERGREEN SURGERY,32673569,"1,285.00",PRC DELEGATED CO-COMMISSIONING,S11 7EJ
Department of Health,NHS Sheffield CCG,6/30/2020,C&M-PMS QOF Achievement,PRC DELEGATED CO-COMMISSIONING,NETHERGREEN SURGERY,32673569,"19,000.68",PRC DELEGATED CO-COMMISSIONING,S11 7EJ
Department of Health,NHS Sheffield CCG,6/30/2020,C&M-PMS QOF Aspiration,PRC DELEGATED CO-COMMISSIONING,NETHERGREEN SURGERY,32673569,"17,662.20",PRC DELEGATED CO-COMMISSIONING,S11 7EJ
Department of Health,NHS Sheffield CCG,6/30/2020,C&M-GMS Prem Other,PRC DELEGATED CO-COMMISSIONING,NHS ENGLAND,32773846,"1,899.33",PRC DELEGATED CO-COMMISSIONING,WF3 1WE
Department of Health,NHS Sheffield CCG,6/30/2020,Contract- Refuse & Clinical Waste,PRC DELEGATED CO-COMMISSIONING,NHS ENGLAND,32773846,"69,781.01",PRC DELEGATED CO-COMMISSIONING,WF3 1WE
Department of Health,NHS Sheffield CCG,6/30/2020,Other Gen Supplies & Srv,PRC DELEGATED CO-COMMISSIONING,NHS ENGLAND,32773846,"32,358.90",CCG RECHARGE,WF3 1WE
Department of Health,NHS Sheffield CCG,6/30/2020,Charges from CSU,BUSINESS INFORMATICS,NHS NORTH OF ENGLAND CSU,32605551,"54,751.83",NHS CCG INCOME - SLA 44811016,WF3 1WE
Department of Health,NHS Sheffield CCG,6/30/2020,Charges from CSU,BUSINESS INFORMATICS,NHS NORTH OF ENGLAND CSU,32868436,"27,375.92",NHS CCG INCOME - SLA 44811016,WF3 1WE
Department of Health,NHS Sheffield CCG,6/30/2020,C&M-GMS Cost of Drugs -Prescribing,LOCAL ENHANCED SERVICES,NORFOLK PARK HEALTH CENTRE,32885324,194.54,LOCAL ENHANCED SERVICES,S2 3TA
Department of Health,NHS Sheffield CCG,6/30/2020,C&M-GMS Global Sum,PRC DELEGATED CO-COMMISSIONING,NORFOLK PARK HEALTH CENTRE,32885324,"41,968.89",PRC DELEGATED CO-COMMISSIONING,S2 3TA
Department of Health,NHS Sheffield CCG,6/30/2020,C&M-GMS PCN DES Participation,PRC DELEGATED CO-COMMISSIONING,NORFOLK PARK HEALTH CENTRE,32885324,800.91,PRC DELEGATED CO-COMMISSIONING,S2 3TA
Department of Health,NHS Sheffield CCG,6/30/2020,C&M-GMS Prem Healthcentre Rent,PRC DELEGATED CO-COMMISSIONING,NORFOLK PARK HEALTH CENTRE,32885324,"24,820.01",PRC DELEGATED CO-COMMISSIONING,S2 3TA
Department of Health,NHS Sheffield CCG,6/30/2020,C&M-GMS Prof Fees Prescribing,PRC DELEGATED CO-COMMISSIONING,NORFOLK PARK HEALTH CENTRE,32885324,69.09,PRC DELEGATED CO-COMMISSIONING,S2 3TA
Department of Health,NHS Sheffield CCG,6/30/2020,C&M-GMS QOF Achievement,PRC DELEGATED CO-COMMISSIONING,NORFOLK PARK HEALTH CENTRE,32885324,"17,217.66",PRC DELEGATED CO-COMMISSIONING,S2 3TA
Department of Health,NHS Sheffield CCG,6/30/2020,C&M-GMS QOF Aspiration,PRC DELEGATED CO-COMMISSIONING,NORFOLK PARK HEALTH CENTRE,32885324,"11,360.88",PRC DELEGATED CO-COMMISSIONING,S2 3TA
Department of Health,NHS Sheffield CCG,6/30/2020,C&M-GMS GP Statutory Levy,PRC DELEGATED CO-COMMISSIONING,NORWOOD MEDICAL CENTRE SHEFFIELD,32885326,-285.92,PRC DELEGATED CO-COMMISSIONING,S5 7HD
Department of Health,NHS Sheffield CCG,6/30/2020,C&M-GMS QOF Aspiration,PRC DELEGATED CO-COMMISSIONING,NORWOOD MEDICAL CENTRE SHEFFIELD,32885326,"-16,342.34",PRC DELEGATED CO-COMMISSIONING,S5 7HD
Department of Health,NHS Sheffield CCG,6/30/2020,C&M-GMS Cost of Drugs -Prescribing,LOCAL ENHANCED SERVICES,NORWOOD MEDICAL CENTRE SHEFFIELD,32885327,105.07,LOCAL ENHANCED SERVICES,S5 7HD
Department of Health,NHS Sheffield CCG,6/30/2020,C&M-GMS DES Learn Dsblty Hlth Chk,PRC DELEGATED CO-COMMISSIONING,NORWOOD MEDICAL CENTRE SHEFFIELD,32885327,"2,520.00",PRC DELEGATED CO-COMMISSIONING,S5 7HD
Department of Health,NHS Sheffield CCG,6/30/2020,C&M-GMS Global Sum,PRC DELEGATED CO-COMMISSIONING,NORWOOD MEDICAL CENTRE SHEFFIELD,32885327,"68,252.13",PRC DELEGATED CO-COMMISSIONING,S5 7HD
Department of Health,NHS Sheffield CCG,6/30/2020,C&M-GMS PCN DES Participation,PRC DELEGATED CO-COMMISSIONING,NORWOOD MEDICAL CENTRE SHEFFIELD,32885327,"1,343.92",PRC DELEGATED CO-COMMISSIONING,S5 7HD
Department of Health,NHS Sheffield CCG,6/30/2020,C&M-GMS PCO Other,PRC DELEGATED CO-COMMISSIONING,NORWOOD MEDICAL CENTRE SHEFFIELD,32885327,513.80,PRC DELEGATED CO-COMMISSIONING,S5 7HD
Department of Health,NHS Sheffield CCG,6/30/2020,C&M-GMS Prem Notional Rent,PRC DELEGATED CO-COMMISSIONING,NORWOOD MEDICAL CENTRE SHEFFIELD,32885327,"5,187.50",PRC DELEGATED CO-COMMISSIONING,S5 7HD
Department of Health,NHS Sheffield CCG,6/30/2020,C&M-GMS Prof Fees Prescribing,PRC DELEGATED CO-COMMISSIONING,NORWOOD MEDICAL CENTRE SHEFFIELD,32885327,36.85,PRC DELEGATED CO-COMMISSIONING,S5 7HD
Department of Health,NHS Sheffield CCG,6/30/2020,C&M-GMS QOF Achievement,PRC DELEGATED CO-COMMISSIONING,NORWOOD MEDICAL CENTRE SHEFFIELD,32885327,"35,696.02",PRC DELEGATED CO-COMMISSIONING,S5 7HD
Department of Health,NHS Sheffield CCG,6/30/2020,C&M-GMS QOF Aspiration,PRC DELEGATED CO-COMMISSIONING,NORWOOD MEDICAL CENTRE SHEFFIELD,32885327,"22,987.66",PRC DELEGATED CO-COMMISSIONING,S5 7HD
Department of Health,NHS Sheffield CCG,6/30/2020,Clinical&Medical-Independent Sector,ACUTE COMMISSIONING,ONEHEALTH GROUP,32605586,"74,519.00",https://nww.einvoice-prod.sbs.nhs.uk:8179/invoicepdf/2b55d9ba-46c7-509e-89c3-7f599211d23f,S11 8UX
Department of Health,NHS Sheffield CCG,6/30/2020,C&M-GMS Cost of Drugs -Dispensing,LOCAL ENHANCED SERVICES,OUGHTIBRIDGE SURGERY,32885329,"-15,484.00",LOCAL ENHANCED SERVICES,S35 0FW
Department of Health,NHS Sheffield CCG,6/30/2020,C&M-GMS GP Statutory Levy,PRC DELEGATED CO-COMMISSIONING,OUGHTIBRIDGE SURGERY,32885329,-201.95,PRC DELEGATED CO-COMMISSIONING,S35 0FW
Department of Health,NHS Sheffield CCG,6/30/2020,C&M-GMS PrscChrgsCll&RmttdbyGPCntra,PRC DELEGATED CO-COMMISSIONING,OUGHTIBRIDGE SURGERY,32885329,-585.60,PRC DELEGATED CO-COMMISSIONING,S35 0FW
Department of Health,NHS Sheffield CCG,6/30/2020,C&M-GMS QOF Aspiration,PRC DELEGATED CO-COMMISSIONING,OUGHTIBRIDGE SURGERY,32885329,"-8,523.20",PRC DELEGATED CO-COMMISSIONING,S35 0FW
Department of Health,NHS Sheffield CCG,6/30/2020,C&M-GMS Cost of Drugs -Dispensing,LOCAL ENHANCED SERVICES,OUGHTIBRIDGE SURGERY,32885330,"26,911.97",LOCAL ENHANCED SERVICES,S35 0FW
Department of Health,NHS Sheffield CCG,6/30/2020,C&M-GMS DES Learn Dsblty Hlth Chk,PRC DELEGATED CO-COMMISSIONING,OUGHTIBRIDGE SURGERY,32885330,420.00,PRC DELEGATED CO-COMMISSIONING,S35 0FW
Department of Health,NHS Sheffield CCG,6/30/2020,C&M-GMS Global Sum,PRC DELEGATED CO-COMMISSIONING,OUGHTIBRIDGE SURGERY,32885330,"44,872.93",PRC DELEGATED CO-COMMISSIONING,S35 0FW
Department of Health,NHS Sheffield CCG,6/30/2020,C&M-GMS PCN DES Participation,PRC DELEGATED CO-COMMISSIONING,OUGHTIBRIDGE SURGERY,32885330,892.20,PRC DELEGATED CO-COMMISSIONING,S35 0FW
Department of Health,NHS Sheffield CCG,6/30/2020,C&M-GMS Prem Notional Rent,PRC DELEGATED CO-COMMISSIONING,OUGHTIBRIDGE SURGERY,32885330,"3,957.33",PRC DELEGATED CO-COMMISSIONING,S35 0FW
Department of Health,NHS Sheffield CCG,6/30/2020,C&M-GMS Prem Rates,PRC DELEGATED CO-COMMISSIONING,OUGHTIBRIDGE SURGERY,32885330,"1,073.00",PRC DELEGATED CO-COMMISSIONING,S35 0FW
Department of Health,NHS Sheffield CCG,6/30/2020,C&M-GMS Prem Water Rates,PRC DELEGATED CO-COMMISSIONING,OUGHTIBRIDGE SURGERY,32885330,142.02,PRC DELEGATED CO-COMMISSIONING,S35 0FW
Department of Health,NHS Sheffield CCG,6/30/2020,C&M-GMS Prof Fees Dispensing,PRC DELEGATED CO-COMMISSIONING,OUGHTIBRIDGE SURGERY,32885330,"4,473.54",PRC DELEGATED CO-COMMISSIONING,S35 0FW
Department of Health,NHS Sheffield CCG,6/30/2020,C&M-GMS PrscrptnChrgsColl&RmttdbyGP,LOCAL ENHANCED SERVICES,OUGHTIBRIDGE SURGERY,32885330,585.60,LOCAL ENHANCED SERVICES,S35 0FW
Department of Health,NHS Sheffield CCG,6/30/2020,C&M-GMS QOF Achievement,PRC DELEGATED CO-COMMISSIONING,OUGHTIBRIDGE SURGERY,32885330,"18,616.93",PRC DELEGATED CO-COMMISSIONING,S35 0FW
Department of Health,NHS Sheffield CCG,6/30/2020,C&M-GMS QOF Aspiration,PRC DELEGATED CO-COMMISSIONING,OUGHTIBRIDGE SURGERY,32885330,"12,589.42",PRC DELEGATED CO-COMMISSIONING,S35 0FW
Department of Health,NHS Sheffield CCG,6/30/2020,C&M-PMS Contract Value,PRC DELEGATED CO-COMMISSIONING,OWLTHORPE MEDICAL CENTRE,32673571,"32,945.58",PRC DELEGATED CO-COMMISSIONING,S20 6PD
Department of Health,NHS Sheffield CCG,6/30/2020,C&M-PMS DES Minor Surgery,PRC DELEGATED CO-COMMISSIONING,OWLTHORPE MEDICAL CENTRE,32673571,470.00,PRC DELEGATED CO-COMMISSIONING,S20 6PD
Department of Health,NHS Sheffield CCG,6/30/2020,C&M-PMS GP Statutory Levy,PRC DELEGATED CO-COMMISSIONING,OWLTHORPE MEDICAL CENTRE,32673571,0.74,PRC DELEGATED CO-COMMISSIONING,S20 6PD
Department of Health,NHS Sheffield CCG,6/30/2020,C&M-PMS Out of Hours Opt Outs,PRC DELEGATED CO-COMMISSIONING,OWLTHORPE MEDICAL CENTRE,32673571,8.45,PRC DELEGATED CO-COMMISSIONING,S20 6PD
Department of Health,NHS Sheffield CCG,6/30/2020,C&M-PMS PCN DES Participation,PRC DELEGATED CO-COMMISSIONING,OWLTHORPE MEDICAL CENTRE,32673571,633.33,PRC DELEGATED CO-COMMISSIONING,S20 6PD
Department of Health,NHS Sheffield CCG,6/30/2020,C&M-PMS PCO Other,PRC DELEGATED CO-COMMISSIONING,OWLTHORPE MEDICAL CENTRE,32673571,916.20,PRC DELEGATED CO-COMMISSIONING,S20 6PD
Department of Health,NHS Sheffield CCG,6/30/2020,C&M-PMS Prem Actual Rent,PRC DELEGATED CO-COMMISSIONING,OWLTHORPE MEDICAL CENTRE,32673571,"7,539.58",PRC DELEGATED CO-COMMISSIONING,S20 6PD
Department of Health,NHS Sheffield CCG,6/30/2020,C&M-PMS Prem Water Rates,PRC DELEGATED CO-COMMISSIONING,OWLTHORPE MEDICAL CENTRE,32673571,74.03,PRC DELEGATED CO-COMMISSIONING,S20 6PD
Department of Health,NHS Sheffield CCG,6/30/2020,C&M-PMS QOF Achievement,PRC DELEGATED CO-COMMISSIONING,OWLTHORPE MEDICAL CENTRE,32673571,"16,921.45",PRC DELEGATED CO-COMMISSIONING,S20 6PD
Department of Health,NHS Sheffield CCG,6/30/2020,C&M-PMS QOF Aspiration,PRC DELEGATED CO-COMMISSIONING,OWLTHORPE MEDICAL CENTRE,32673571,"11,186.73",PRC DELEGATED CO-COMMISSIONING,S20 6PD
Department of Health,NHS Sheffield CCG,6/30/2020,C&M-PMS GP Statutory Levy,PRC DELEGATED CO-COMMISSIONING,PAGE HALL MEDICAL CENTRE,32673572,-277.73,PRC DELEGATED CO-COMMISSIONING,S4 8GB
Department of Health,NHS Sheffield CCG,6/30/2020,C&M-PMS Out of Hours Opt Outs,PRC DELEGATED CO-COMMISSIONING,PAGE HALL MEDICAL CENTRE,32673572,"-2,720.26",PRC DELEGATED CO-COMMISSIONING,S4 8GB
Department of Health,NHS Sheffield CCG,6/30/2020,C&M-PMS QOF Aspiration,PRC DELEGATED CO-COMMISSIONING,PAGE HALL MEDICAL CENTRE,32673572,"-9,116.10",PRC DELEGATED CO-COMMISSIONING,S4 8GB
Department of Health,NHS Sheffield CCG,6/30/2020,C&M-PMS Voluntary Levy,PRC DELEGATED CO-COMMISSIONING,PAGE HALL MEDICAL CENTRE,32673572,-39.67,PRC DELEGATED CO-COMMISSIONING,S4 8GB
Department of Health,NHS Sheffield CCG,6/30/2020,C&M-PMS Contract Value,PRC DELEGATED CO-COMMISSIONING,PAGE HALL MEDICAL CENTRE,32673573,"58,228.52",PRC DELEGATED CO-COMMISSIONING,S4 8GB
Department of Health,NHS Sheffield CCG,6/30/2020,C&M-PMS DES Minor Surgery,PRC DELEGATED CO-COMMISSIONING,PAGE HALL MEDICAL CENTRE,32673573,400.00,PRC DELEGATED CO-COMMISSIONING,S4 8GB
Department of Health,NHS Sheffield CCG,6/30/2020,C&M-PMS PCN DES Participation,PRC DELEGATED CO-COMMISSIONING,PAGE HALL MEDICAL CENTRE,32673573,"1,096.18",PRC DELEGATED CO-COMMISSIONING,S4 8GB
Department of Health,NHS Sheffield CCG,6/30/2020,C&M-PMS PCO Other,PRC DELEGATED CO-COMMISSIONING,PAGE HALL MEDICAL CENTRE,32673573,502.90,PRC DELEGATED CO-COMMISSIONING,S4 8GB
Department of Health,NHS Sheffield CCG,6/30/2020,C&M-PMS Prem Notional Rent,PRC DELEGATED CO-COMMISSIONING,PAGE HALL MEDICAL CENTRE,32673573,"4,833.33",PRC DELEGATED CO-COMMISSIONING,S4 8GB
Department of Health,NHS Sheffield CCG,6/30/2020,C&M-PMS Prem Rates,PRC DELEGATED CO-COMMISSIONING,PAGE HALL MEDICAL CENTRE,32673573,"1,285.00",PRC DELEGATED CO-COMMISSIONING,S4 8GB
Department of Health,NHS Sheffield CCG,6/30/2020,C&M-PMS QOF Achievement,PRC DELEGATED CO-COMMISSIONING,PAGE HALL MEDICAL CENTRE,32673573,"8,967.41",PRC DELEGATED CO-COMMISSIONING,S4 8GB
Department of Health,NHS Sheffield CCG,6/30/2020,C&M-PMS QOF Aspiration,PRC DELEGATED CO-COMMISSIONING,PAGE HALL MEDICAL CENTRE,32673573,"11,727.36",PRC DELEGATED CO-COMMISSIONING,S4 8GB
Department of Health,NHS Sheffield CCG,6/30/2020,C&M-PMS Contract Value,PRC DELEGATED CO-COMMISSIONING,PORTER BROOK MEDICAL CENTRE,32673574,"-4,403.97",PRC DELEGATED CO-COMMISSIONING,S11 8HN
Department of Health,NHS Sheffield CCG,6/30/2020,C&M-PMS GP Statutory Levy,PRC DELEGATED CO-COMMISSIONING,PORTER BROOK MEDICAL CENTRE,32673574,"-1,031.14",PRC DELEGATED CO-COMMISSIONING,S11 8HN
Department of Health,NHS Sheffield CCG,6/30/2020,C&M-PMS Out of Hours Opt Outs,PRC DELEGATED CO-COMMISSIONING,PORTER BROOK MEDICAL CENTRE,32673574,"-7,825.00",PRC DELEGATED CO-COMMISSIONING,S11 8HN
Department of Health,NHS Sheffield CCG,6/30/2020,C&M-PMS QOF Aspiration,PRC DELEGATED CO-COMMISSIONING,PORTER BROOK MEDICAL CENTRE,32673574,"-17,676.62",PRC DELEGATED CO-COMMISSIONING,S11 8HN
Department of Health,NHS Sheffield CCG,6/30/2020,C&M-PMS Voluntary Levy,PRC DELEGATED CO-COMMISSIONING,PORTER BROOK MEDICAL CENTRE,32673574,-147.31,PRC DELEGATED CO-COMMISSIONING,S11 8HN
Department of Health,NHS Sheffield CCG,6/30/2020,C&M-PMS Contract Value,PRC DELEGATED CO-COMMISSIONING,PORTER BROOK MEDICAL CENTRE,32673575,"167,806.58",PRC DELEGATED CO-COMMISSIONING,S11 8HN
Department of Health,NHS Sheffield CCG,6/30/2020,C&M-PMS DES Minor Surgery,PRC DELEGATED CO-COMMISSIONING,PORTER BROOK MEDICAL CENTRE,32673575,"6,300.00",PRC DELEGATED CO-COMMISSIONING,S11 8HN
Department of Health,NHS Sheffield CCG,6/30/2020,C&M-PMS GP Statutory Levy,PRC DELEGATED CO-COMMISSIONING,PORTER BROOK MEDICAL CENTRE,32673575,9.98,PRC DELEGATED CO-COMMISSIONING,S11 8HN
Department of Health,NHS Sheffield CCG,6/30/2020,C&M-PMS Out of Hours Opt Outs,PRC DELEGATED CO-COMMISSIONING,PORTER BROOK MEDICAL CENTRE,32673575,206.47,PRC DELEGATED CO-COMMISSIONING,S11 8HN
Department of Health,NHS Sheffield CCG,6/30/2020,C&M-PMS PCN DES Participation,PRC DELEGATED CO-COMMISSIONING,PORTER BROOK MEDICAL CENTRE,32673575,"3,182.41",PRC DELEGATED CO-COMMISSIONING,S11 8HN
Department of Health,NHS Sheffield CCG,6/30/2020,C&M-PMS Prem Actual Rent,PRC DELEGATED CO-COMMISSIONING,PORTER BROOK MEDICAL CENTRE,32673575,"1,666.67",PRC DELEGATED CO-COMMISSIONING,S11 8HN
Department of Health,NHS Sheffield CCG,6/30/2020,C&M-PMS Prem Notional Rent,PRC DELEGATED CO-COMMISSIONING,PORTER BROOK MEDICAL CENTRE,32673575,"9,666.67",PRC DELEGATED CO-COMMISSIONING,S11 8HN
Department of Health,NHS Sheffield CCG,6/30/2020,C&M-PMS Prem Rates,PRC DELEGATED CO-COMMISSIONING,PORTER BROOK MEDICAL CENTRE,32673575,"2,658.00",PRC DELEGATED CO-COMMISSIONING,S11 8HN
Department of Health,NHS Sheffield CCG,6/30/2020,C&M-PMS QOF Achievement,PRC DELEGATED CO-COMMISSIONING,PORTER BROOK MEDICAL CENTRE,32673575,"58,682.10",PRC DELEGATED CO-COMMISSIONING,S11 8HN
Department of Health,NHS Sheffield CCG,6/30/2020,C&M-PMS QOF Aspiration,PRC DELEGATED CO-COMMISSIONING,PORTER BROOK MEDICAL CENTRE,32673575,"30,346.71",PRC DELEGATED CO-COMMISSIONING,S11 8HN
Department of Health,NHS Sheffield CCG,6/30/2020,Clinical&Medical-Commercial Sector,PATIENT TRANSPORT,PREMIER CARE DIRECT LTD,32563531,"112,480.55",https://nww.einvoice-prod.sbs.nhs.uk:8179/invoicepdf/e82a2831-e2e6-579d-8757-d31c0869dc5a,DN4 5NU
Department of Health,NHS Sheffield CCG,6/30/2020,Clinical&Medical-Commercial Sector,PATIENT TRANSPORT,PREMIER CARE DIRECT LTD,32953018,"112,480.55",https://nww.einvoice-prod.sbs.nhs.uk:8179/invoicepdf/52f971e3-bc66-5b0a-bc73-e502e7550e7d,DN4 5NU
Department of Health,NHS Sheffield CCG,6/30/2020,C&M-GMS LES Basket of Procedures,LOCAL ENHANCED SERVICES,PRIMARY CARE SHEFFIELD LTD,32563678,"53,558.33",LOCAL ENHANCED SERVICES,S9 4EU
Department of Health,NHS Sheffield CCG,6/30/2020,C&M-APMS DES Extended Hours Access,GP FORWARD VIEW,PRIMARY CARE SHEFFIELD LTD,32563686,"302,608.33",GP FORWARD VIEW,S9 4EU
Department of Health,NHS Sheffield CCG,6/30/2020,C&M-APMS DES Extended Hours Access,GP FORWARD VIEW,PRIMARY CARE SHEFFIELD LTD,32953030,"302,608.33",GP FORWARD VIEW,S9 4EU
Department of Health,NHS Sheffield CCG,6/30/2020,C&M-GMS LES Basket of Procedures,LOCAL ENHANCED SERVICES,PRIMARY CARE SHEFFIELD LTD,32953043,"53,558.33",LOCAL ENHANCED SERVICES,S9 4EU
Department of Health,NHS Sheffield CCG,6/30/2020,Cont Care-Physical Disab (<65),CHC ADULT FULLY FUNDED,PRIORY GROUP LTD,32706466,"53,830.04",CHC SCHEDULE JUNE 2020 - Richmond Heights Care Home (The Priory Group),DL2 1TS
Department of Health,NHS Sheffield CCG,6/30/2020,Computer Maintenance,PRIMARY CARE IT,REDCENTRIC SOLUTIONS LTD,32466198,"8,526.02",Support Contract for Cisco hardware quote ref EC/OPP3951-664643,HG3 1UG
Department of Health,NHS Sheffield CCG,6/30/2020,Computer Maintenance,PRIMARY CARE IT,REDCENTRIC SOLUTIONS LTD,32466198,"15,084.75",Support Contract for software support for IPFX software quote ref EC/ OPP3951- 664604,HG3 1UG
Department of Health,NHS Sheffield CCG,6/30/2020,C&M-GMS IT Comm Servs -GP Practices,PRIMARY CARE IT,REDCENTRIC SOLUTIONS LTD,32912297,"65,913.98",https://nww.einvoice-prod.sbs.nhs.uk:8179/invoicepdf/cf7fd86b-4376-5075-a59d-ca81f7e3237b,HG3 1UG
Department of Health,NHS Sheffield CCG,6/30/2020,C&M-GMS IT Comm Servs -GP Practices,PRIMARY CARE IT,REDCENTRIC SOLUTIONS LTD,32953013,"75,816.12",PRIMARY CARE IT,HG3 1UG
Department of Health,NHS Sheffield CCG,6/30/2020,C&M-PMS GP Statutory Levy,PRC DELEGATED CO-COMMISSIONING,RICHMOND MEDICAL CENTRE,32673576,-319.17,PRC DELEGATED CO-COMMISSIONING,S13 8NA
Department of Health,NHS Sheffield CCG,6/30/2020,C&M-PMS Out of Hours Opt Outs,PRC DELEGATED CO-COMMISSIONING,RICHMOND MEDICAL CENTRE,32673576,"-3,216.54",PRC DELEGATED CO-COMMISSIONING,S13 8NA
Department of Health,NHS Sheffield CCG,6/30/2020,C&M-PMS QOF Aspiration,PRC DELEGATED CO-COMMISSIONING,RICHMOND MEDICAL CENTRE,32673576,"-16,416.40",PRC DELEGATED CO-COMMISSIONING,S13 8NA
Department of Health,NHS Sheffield CCG,6/30/2020,C&M-PMS Voluntary Levy,PRC DELEGATED CO-COMMISSIONING,RICHMOND MEDICAL CENTRE,32673576,-45.41,PRC DELEGATED CO-COMMISSIONING,S13 8NA
Department of Health,NHS Sheffield CCG,6/30/2020,C&M-PMS Contract Value,PRC DELEGATED CO-COMMISSIONING,RICHMOND MEDICAL CENTRE,32673577,"68,496.44",PRC DELEGATED CO-COMMISSIONING,S13 8NA
Department of Health,NHS Sheffield CCG,6/30/2020,C&M-PMS DES Minor Surgery,PRC DELEGATED CO-COMMISSIONING,RICHMOND MEDICAL CENTRE,32673577,"2,150.00",PRC DELEGATED CO-COMMISSIONING,S13 8NA
Department of Health,NHS Sheffield CCG,6/30/2020,C&M-PMS PCN DES Participation,PRC DELEGATED CO-COMMISSIONING,RICHMOND MEDICAL CENTRE,32673577,"1,278.48",PRC DELEGATED CO-COMMISSIONING,S13 8NA
Department of Health,NHS Sheffield CCG,6/30/2020,C&M-PMS PCO Other,PRC DELEGATED CO-COMMISSIONING,RICHMOND MEDICAL CENTRE,32673577,"1,698.30",PRC DELEGATED CO-COMMISSIONING,S13 8NA
Department of Health,NHS Sheffield CCG,6/30/2020,C&M-PMS Prem Notional Rent,PRC DELEGATED CO-COMMISSIONING,RICHMOND MEDICAL CENTRE,32673577,"4,731.00",PRC DELEGATED CO-COMMISSIONING,S13 8NA
Department of Health,NHS Sheffield CCG,6/30/2020,C&M-PMS Prem Rates,PRC DELEGATED CO-COMMISSIONING,RICHMOND MEDICAL CENTRE,32673577,"1,509.00",PRC DELEGATED CO-COMMISSIONING,S13 8NA
Department of Health,NHS Sheffield CCG,6/30/2020,C&M-PMS QOF Achievement,PRC DELEGATED CO-COMMISSIONING,RICHMOND MEDICAL CENTRE,32673577,"35,857.79",PRC DELEGATED CO-COMMISSIONING,S13 8NA
Department of Health,NHS Sheffield CCG,6/30/2020,C&M-PMS QOF Aspiration,PRC DELEGATED CO-COMMISSIONING,RICHMOND MEDICAL CENTRE,32673577,"23,636.88",PRC DELEGATED CO-COMMISSIONING,S13 8NA
Department of Health,NHS Sheffield CCG,6/30/2020,Cont Care-Physical Disab (<65),CHC ADULT FULLY FUNDED,ROSEBERRY CARE CENTRES,32706491,"26,650.12",CHC SCHEDULE JUNE 2020 - Haythorne Place Nursing Home (Roseberry),S5 6AB
Department of Health,NHS Sheffield CCG,6/30/2020,Cont Care-Funded Nursing Care Allow,FUNDED NURSING CARE,ROSEBERRY CARE CENTRES,32765883,"26,923.02",CHC SCHEDULE JUNE 2020 - Haythorne Place Nursing Home (Roseberry),S5 6AB
Department of Health,NHS Sheffield CCG,6/30/2020,Hcare Srv Rec Fdtn Trust-Contract Baseline,MENTAL HEALTH CONTRACTS,ROTHERHAM DONCASTER AND SOUTH HUMBER NHS FOUNDATION TRUST,32681798,"37,808.66",MENTAL HEALTH CONTRACTS,DN4 8QN
Department of Health,NHS Sheffield CCG,6/30/2020,Hcare Srv Rec Fdtn Trust-Contract Baseline,ACUTE COMMISSIONING,ROTHERHAM NHS FOUNDATION TRUST,32681796,"618,988.29",ACUTE COMMISSIONING,S60 2UD
Department of Health,NHS Sheffield CCG,6/30/2020,C&M-PMS Contract Value,PRC DELEGATED CO-COMMISSIONING,RUSTLINGS ROAD MEDICAL CENTRE,32673581,"29,416.57",PRC DELEGATED CO-COMMISSIONING,S11 7AB
Department of Health,NHS Sheffield CCG,6/30/2020,C&M-PMS DES Learn Dsblty Hlth Chk,PRC DELEGATED CO-COMMISSIONING,RUSTLINGS ROAD MEDICAL CENTRE,32673581,560.00,PRC DELEGATED CO-COMMISSIONING,S11 7AB
Department of Health,NHS Sheffield CCG,6/30/2020,C&M-PMS PCN DES Participation,PRC DELEGATED CO-COMMISSIONING,RUSTLINGS ROAD MEDICAL CENTRE,32673581,536.04,PRC DELEGATED CO-COMMISSIONING,S11 7AB
Department of Health,NHS Sheffield CCG,6/30/2020,C&M-PMS PCO Other,PRC DELEGATED CO-COMMISSIONING,RUSTLINGS ROAD MEDICAL CENTRE,32673581,316.40,PRC DELEGATED CO-COMMISSIONING,S11 7AB
Department of Health,NHS Sheffield CCG,6/30/2020,C&M-PMS Prem Notional Rent,PRC DELEGATED CO-COMMISSIONING,RUSTLINGS ROAD MEDICAL CENTRE,32673581,"1,312.50",PRC DELEGATED CO-COMMISSIONING,S11 7AB
Department of Health,NHS Sheffield CCG,6/30/2020,C&M-PMS Prem Water Rates,PRC DELEGATED CO-COMMISSIONING,RUSTLINGS ROAD MEDICAL CENTRE,32673581,52.24,PRC DELEGATED CO-COMMISSIONING,S11 7AB
Department of Health,NHS Sheffield CCG,6/30/2020,C&M-PMS QOF Achievement,PRC DELEGATED CO-COMMISSIONING,RUSTLINGS ROAD MEDICAL CENTRE,32673581,"14,700.36",PRC DELEGATED CO-COMMISSIONING,S11 7AB
Department of Health,NHS Sheffield CCG,6/30/2020,C&M-PMS QOF Aspiration,PRC DELEGATED CO-COMMISSIONING,RUSTLINGS ROAD MEDICAL CENTRE,32673581,"8,573.16",PRC DELEGATED CO-COMMISSIONING,S11 7AB
Department of Health,NHS Sheffield CCG,6/30/2020,C&M-PMS Contract Value,PRC DELEGATED CO-COMMISSIONING,SELBORNE ROAD MEDICAL CENTRE,32673579,"19,670.72",PRC DELEGATED CO-COMMISSIONING,S10 5ND
Department of Health,NHS Sheffield CCG,6/30/2020,C&M-PMS DES Learn Dsblty Hlth Chk,PRC DELEGATED CO-COMMISSIONING,SELBORNE ROAD MEDICAL CENTRE,32673579,840.00,PRC DELEGATED CO-COMMISSIONING,S10 5ND
Department of Health,NHS Sheffield CCG,6/30/2020,C&M-PMS DES Minor Surgery,PRC DELEGATED CO-COMMISSIONING,SELBORNE ROAD MEDICAL CENTRE,32673579,115.00,PRC DELEGATED CO-COMMISSIONING,S10 5ND
Department of Health,NHS Sheffield CCG,6/30/2020,C&M-PMS GP Statutory Levy,PRC DELEGATED CO-COMMISSIONING,SELBORNE ROAD MEDICAL CENTRE,32673579,0.07,PRC DELEGATED CO-COMMISSIONING,S10 5ND
Department of Health,NHS Sheffield CCG,6/30/2020,C&M-PMS PCN DES Participation,PRC DELEGATED CO-COMMISSIONING,SELBORNE ROAD MEDICAL CENTRE,32673579,365.84,PRC DELEGATED CO-COMMISSIONING,S10 5ND
Department of Health,NHS Sheffield CCG,6/30/2020,C&M-PMS Prem Notional Rent,PRC DELEGATED CO-COMMISSIONING,SELBORNE ROAD MEDICAL CENTRE,32673579,"1,735.42",PRC DELEGATED CO-COMMISSIONING,S10 5ND
Department of Health,NHS Sheffield CCG,6/30/2020,C&M-PMS QOF Achievement,PRC DELEGATED CO-COMMISSIONING,SELBORNE ROAD MEDICAL CENTRE,32673579,"6,634.43",PRC DELEGATED CO-COMMISSIONING,S10 5ND
Department of Health,NHS Sheffield CCG,6/30/2020,C&M-PMS QOF Aspiration,PRC DELEGATED CO-COMMISSIONING,SELBORNE ROAD MEDICAL CENTRE,32673579,"5,632.26",PRC DELEGATED CO-COMMISSIONING,S10 5ND
Department of Health,NHS Sheffield CCG,6/30/2020,Cont Care-Physical Disab (<65),CHC ADULT FULLY FUNDED,SEVEN HILLS NURSING HOME,32706471,"55,098.60",CHC SCHEDULE JUNE 2020 - Seven Hills Nursing Home,S11 9AA
Department of Health,NHS Sheffield CCG,6/30/2020,C&M-GMS Cost of Drugs -Prescribing,LOCAL ENHANCED SERVICES,SHARROW LANE MEDICAL CENTRE,32885334,66.62,LOCAL ENHANCED SERVICES,S11 8AN
Department of Health,NHS Sheffield CCG,6/30/2020,C&M-GMS DES Learn Dsblty Hlth Chk,PRC DELEGATED CO-COMMISSIONING,SHARROW LANE MEDICAL CENTRE,32885334,"2,100.00",PRC DELEGATED CO-COMMISSIONING,S11 8AN
Department of Health,NHS Sheffield CCG,6/30/2020,C&M-GMS Global Sum,PRC DELEGATED CO-COMMISSIONING,SHARROW LANE MEDICAL CENTRE,32885334,"24,622.08",PRC DELEGATED CO-COMMISSIONING,S11 8AN
Department of Health,NHS Sheffield CCG,6/30/2020,C&M-GMS PCN DES Participation,PRC DELEGATED CO-COMMISSIONING,SHARROW LANE MEDICAL CENTRE,32885334,487.93,PRC DELEGATED CO-COMMISSIONING,S11 8AN
Department of Health,NHS Sheffield CCG,6/30/2020,C&M-GMS PCO Other,PRC DELEGATED CO-COMMISSIONING,SHARROW LANE MEDICAL CENTRE,32885334,274.00,PRC DELEGATED CO-COMMISSIONING,S11 8AN
Department of Health,NHS Sheffield CCG,6/30/2020,C&M-GMS Prem Notional Rent,PRC DELEGATED CO-COMMISSIONING,SHARROW LANE MEDICAL CENTRE,32885334,"2,741.67",PRC DELEGATED CO-COMMISSIONING,S11 8AN
Department of Health,NHS Sheffield CCG,6/30/2020,C&M-GMS Prem Water Rates,PRC DELEGATED CO-COMMISSIONING,SHARROW LANE MEDICAL CENTRE,32885334,90.09,PRC DELEGATED CO-COMMISSIONING,S11 8AN
Department of Health,NHS Sheffield CCG,6/30/2020,C&M-GMS Prof Fees Prescribing,PRC DELEGATED CO-COMMISSIONING,SHARROW LANE MEDICAL CENTRE,32885334,20.73,PRC DELEGATED CO-COMMISSIONING,S11 8AN
Department of Health,NHS Sheffield CCG,6/30/2020,C&M-GMS QOF Achievement,PRC DELEGATED CO-COMMISSIONING,SHARROW LANE MEDICAL CENTRE,32885334,"5,469.61",PRC DELEGATED CO-COMMISSIONING,S11 8AN
Department of Health,NHS Sheffield CCG,6/30/2020,C&M-GMS QOF Aspiration,PRC DELEGATED CO-COMMISSIONING,SHARROW LANE MEDICAL CENTRE,32885334,"6,902.58",PRC DELEGATED CO-COMMISSIONING,S11 8AN
Department of Health,NHS Sheffield CCG,6/30/2020,Hcare Srv Rec Fdtn Trust-Contract Baseline,ACUTE CHILDRENS SERVICES,SHEFFIELD CHILDRENS NHS FOUNDATION TRUST,32681793,"3,460,348.98",ACUTE CHILDRENS SERVICES,S10 2TH
Department of Health,NHS Sheffield CCG,6/30/2020,Contract & Agency-Agency A & C,MENTAL HEALTH SERVICES - COLLABORATIVE COMMISSIONING,SHEFFIELD CITY COUNCIL,32591332,"28,506.00",MENTAL HEALTH SERVICES - COLLABORATIVE COMMISSIONING,S1 1UJ
Department of Health,NHS Sheffield CCG,6/30/2020,Cont Care-Physical Disab (65+),CHC ADULT FULLY FUNDED,SHEFFIELD CITY COUNCIL,32745110,"895,321.60",RMT SCHEDULE JUNE 2020,S1 1UJ
Department of Health,NHS Sheffield CCG,6/30/2020,Cont Care- Children,CHC CHILDREN,SHEFFIELD CITY COUNCIL,32745112,"91,168.33",CHILDRENS SCHEDULE JUNE 2020,S1 1UJ
Department of Health,NHS Sheffield CCG,6/30/2020,Hcare Srv Rec Fdtn Trust-Contract Baseline,MENTAL HEALTH CONTRACTS,SHEFFIELD HEALTH & SOCIAL CARE NHS FOUNDATION TRUST,32681794,"7,311,989.53",MENTAL HEALTH CONTRACTS,S10 3TH
Department of Health,NHS Sheffield CCG,6/30/2020,C&M-PMS Contract Value,PRC DELEGATED CO-COMMISSIONING,SHEFFIELD MEDICAL CENTRE,32673589,"16,231.54",PRC DELEGATED CO-COMMISSIONING,S3 9LB
Department of Health,NHS Sheffield CCG,6/30/2020,C&M-PMS DES Learn Dsblty Hlth Chk,PRC DELEGATED CO-COMMISSIONING,SHEFFIELD MEDICAL CENTRE,32673589,560.00,PRC DELEGATED CO-COMMISSIONING,S3 9LB
Department of Health,NHS Sheffield CCG,6/30/2020,C&M-PMS DES Minor Surgery,PRC DELEGATED CO-COMMISSIONING,SHEFFIELD MEDICAL CENTRE,32673589,80.00,PRC DELEGATED CO-COMMISSIONING,S3 9LB
Department of Health,NHS Sheffield CCG,6/30/2020,C&M-PMS PCN DES Participation,PRC DELEGATED CO-COMMISSIONING,SHEFFIELD MEDICAL CENTRE,32673589,296.22,PRC DELEGATED CO-COMMISSIONING,S3 9LB
Department of Health,NHS Sheffield CCG,6/30/2020,C&M-PMS PCO Other,PRC DELEGATED CO-COMMISSIONING,SHEFFIELD MEDICAL CENTRE,32673589,151.90,PRC DELEGATED CO-COMMISSIONING,S3 9LB
Department of Health,NHS Sheffield CCG,6/30/2020,C&M-PMS Prem Notional Rent,PRC DELEGATED CO-COMMISSIONING,SHEFFIELD MEDICAL CENTRE,32673589,"2,162.50",PRC DELEGATED CO-COMMISSIONING,S3 9LB
Department of Health,NHS Sheffield CCG,6/30/2020,C&M-PMS Prem Rates,PRC DELEGATED CO-COMMISSIONING,SHEFFIELD MEDICAL CENTRE,32673589,438.00,PRC DELEGATED CO-COMMISSIONING,S3 9LB
Department of Health,NHS Sheffield CCG,6/30/2020,C&M-PMS Prem Water Rates,PRC DELEGATED CO-COMMISSIONING,SHEFFIELD MEDICAL CENTRE,32673589,57.55,PRC DELEGATED CO-COMMISSIONING,S3 9LB
Department of Health,NHS Sheffield CCG,6/30/2020,C&M-PMS QOF Achievement,PRC DELEGATED CO-COMMISSIONING,SHEFFIELD MEDICAL CENTRE,32673589,"7,521.40",PRC DELEGATED CO-COMMISSIONING,S3 9LB
Department of Health,NHS Sheffield CCG,6/30/2020,C&M-PMS QOF Aspiration,PRC DELEGATED CO-COMMISSIONING,SHEFFIELD MEDICAL CENTRE,32673589,"4,454.20",PRC DELEGATED CO-COMMISSIONING,S3 9LB
Department of Health,NHS Sheffield CCG,6/30/2020,Hcare Srv Rec Fdtn Trust-Contract Baseline,ACUTE COMMISSIONING,SHEFFIELD TEACHING HOSPITALS NHS FOUNDATION TRUST,32681795,"37,588,203.57",ACUTE COMMISSIONING,S5 7AU
Department of Health,NHS Sheffield CCG,6/30/2020,Clinical&Medical-Independent Sector,COMMUNITY SERVICES,SHEFFIELD TEACHING HOSPITALS NHS FOUNDATION TRUST,32888461,"361,757.00",COMMUNITY SERVICES,S5 7AU
Department of Health,NHS Sheffield CCG,6/30/2020,C&M-GMS GP Statutory Levy,PRC DELEGATED CO-COMMISSIONING,SHIREGREEN MEDICAL CENTRE,32885340,-272.16,PRC DELEGATED CO-COMMISSIONING,S5 0RG
Department of Health,NHS Sheffield CCG,6/30/2020,C&M-GMS QOF Aspiration,PRC DELEGATED CO-COMMISSIONING,SHIREGREEN MEDICAL CENTRE,32885340,"-13,699.78",PRC DELEGATED CO-COMMISSIONING,S5 0RG
Department of Health,NHS Sheffield CCG,6/30/2020,C&M-GMS Cost of Drugs -Prescribing,LOCAL ENHANCED SERVICES,SHIREGREEN MEDICAL CENTRE,32885341,969.11,LOCAL ENHANCED SERVICES,S5 0RG
Department of Health,NHS Sheffield CCG,6/30/2020,C&M-GMS Global Sum,PRC DELEGATED CO-COMMISSIONING,SHIREGREEN MEDICAL CENTRE,32885341,"60,103.03",PRC DELEGATED CO-COMMISSIONING,S5 0RG
Department of Health,NHS Sheffield CCG,6/30/2020,C&M-GMS PCN DES Participation,PRC DELEGATED CO-COMMISSIONING,SHIREGREEN MEDICAL CENTRE,32885341,"1,193.58",PRC DELEGATED CO-COMMISSIONING,S5 0RG
Department of Health,NHS Sheffield CCG,6/30/2020,C&M-GMS PCO Other,PRC DELEGATED CO-COMMISSIONING,SHIREGREEN MEDICAL CENTRE,32885341,496.00,PRC DELEGATED CO-COMMISSIONING,S5 0RG
Department of Health,NHS Sheffield CCG,6/30/2020,C&M-GMS Prem Cost Rent,PRC DELEGATED CO-COMMISSIONING,SHIREGREEN MEDICAL CENTRE,32885341,"1,792.33",PRC DELEGATED CO-COMMISSIONING,S5 0RG
Department of Health,NHS Sheffield CCG,6/30/2020,C&M-GMS Prem Notional Rent,PRC DELEGATED CO-COMMISSIONING,SHIREGREEN MEDICAL CENTRE,32885341,"5,375.00",PRC DELEGATED CO-COMMISSIONING,S5 0RG
Department of Health,NHS Sheffield CCG,6/30/2020,C&M-GMS Prof Fees Prescribing,PRC DELEGATED CO-COMMISSIONING,SHIREGREEN MEDICAL CENTRE,32885341,168.12,PRC DELEGATED CO-COMMISSIONING,S5 0RG
Department of Health,NHS Sheffield CCG,6/30/2020,C&M-GMS QOF Achievement,PRC DELEGATED CO-COMMISSIONING,SHIREGREEN MEDICAL CENTRE,32885341,"15,274.38",PRC DELEGATED CO-COMMISSIONING,S5 0RG
Department of Health,NHS Sheffield CCG,6/30/2020,C&M-GMS QOF Aspiration,PRC DELEGATED CO-COMMISSIONING,SHIREGREEN MEDICAL CENTRE,32885341,"17,955.32",PRC DELEGATED CO-COMMISSIONING,S5 0RG
Department of Health,NHS Sheffield CCG,6/30/2020,C&M-PMS GP Statutory Levy,PRC DELEGATED CO-COMMISSIONING,SLOAN MEDICAL CENTRE,32673582,-470.55,PRC DELEGATED CO-COMMISSIONING,S8 0YH
Department of Health,NHS Sheffield CCG,6/30/2020,C&M-PMS Out of Hours Opt Outs,PRC DELEGATED CO-COMMISSIONING,SLOAN MEDICAL CENTRE,32673582,"-4,535.61",PRC DELEGATED CO-COMMISSIONING,S8 0YH
Department of Health,NHS Sheffield CCG,6/30/2020,C&M-PMS QOF Aspiration,PRC DELEGATED CO-COMMISSIONING,SLOAN MEDICAL CENTRE,32673582,"-20,007.40",PRC DELEGATED CO-COMMISSIONING,S8 0YH
Department of Health,NHS Sheffield CCG,6/30/2020,C&M-PMS Voluntary Levy,PRC DELEGATED CO-COMMISSIONING,SLOAN MEDICAL CENTRE,32673582,-67.02,PRC DELEGATED CO-COMMISSIONING,S8 0YH
Department of Health,NHS Sheffield CCG,6/30/2020,C&M-PMS Contract Value,PRC DELEGATED CO-COMMISSIONING,SLOAN MEDICAL CENTRE,32673583,"96,829.10",PRC DELEGATED CO-COMMISSIONING,S8 0YH
Department of Health,NHS Sheffield CCG,6/30/2020,C&M-PMS DES Learn Dsblty Hlth Chk,PRC DELEGATED CO-COMMISSIONING,SLOAN MEDICAL CENTRE,32673583,"2,660.00",PRC DELEGATED CO-COMMISSIONING,S8 0YH
Department of Health,NHS Sheffield CCG,6/30/2020,C&M-PMS DES Minor Surgery,PRC DELEGATED CO-COMMISSIONING,SLOAN MEDICAL CENTRE,32673583,"2,760.00",PRC DELEGATED CO-COMMISSIONING,S8 0YH
Department of Health,NHS Sheffield CCG,6/30/2020,C&M-PMS PCN DES Participation,PRC DELEGATED CO-COMMISSIONING,SLOAN MEDICAL CENTRE,32673583,"1,829.77",PRC DELEGATED CO-COMMISSIONING,S8 0YH
Department of Health,NHS Sheffield CCG,6/30/2020,C&M-PMS PCO Locum Sickness,PRC DELEGATED CO-COMMISSIONING,SLOAN MEDICAL CENTRE,32673583,"14,097.54",PRC DELEGATED CO-COMMISSIONING,S8 0YH
Department of Health,NHS Sheffield CCG,6/30/2020,C&M-PMS Prem Actual Rent,PRC DELEGATED CO-COMMISSIONING,SLOAN MEDICAL CENTRE,32673583,"15,970.83",PRC DELEGATED CO-COMMISSIONING,S8 0YH
Department of Health,NHS Sheffield CCG,6/30/2020,C&M-PMS Prem Notional Rent,PRC DELEGATED CO-COMMISSIONING,SLOAN MEDICAL CENTRE,32673583,747.50,PRC DELEGATED CO-COMMISSIONING,S8 0YH
Department of Health,NHS Sheffield CCG,6/30/2020,C&M-PMS Prem Rates,PRC DELEGATED CO-COMMISSIONING,SLOAN MEDICAL CENTRE,32673583,"3,478.00",PRC DELEGATED CO-COMMISSIONING,S8 0YH
Department of Health,NHS Sheffield CCG,6/30/2020,C&M-PMS QOF Achievement,PRC DELEGATED CO-COMMISSIONING,SLOAN MEDICAL CENTRE,32673583,"43,701.49",PRC DELEGATED CO-COMMISSIONING,S8 0YH
Department of Health,NHS Sheffield CCG,6/30/2020,C&M-PMS QOF Aspiration,PRC DELEGATED CO-COMMISSIONING,SLOAN MEDICAL CENTRE,32673583,"29,932.63",PRC DELEGATED CO-COMMISSIONING,S8 0YH
Department of Health,NHS Sheffield CCG,6/30/2020,C&M-PMS GP Statutory Levy,PRC DELEGATED CO-COMMISSIONING,SOTHALL MEDICAL CENTRE,32673584,-352.98,PRC DELEGATED CO-COMMISSIONING,S20 1HQ
Department of Health,NHS Sheffield CCG,6/30/2020,C&M-PMS Out of Hours Opt Outs,PRC DELEGATED CO-COMMISSIONING,SOTHALL MEDICAL CENTRE,32673584,"-3,343.23",PRC DELEGATED CO-COMMISSIONING,S20 1HQ
Department of Health,NHS Sheffield CCG,6/30/2020,C&M-PMS QOF Aspiration,PRC DELEGATED CO-COMMISSIONING,SOTHALL MEDICAL CENTRE,32673584,"-17,261.04",PRC DELEGATED CO-COMMISSIONING,S20 1HQ
Department of Health,NHS Sheffield CCG,6/30/2020,C&M-PMS Voluntary Levy,PRC DELEGATED CO-COMMISSIONING,SOTHALL MEDICAL CENTRE,32673584,-50.41,PRC DELEGATED CO-COMMISSIONING,S20 1HQ
Department of Health,NHS Sheffield CCG,6/30/2020,C&M-PMS Contract Value,PRC DELEGATED CO-COMMISSIONING,SOTHALL MEDICAL CENTRE,32673585,"71,535.02",PRC DELEGATED CO-COMMISSIONING,S20 1HQ
Department of Health,NHS Sheffield CCG,6/30/2020,C&M-PMS DES Learn Dsblty Hlth Chk,PRC DELEGATED CO-COMMISSIONING,SOTHALL MEDICAL CENTRE,32673585,840.00,PRC DELEGATED CO-COMMISSIONING,S20 1HQ
Department of Health,NHS Sheffield CCG,6/30/2020,C&M-PMS DES Minor Surgery,PRC DELEGATED CO-COMMISSIONING,SOTHALL MEDICAL CENTRE,32673585,"1,395.00",PRC DELEGATED CO-COMMISSIONING,S20 1HQ
Department of Health,NHS Sheffield CCG,6/30/2020,C&M-PMS PCN DES Participation,PRC DELEGATED CO-COMMISSIONING,SOTHALL MEDICAL CENTRE,32673585,"1,354.16",PRC DELEGATED CO-COMMISSIONING,S20 1HQ
Department of Health,NHS Sheffield CCG,6/30/2020,C&M-PMS Prem Notional Rent,PRC DELEGATED CO-COMMISSIONING,SOTHALL MEDICAL CENTRE,32673585,"5,116.67",PRC DELEGATED CO-COMMISSIONING,S20 1HQ
Department of Health,NHS Sheffield CCG,6/30/2020,C&M-PMS Prem Rates,PRC DELEGATED CO-COMMISSIONING,SOTHALL MEDICAL CENTRE,32673585,"1,435.00",PRC DELEGATED CO-COMMISSIONING,S20 1HQ
Department of Health,NHS Sheffield CCG,6/30/2020,C&M-PMS QOF Achievement,PRC DELEGATED CO-COMMISSIONING,SOTHALL MEDICAL CENTRE,32673585,"37,702.74",PRC DELEGATED CO-COMMISSIONING,S20 1HQ
Department of Health,NHS Sheffield CCG,6/30/2020,C&M-PMS QOF Aspiration,PRC DELEGATED CO-COMMISSIONING,SOTHALL MEDICAL CENTRE,32673585,"25,473.98",PRC DELEGATED CO-COMMISSIONING,S20 1HQ
Department of Health,NHS Sheffield CCG,6/30/2020,Cont Care- Adult 100% Fully Funded,CHC ADULT FULLY FUNDED,SOUTH YORKSHIRE HOUSING ASSOCIATION LTD,32706425,"46,763.59",Birch Avenue - June 20,S1 4HF
Department of Health,NHS Sheffield CCG,6/30/2020,Cont Care- Adult 100% Fully Funded,CHC ADULT FULLY FUNDED,SOUTH YORKSHIRE HOUSING ASSOCIATION LTD,32706428,"25,500.00",Birch Avenue - Additional Staff June 20,S1 4HF
Department of Health,NHS Sheffield CCG,6/30/2020,Clinical&Medical-Independent Sector,MENTAL HEALTH CONTRACTS,SOUTH YORKSHIRE HOUSING ASSOCIATION LTD,32706433,"34,434.83",Lister Avenue - June 20,S1 4HF
Department of Health,NHS Sheffield CCG,6/30/2020,Cont Care-Physical Disab (<65),CHC ADULT FULLY FUNDED,SOUTH YORKSHIRE HOUSING ASSOCIATION LTD,32706444,"90,654.22",CHC SCHEDULE JUNE 2020 - Birch Avenue Nursing Home (SYHA),S35 1RQ
Department of Health,NHS Sheffield CCG,6/30/2020,Clinical&Medical-Independent Sector,MENTAL HEALTH CONTRACTS,SOUTH YORKSHIRE HOUSING ASSOCIATION LTD,32888462,"137,734.56",MENTAL HEALTH CONTRACTS,S1 4EB
Department of Health,NHS Sheffield CCG,6/30/2020,C&M-PMS Contract Value,PRC DELEGATED CO-COMMISSIONING,SOUTHEY GREEN MEDICAL CENTRE,32673587,"25,338.47",PRC DELEGATED CO-COMMISSIONING,S5 7QB
Department of Health,NHS Sheffield CCG,6/30/2020,C&M-PMS DES Learn Dsblty Hlth Chk,PRC DELEGATED CO-COMMISSIONING,SOUTHEY GREEN MEDICAL CENTRE,32673587,980.00,PRC DELEGATED CO-COMMISSIONING,S5 7QB
Department of Health,NHS Sheffield CCG,6/30/2020,C&M-PMS PCN DES Participation,PRC DELEGATED CO-COMMISSIONING,SOUTHEY GREEN MEDICAL CENTRE,32673587,475.95,PRC DELEGATED CO-COMMISSIONING,S5 7QB
Department of Health,NHS Sheffield CCG,6/30/2020,C&M-PMS Prem Notional Rent,PRC DELEGATED CO-COMMISSIONING,SOUTHEY GREEN MEDICAL CENTRE,32673587,"3,362.50",PRC DELEGATED CO-COMMISSIONING,S5 7QB
Department of Health,NHS Sheffield CCG,6/30/2020,C&M-PMS Prem Rates,PRC DELEGATED CO-COMMISSIONING,SOUTHEY GREEN MEDICAL CENTRE,32673587,"3,590.00",PRC DELEGATED CO-COMMISSIONING,S5 7QB
Department of Health,NHS Sheffield CCG,6/30/2020,C&M-PMS QOF Achievement,PRC DELEGATED CO-COMMISSIONING,SOUTHEY GREEN MEDICAL CENTRE,32673587,"11,658.26",PRC DELEGATED CO-COMMISSIONING,S5 7QB
Department of Health,NHS Sheffield CCG,6/30/2020,C&M-PMS QOF Aspiration,PRC DELEGATED CO-COMMISSIONING,SOUTHEY GREEN MEDICAL CENTRE,32673587,"7,912.65",PRC DELEGATED CO-COMMISSIONING,S5 7QB
Department of Health,NHS Sheffield CCG,6/30/2020,C&M-GMS Global Sum,PRC DELEGATED CO-COMMISSIONING,STANNINGTON MEDICAL CENTRE,32885345,"27,002.78",PRC DELEGATED CO-COMMISSIONING,S6 6BX
Department of Health,NHS Sheffield CCG,6/30/2020,C&M-GMS PCO Other,PRC DELEGATED CO-COMMISSIONING,STANNINGTON MEDICAL CENTRE,32885345,243.40,PRC DELEGATED CO-COMMISSIONING,S6 6BX
Department of Health,NHS Sheffield CCG,6/30/2020,C&M-GMS Prem Notional Rent,PRC DELEGATED CO-COMMISSIONING,STANNINGTON MEDICAL CENTRE,32885345,"2,575.00",PRC DELEGATED CO-COMMISSIONING,S6 6BX
Department of Health,NHS Sheffield CCG,6/30/2020,C&M-GMS Prem Rates,PRC DELEGATED CO-COMMISSIONING,STANNINGTON MEDICAL CENTRE,32885345,"1,495.97",PRC DELEGATED CO-COMMISSIONING,S6 6BX
Department of Health,NHS Sheffield CCG,6/30/2020,C&M-GMS QOF Achievement,PRC DELEGATED CO-COMMISSIONING,STANNINGTON MEDICAL CENTRE,32885345,"14,567.23",PRC DELEGATED CO-COMMISSIONING,S6 6BX
Department of Health,NHS Sheffield CCG,6/30/2020,C&M-GMS QOF Aspiration,PRC DELEGATED CO-COMMISSIONING,STANNINGTON MEDICAL CENTRE,32885345,"9,053.40",PRC DELEGATED CO-COMMISSIONING,S6 6BX
Department of Health,NHS Sheffield CCG,6/30/2020,C&M-GMS Cost of Drugs -Prescribing,LOCAL ENHANCED SERVICES,STONECROFT MEDICAL CENTRE,32885343,343.40,LOCAL ENHANCED SERVICES,S12 2LJ
Department of Health,NHS Sheffield CCG,6/30/2020,C&M-GMS DES Learn Dsblty Hlth Chk,PRC DELEGATED CO-COMMISSIONING,STONECROFT MEDICAL CENTRE,32885343,840.00,PRC DELEGATED CO-COMMISSIONING,S12 2LJ
Department of Health,NHS Sheffield CCG,6/30/2020,C&M-GMS Global Sum,PRC DELEGATED CO-COMMISSIONING,STONECROFT MEDICAL CENTRE,32885343,"33,839.53",PRC DELEGATED CO-COMMISSIONING,S12 2LJ
Department of Health,NHS Sheffield CCG,6/30/2020,C&M-GMS PCN DES Participation,PRC DELEGATED CO-COMMISSIONING,STONECROFT MEDICAL CENTRE,32885343,668.04,PRC DELEGATED CO-COMMISSIONING,S12 2LJ
Department of Health,NHS Sheffield CCG,6/30/2020,C&M-GMS Prem Notional Rent,PRC DELEGATED CO-COMMISSIONING,STONECROFT MEDICAL CENTRE,32885343,"2,808.33",PRC DELEGATED CO-COMMISSIONING,S12 2LJ
Department of Health,NHS Sheffield CCG,6/30/2020,C&M-GMS Prem Rates,PRC DELEGATED CO-COMMISSIONING,STONECROFT MEDICAL CENTRE,32885343,"1,235.00",PRC DELEGATED CO-COMMISSIONING,S12 2LJ
Department of Health,NHS Sheffield CCG,6/30/2020,C&M-GMS Prof Fees Prescribing,PRC DELEGATED CO-COMMISSIONING,STONECROFT MEDICAL CENTRE,32885343,117.46,PRC DELEGATED CO-COMMISSIONING,S12 2LJ
Department of Health,NHS Sheffield CCG,6/30/2020,C&M-GMS QOF Achievement,PRC DELEGATED CO-COMMISSIONING,STONECROFT MEDICAL CENTRE,32885343,"12,356.43",PRC DELEGATED CO-COMMISSIONING,S12 2LJ
Department of Health,NHS Sheffield CCG,6/30/2020,C&M-GMS QOF Aspiration,PRC DELEGATED CO-COMMISSIONING,STONECROFT MEDICAL CENTRE,32885343,"11,623.03",PRC DELEGATED CO-COMMISSIONING,S12 2LJ
Department of Health,NHS Sheffield CCG,6/30/2020,Clinical&Medical-Independent Sector,MENTAL HEALTH CONTRACTS,SUSASH GB LTD T/A EAGLE HOUSE,32706430,"30,091.75",Eagle House - June 20,S11 8NP
Department of Health,NHS Sheffield CCG,6/30/2020,C&M-GMS Global Sum,PRC DELEGATED CO-COMMISSIONING,TOTLEY RISE MEDICAL CENTRE,32885347,"27,189.02",PRC DELEGATED CO-COMMISSIONING,S17 4DQ
Department of Health,NHS Sheffield CCG,6/30/2020,C&M-GMS PCN DES Participation,PRC DELEGATED CO-COMMISSIONING,TOTLEY RISE MEDICAL CENTRE,32885347,531.20,PRC DELEGATED CO-COMMISSIONING,S17 4DQ
Department of Health,NHS Sheffield CCG,6/30/2020,C&M-GMS Prem Notional Rent,PRC DELEGATED CO-COMMISSIONING,TOTLEY RISE MEDICAL CENTRE,32885347,"1,604.17",PRC DELEGATED CO-COMMISSIONING,S17 4DQ
Department of Health,NHS Sheffield CCG,6/30/2020,C&M-GMS Prem Rates,PRC DELEGATED CO-COMMISSIONING,TOTLEY RISE MEDICAL CENTRE,32885347,477.56,PRC DELEGATED CO-COMMISSIONING,S17 4DQ
Department of Health,NHS Sheffield CCG,6/30/2020,C&M-GMS QOF Achievement,PRC DELEGATED CO-COMMISSIONING,TOTLEY RISE MEDICAL CENTRE,32885347,"11,474.32",PRC DELEGATED CO-COMMISSIONING,S17 4DQ
Department of Health,NHS Sheffield CCG,6/30/2020,C&M-GMS QOF Aspiration,PRC DELEGATED CO-COMMISSIONING,TOTLEY RISE MEDICAL CENTRE,32885347,"7,207.04",PRC DELEGATED CO-COMMISSIONING,S17 4DQ
Department of Health,NHS Sheffield CCG,6/30/2020,C&M-GMS Cost of Drugs -Prescribing,LOCAL ENHANCED SERVICES,TRAMWAYS MEDICAL CENTRE,32885349,"1,743.69",LOCAL ENHANCED SERVICES,S6 4JQ
Department of Health,NHS Sheffield CCG,6/30/2020,C&M-GMS DES Learn Dsblty Hlth Chk,PRC DELEGATED CO-COMMISSIONING,TRAMWAYS MEDICAL CENTRE,32885349,"3,640.00",PRC DELEGATED CO-COMMISSIONING,S6 4JQ
Department of Health,NHS Sheffield CCG,6/30/2020,C&M-GMS Global Sum,PRC DELEGATED CO-COMMISSIONING,TRAMWAYS MEDICAL CENTRE,32885349,"63,609.35",PRC DELEGATED CO-COMMISSIONING,S6 4JQ
Department of Health,NHS Sheffield CCG,6/30/2020,C&M-GMS PCN DES Participation,PRC DELEGATED CO-COMMISSIONING,TRAMWAYS MEDICAL CENTRE,32885349,"1,257.39",PRC DELEGATED CO-COMMISSIONING,S6 4JQ
Department of Health,NHS Sheffield CCG,6/30/2020,C&M-GMS PCO Other,PRC DELEGATED CO-COMMISSIONING,TRAMWAYS MEDICAL CENTRE,32885349,530.40,PRC DELEGATED CO-COMMISSIONING,S6 4JQ
Department of Health,NHS Sheffield CCG,6/30/2020,C&M-GMS Prem Cost Rent,PRC DELEGATED CO-COMMISSIONING,TRAMWAYS MEDICAL CENTRE,32885349,"4,012.75",PRC DELEGATED CO-COMMISSIONING,S6 4JQ
Department of Health,NHS Sheffield CCG,6/30/2020,C&M-GMS Prem Rates,PRC DELEGATED CO-COMMISSIONING,TRAMWAYS MEDICAL CENTRE,32885349,"1,310.00",PRC DELEGATED CO-COMMISSIONING,S6 4JQ
Department of Health,NHS Sheffield CCG,6/30/2020,C&M-GMS Prof Fees Prescribing,PRC DELEGATED CO-COMMISSIONING,TRAMWAYS MEDICAL CENTRE,32885349,85.22,PRC DELEGATED CO-COMMISSIONING,S6 4JQ
Department of Health,NHS Sheffield CCG,6/30/2020,C&M-GMS QOF Achievement,PRC DELEGATED CO-COMMISSIONING,TRAMWAYS MEDICAL CENTRE,32885349,"29,756.54",PRC DELEGATED CO-COMMISSIONING,S6 4JQ
Department of Health,NHS Sheffield CCG,6/30/2020,C&M-GMS QOF Aspiration,PRC DELEGATED CO-COMMISSIONING,TRAMWAYS MEDICAL CENTRE,32885349,"17,960.52",PRC DELEGATED CO-COMMISSIONING,S6 4JQ
Department of Health,NHS Sheffield CCG,6/30/2020,Hcare Srv Rec NHS Trust-Contract Baseline,ACUTE COMMISSIONING,UNITED LINCOLNSHIRE HOSPITALS NHS TRUST,32681797,"27,985.26",ACUTE COMMISSIONING,LN2 5QY
Department of Health,NHS Sheffield CCG,6/30/2020,C&M-PMS Contract Value,PRC DELEGATED CO-COMMISSIONING,UNIVERSITY HEALTH SERVICE,32673590,"-19,104.53",PRC DELEGATED CO-COMMISSIONING,S3 7QP
Department of Health,NHS Sheffield CCG,6/30/2020,C&M-PMS GP Statutory Levy,PRC DELEGATED CO-COMMISSIONING,UNIVERSITY HEALTH SERVICE,32673590,"-1,381.91",PRC DELEGATED CO-COMMISSIONING,S3 7QP
Department of Health,NHS Sheffield CCG,6/30/2020,C&M-PMS Out of Hours Opt Outs,PRC DELEGATED CO-COMMISSIONING,UNIVERSITY HEALTH SERVICE,32673590,"-9,518.42",PRC DELEGATED CO-COMMISSIONING,S3 7QP
Department of Health,NHS Sheffield CCG,6/30/2020,C&M-PMS QOF Aspiration,PRC DELEGATED CO-COMMISSIONING,UNIVERSITY HEALTH SERVICE,32673590,"-8,062.82",PRC DELEGATED CO-COMMISSIONING,S3 7QP
Department of Health,NHS Sheffield CCG,6/30/2020,C&M-PMS Voluntary Levy,PRC DELEGATED CO-COMMISSIONING,UNIVERSITY HEALTH SERVICE,32673590,-197.42,PRC DELEGATED CO-COMMISSIONING,S3 7QP
Department of Health,NHS Sheffield CCG,6/30/2020,C&M-PCN DES Support Payment,PRC DELEGATED CO-COMMISSIONING,UNIVERSITY HEALTH SERVICE,32673591,"1,187.06",PRC DELEGATED CO-COMMISSIONING,S3 7QP
Department of Health,NHS Sheffield CCG,6/30/2020,C&M-PMS Contract Value,PRC DELEGATED CO-COMMISSIONING,UNIVERSITY HEALTH SERVICE,32673591,"197,795.00",PRC DELEGATED CO-COMMISSIONING,S3 7QP
Department of Health,NHS Sheffield CCG,6/30/2020,C&M-PMS DES Extended Hours Access,PRC DELEGATED CO-COMMISSIONING,UNIVERSITY HEALTH SERVICE,32673591,"4,929.28",PRC DELEGATED CO-COMMISSIONING,S3 7QP
Department of Health,NHS Sheffield CCG,6/30/2020,C&M-PMS DES Minor Surgery,PRC DELEGATED CO-COMMISSIONING,UNIVERSITY HEALTH SERVICE,32673591,"2,890.00",PRC DELEGATED CO-COMMISSIONING,S3 7QP
Department of Health,NHS Sheffield CCG,6/30/2020,C&M-PMS GP Statutory Levy,PRC DELEGATED CO-COMMISSIONING,UNIVERSITY HEALTH SERVICE,32673591,45.89,PRC DELEGATED CO-COMMISSIONING,S3 7QP
Department of Health,NHS Sheffield CCG,6/30/2020,C&M-PMS Out of Hours Opt Outs,PRC DELEGATED CO-COMMISSIONING,UNIVERSITY HEALTH SERVICE,32673591,920.41,PRC DELEGATED CO-COMMISSIONING,S3 7QP
Department of Health,NHS Sheffield CCG,6/30/2020,C&M-PMS PCN DES Clinical Director,PRC DELEGATED CO-COMMISSIONING,UNIVERSITY HEALTH SERVICE,32673591,"2,454.44",PRC DELEGATED CO-COMMISSIONING,S3 7QP
Department of Health,NHS Sheffield CCG,6/30/2020,C&M-PMS PCN DES PCN support,LOCAL ENHANCED SERVICES,UNIVERSITY HEALTH SERVICE,32673591,"5,099.25",LOCAL ENHANCED SERVICES,S3 7QP
Department of Health,NHS Sheffield CCG,6/30/2020,C&M-PMS PCN DES Participation,PRC DELEGATED CO-COMMISSIONING,UNIVERSITY HEALTH SERVICE,32673591,"3,871.12",PRC DELEGATED CO-COMMISSIONING,S3 7QP
Department of Health,NHS Sheffield CCG,6/30/2020,C&M-PMS Prem Notional Rent,PRC DELEGATED CO-COMMISSIONING,UNIVERSITY HEALTH SERVICE,32673591,"15,833.33",PRC DELEGATED CO-COMMISSIONING,S3 7QP
Department of Health,NHS Sheffield CCG,6/30/2020,C&M-PMS QOF Achievement,PRC DELEGATED CO-COMMISSIONING,UNIVERSITY HEALTH SERVICE,32673591,"74,245.51",PRC DELEGATED CO-COMMISSIONING,S3 7QP
Department of Health,NHS Sheffield CCG,6/30/2020,C&M-PMS QOF Aspiration,PRC DELEGATED CO-COMMISSIONING,UNIVERSITY HEALTH SERVICE,32673591,"22,588.00",PRC DELEGATED CO-COMMISSIONING,S3 7QP
Department of Health,NHS Sheffield CCG,6/30/2020,Hcare Srv Rec Fdtn Trust-Non Contract,NCAS/OATS,UNIVERSITY HOSPITALS BIRMINGHAM NHS FOUNDATION TRUST,32814061,"25,040.11",NCAS/OATS,B16 6TT
Department of Health,NHS Sheffield CCG,6/30/2020,C&M-GMS GP Statutory Levy,PRC DELEGATED CO-COMMISSIONING,UPPERTHORPE MEDICAL CENTRE,32885350,-426.20,PRC DELEGATED CO-COMMISSIONING,S6 3FT
Department of Health,NHS Sheffield CCG,6/30/2020,C&M-GMS QOF Aspiration,PRC DELEGATED CO-COMMISSIONING,UPPERTHORPE MEDICAL CENTRE,32885350,"-18,145.66",PRC DELEGATED CO-COMMISSIONING,S6 3FT
Department of Health,NHS Sheffield CCG,6/30/2020,C&M-GMS Cost of Drugs -Prescribing,LOCAL ENHANCED SERVICES,UPPERTHORPE MEDICAL CENTRE,32885351,"2,351.72",LOCAL ENHANCED SERVICES,S6 3FT
Department of Health,NHS Sheffield CCG,6/30/2020,C&M-GMS Global Sum,PRC DELEGATED CO-COMMISSIONING,UPPERTHORPE MEDICAL CENTRE,32885351,"89,134.49",PRC DELEGATED CO-COMMISSIONING,S6 3FT
Department of Health,NHS Sheffield CCG,6/30/2020,C&M-GMS PCN DES Participation,PRC DELEGATED CO-COMMISSIONING,UPPERTHORPE MEDICAL CENTRE,32885351,"1,742.53",PRC DELEGATED CO-COMMISSIONING,S6 3FT
Department of Health,NHS Sheffield CCG,6/30/2020,C&M-GMS PCO Locum Sickness,PRC DELEGATED CO-COMMISSIONING,UPPERTHORPE MEDICAL CENTRE,32885351,"6,736.74",PRC DELEGATED CO-COMMISSIONING,S6 3FT
Department of Health,NHS Sheffield CCG,6/30/2020,C&M-GMS Prem Actual Rent,PRC DELEGATED CO-COMMISSIONING,UPPERTHORPE MEDICAL CENTRE,32885351,"29,475.00",PRC DELEGATED CO-COMMISSIONING,S6 3FT
Department of Health,NHS Sheffield CCG,6/30/2020,C&M-GMS Prem Notional Rent,PRC DELEGATED CO-COMMISSIONING,UPPERTHORPE MEDICAL CENTRE,32885351,"2,547.83",PRC DELEGATED CO-COMMISSIONING,S6 3FT
Department of Health,NHS Sheffield CCG,6/30/2020,C&M-GMS Prem Rates,PRC DELEGATED CO-COMMISSIONING,UPPERTHORPE MEDICAL CENTRE,32885351,"2,620.00",PRC DELEGATED CO-COMMISSIONING,S6 3FT
Department of Health,NHS Sheffield CCG,6/30/2020,C&M-GMS Prof Fees Prescribing,PRC DELEGATED CO-COMMISSIONING,UPPERTHORPE MEDICAL CENTRE,32885351,181.94,PRC DELEGATED CO-COMMISSIONING,S6 3FT
Department of Health,NHS Sheffield CCG,6/30/2020,C&M-GMS QOF Achievement,PRC DELEGATED CO-COMMISSIONING,UPPERTHORPE MEDICAL CENTRE,32885351,"42,591.23",PRC DELEGATED CO-COMMISSIONING,S6 3FT
Department of Health,NHS Sheffield CCG,6/30/2020,C&M-GMS QOF Aspiration,PRC DELEGATED CO-COMMISSIONING,UPPERTHORPE MEDICAL CENTRE,32885351,"27,901.08",PRC DELEGATED CO-COMMISSIONING,S6 3FT
Department of Health,NHS Sheffield CCG,6/30/2020,C&M-PMS Contract Value,PRC DELEGATED CO-COMMISSIONING,UPWELL STREET SURGERY,32690306,"37,510.96",PRC DELEGATED CO-COMMISSIONING,S4 8AN
Department of Health,NHS Sheffield CCG,6/30/2020,C&M-PMS DES Minor Surgery,PRC DELEGATED CO-COMMISSIONING,UPWELL STREET SURGERY,32690306,610.00,PRC DELEGATED CO-COMMISSIONING,S4 8AN
Department of Health,NHS Sheffield CCG,6/30/2020,C&M-PMS PCN DES Participation,PRC DELEGATED CO-COMMISSIONING,UPWELL STREET SURGERY,32690306,687.31,PRC DELEGATED CO-COMMISSIONING,S4 8AN
Department of Health,NHS Sheffield CCG,6/30/2020,C&M-PMS Prem Notional Rent,PRC DELEGATED CO-COMMISSIONING,UPWELL STREET SURGERY,32690306,"8,137.50",PRC DELEGATED CO-COMMISSIONING,S4 8AN
Department of Health,NHS Sheffield CCG,6/30/2020,C&M-PMS Prem Rates,PRC DELEGATED CO-COMMISSIONING,UPWELL STREET SURGERY,32690306,"1,362.00",PRC DELEGATED CO-COMMISSIONING,S4 8AN
Department of Health,NHS Sheffield CCG,6/30/2020,C&M-PMS QOF Achievement,PRC DELEGATED CO-COMMISSIONING,UPWELL STREET SURGERY,32690306,"17,720.42",PRC DELEGATED CO-COMMISSIONING,S4 8AN
Department of Health,NHS Sheffield CCG,6/30/2020,C&M-PMS QOF Aspiration,PRC DELEGATED CO-COMMISSIONING,UPWELL STREET SURGERY,32690306,"11,759.66",PRC DELEGATED CO-COMMISSIONING,S4 8AN
Department of Health,NHS Sheffield CCG,6/30/2020,Cont Care- Prior Year Payments,CHC ADULT FULLY FUNDED,VALEO LTD,32868260,271.89,https://nww.einvoice-prod.sbs.nhs.uk:8179/invoicepdf/1f172514-4cb3-51df-8a91-37a4cecec195,EN6 1AG
Department of Health,NHS Sheffield CCG,6/30/2020,Cont Care-Learning Disab(<65),CHC ADULT FULLY FUNDED,VALEO LTD,32868260,"29,142.03",CHC ADULT FULLY FUNDED,EN6 1AG
Department of Health,NHS Sheffield CCG,6/30/2020,C&M-PMS GP Statutory Levy,PRC DELEGATED CO-COMMISSIONING,VALLEY MEDICAL CENTRE,32673593,-335.72,PRC DELEGATED CO-COMMISSIONING,S36 1BX
Department of Health,NHS Sheffield CCG,6/30/2020,C&M-PMS Out of Hours Opt Outs,PRC DELEGATED CO-COMMISSIONING,VALLEY MEDICAL CENTRE,32673593,"-3,699.11",PRC DELEGATED CO-COMMISSIONING,S36 1BX
Department of Health,NHS Sheffield CCG,6/30/2020,C&M-PMS QOF Aspiration,PRC DELEGATED CO-COMMISSIONING,VALLEY MEDICAL CENTRE,32673593,"-16,907.82",PRC DELEGATED CO-COMMISSIONING,S36 1BX
Department of Health,NHS Sheffield CCG,6/30/2020,C&M-PMS Voluntary Levy,PRC DELEGATED CO-COMMISSIONING,VALLEY MEDICAL CENTRE,32673593,-47.96,PRC DELEGATED CO-COMMISSIONING,S36 1BX
Department of Health,NHS Sheffield CCG,6/30/2020,C&M-PCN DES Support Payment,PRC DELEGATED CO-COMMISSIONING,VALLEY MEDICAL CENTRE,32673594,976.44,PRC DELEGATED CO-COMMISSIONING,S36 1BX
Department of Health,NHS Sheffield CCG,6/30/2020,C&M-PMS Contract Value,PRC DELEGATED CO-COMMISSIONING,VALLEY MEDICAL CENTRE,32673594,"79,111.98",PRC DELEGATED CO-COMMISSIONING,S36 1BX
Department of Health,NHS Sheffield CCG,6/30/2020,C&M-PMS DES Extended Hours Access,PRC DELEGATED CO-COMMISSIONING,VALLEY MEDICAL CENTRE,32673594,"2,507.53",PRC DELEGATED CO-COMMISSIONING,S36 1BX
Department of Health,NHS Sheffield CCG,6/30/2020,C&M-PMS DES Learn Dsblty Hlth Chk,PRC DELEGATED CO-COMMISSIONING,VALLEY MEDICAL CENTRE,32673594,"5,320.00",PRC DELEGATED CO-COMMISSIONING,S36 1BX
Department of Health,NHS Sheffield CCG,6/30/2020,C&M-PMS DES Minor Surgery,PRC DELEGATED CO-COMMISSIONING,VALLEY MEDICAL CENTRE,32673594,"2,925.00",PRC DELEGATED CO-COMMISSIONING,S36 1BX
Department of Health,NHS Sheffield CCG,6/30/2020,C&M-PMS GP Statutory Levy,PRC DELEGATED CO-COMMISSIONING,VALLEY MEDICAL CENTRE,32673594,0.28,PRC DELEGATED CO-COMMISSIONING,S36 1BX
Department of Health,NHS Sheffield CCG,6/30/2020,C&M-PMS PCN DES Clinical Director,PRC DELEGATED CO-COMMISSIONING,VALLEY MEDICAL CENTRE,32673594,"1,248.58",PRC DELEGATED CO-COMMISSIONING,S36 1BX
Department of Health,NHS Sheffield CCG,6/30/2020,C&M-PMS PCN DES PCN support,LOCAL ENHANCED SERVICES,VALLEY MEDICAL CENTRE,32673594,"2,594.00",LOCAL ENHANCED SERVICES,S36 1BX
Department of Health,NHS Sheffield CCG,6/30/2020,C&M-PMS PCN DES Participation,PRC DELEGATED CO-COMMISSIONING,VALLEY MEDICAL CENTRE,32673594,"1,502.00",PRC DELEGATED CO-COMMISSIONING,S36 1BX
Department of Health,NHS Sheffield CCG,6/30/2020,C&M-PMS Prem Actual Rent,PRC DELEGATED CO-COMMISSIONING,VALLEY MEDICAL CENTRE,32673594,"25,468.75",PRC DELEGATED CO-COMMISSIONING,S36 1BX
Department of Health,NHS Sheffield CCG,6/30/2020,C&M-PMS Prem Rates,PRC DELEGATED CO-COMMISSIONING,VALLEY MEDICAL CENTRE,32673594,"1,784.00",PRC DELEGATED CO-COMMISSIONING,S36 1BX
Department of Health,NHS Sheffield CCG,6/30/2020,C&M-PMS QOF Achievement,PRC DELEGATED CO-COMMISSIONING,VALLEY MEDICAL CENTRE,32673594,"46,147.51",PRC DELEGATED CO-COMMISSIONING,S36 1BX
Department of Health,NHS Sheffield CCG,6/30/2020,C&M-PMS QOF Aspiration,PRC DELEGATED CO-COMMISSIONING,VALLEY MEDICAL CENTRE,32673594,"27,188.09",PRC DELEGATED CO-COMMISSIONING,S36 1BX
Department of Health,NHS Sheffield CCG,6/30/2020,Cont Care-Physical Disab (<65),CHC ADULT FULLY FUNDED,VALORUM CARE LTD,32706518,"65,227.75",CHC SCHEDULE JUNE 2020 - Valorum Care Limited (Mickley Hall),LS19 7RW
Department of Health,NHS Sheffield CCG,6/30/2020,C&M-GMS GP Statutory Levy,PRC DELEGATED CO-COMMISSIONING,WALKLEY HOUSE MEDICAL CENTRE,32885355,-427.46,PRC DELEGATED CO-COMMISSIONING,S6 3TN
Department of Health,NHS Sheffield CCG,6/30/2020,C&M-GMS QOF Aspiration,PRC DELEGATED CO-COMMISSIONING,WALKLEY HOUSE MEDICAL CENTRE,32885355,"-17,205.80",PRC DELEGATED CO-COMMISSIONING,S6 3TN
Department of Health,NHS Sheffield CCG,6/30/2020,C&M-GMS Global Sum,PRC DELEGATED CO-COMMISSIONING,WALKLEY HOUSE MEDICAL CENTRE,32885356,"89,977.59",PRC DELEGATED CO-COMMISSIONING,S6 3TN
Department of Health,NHS Sheffield CCG,6/30/2020,C&M-GMS PCN DES Participation,PRC DELEGATED CO-COMMISSIONING,WALKLEY HOUSE MEDICAL CENTRE,32885356,"1,759.55",PRC DELEGATED CO-COMMISSIONING,S6 3TN
Department of Health,NHS Sheffield CCG,6/30/2020,C&M-GMS Prem Notional Rent,PRC DELEGATED CO-COMMISSIONING,WALKLEY HOUSE MEDICAL CENTRE,32885356,"5,635.50",PRC DELEGATED CO-COMMISSIONING,S6 3TN
Department of Health,NHS Sheffield CCG,6/30/2020,C&M-GMS QOF Achievement,PRC DELEGATED CO-COMMISSIONING,WALKLEY HOUSE MEDICAL CENTRE,32885356,"37,582.05",PRC DELEGATED CO-COMMISSIONING,S6 3TN
Department of Health,NHS Sheffield CCG,6/30/2020,C&M-GMS QOF Aspiration,PRC DELEGATED CO-COMMISSIONING,WALKLEY HOUSE MEDICAL CENTRE,32885356,"25,395.42",PRC DELEGATED CO-COMMISSIONING,S6 3TN
Department of Health,NHS Sheffield CCG,6/30/2020,C&M-GMS GP Statutory Levy,PRC DELEGATED CO-COMMISSIONING,WHITE HOUSE SURGERY SHEFFIELD,32885353,-235.45,PRC DELEGATED CO-COMMISSIONING,S2 1SL
Department of Health,NHS Sheffield CCG,6/30/2020,C&M-GMS QOF Aspiration,PRC DELEGATED CO-COMMISSIONING,WHITE HOUSE SURGERY SHEFFIELD,32885353,"-12,467.04",PRC DELEGATED CO-COMMISSIONING,S2 1SL
Department of Health,NHS Sheffield CCG,6/30/2020,C&M-GMS Cost of Drugs -Prescribing,LOCAL ENHANCED SERVICES,WHITE HOUSE SURGERY SHEFFIELD,32885354,393.54,LOCAL ENHANCED SERVICES,S2 1SL
Department of Health,NHS Sheffield CCG,6/30/2020,C&M-GMS DES Learn Dsblty Hlth Chk,PRC DELEGATED CO-COMMISSIONING,WHITE HOUSE SURGERY SHEFFIELD,32885354,420.00,PRC DELEGATED CO-COMMISSIONING,S2 1SL
Department of Health,NHS Sheffield CCG,6/30/2020,C&M-GMS Global Sum,PRC DELEGATED CO-COMMISSIONING,WHITE HOUSE SURGERY SHEFFIELD,32885354,"54,365.99",PRC DELEGATED CO-COMMISSIONING,S2 1SL
Department of Health,NHS Sheffield CCG,6/30/2020,C&M-GMS PCN DES Participation,PRC DELEGATED CO-COMMISSIONING,WHITE HOUSE SURGERY SHEFFIELD,32885354,"1,055.34",PRC DELEGATED CO-COMMISSIONING,S2 1SL
Department of Health,NHS Sheffield CCG,6/30/2020,C&M-GMS Prem Notional Rent,PRC DELEGATED CO-COMMISSIONING,WHITE HOUSE SURGERY SHEFFIELD,32885354,"9,412.50",PRC DELEGATED CO-COMMISSIONING,S2 1SL
Department of Health,NHS Sheffield CCG,6/30/2020,C&M-GMS Prem Rates,PRC DELEGATED CO-COMMISSIONING,WHITE HOUSE SURGERY SHEFFIELD,32885354,"2,483.00",PRC DELEGATED CO-COMMISSIONING,S2 1SL
Department of Health,NHS Sheffield CCG,6/30/2020,C&M-GMS Prem Water Rates,PRC DELEGATED CO-COMMISSIONING,WHITE HOUSE SURGERY SHEFFIELD,32885354,220.17,PRC DELEGATED CO-COMMISSIONING,S2 1SL
Department of Health,NHS Sheffield CCG,6/30/2020,C&M-GMS Prof Fees Prescribing,PRC DELEGATED CO-COMMISSIONING,WHITE HOUSE SURGERY SHEFFIELD,32885354,112.85,PRC DELEGATED CO-COMMISSIONING,S2 1SL
Department of Health,NHS Sheffield CCG,6/30/2020,C&M-GMS QOF Achievement,PRC DELEGATED CO-COMMISSIONING,WHITE HOUSE SURGERY SHEFFIELD,32885354,"27,231.32",PRC DELEGATED CO-COMMISSIONING,S2 1SL
Department of Health,NHS Sheffield CCG,6/30/2020,C&M-GMS QOF Aspiration,PRC DELEGATED CO-COMMISSIONING,WHITE HOUSE SURGERY SHEFFIELD,32885354,"18,164.42",PRC DELEGATED CO-COMMISSIONING,S2 1SL
Department of Health,NHS Sheffield CCG,6/30/2020,Cont Care-Physical Disab (<65),CHC ADULT FULLY FUNDED,WILLOWBECK HEALTH CARE LTD,32706480,"139,195.94",CHC SCHEDULE JUNE 2020 - Willowbeck Health Care Ltd (Exemplar HC),S4 8AR
Department of Health,NHS Sheffield CCG,6/30/2020,C&M-PMS Contract Value,PRC DELEGATED CO-COMMISSIONING,WINCOBANK MEDICAL CENTRE,32673597,-783.79,PRC DELEGATED CO-COMMISSIONING,S9 1DJ
Department of Health,NHS Sheffield CCG,6/30/2020,C&M-PMS GP Statutory Levy,PRC DELEGATED CO-COMMISSIONING,WINCOBANK MEDICAL CENTRE,32673597,-269.33,PRC DELEGATED CO-COMMISSIONING,S9 1DJ
Department of Health,NHS Sheffield CCG,6/30/2020,C&M-PMS Out of Hours Opt Outs,PRC DELEGATED CO-COMMISSIONING,WINCOBANK MEDICAL CENTRE,32673597,"-2,929.25",PRC DELEGATED CO-COMMISSIONING,S9 1DJ
Department of Health,NHS Sheffield CCG,6/30/2020,C&M-PMS QOF Aspiration,PRC DELEGATED CO-COMMISSIONING,WINCOBANK MEDICAL CENTRE,32673597,"-12,566.72",PRC DELEGATED CO-COMMISSIONING,S9 1DJ
Department of Health,NHS Sheffield CCG,6/30/2020,C&M-PMS Voluntary Levy,PRC DELEGATED CO-COMMISSIONING,WINCOBANK MEDICAL CENTRE,32673597,-38.48,PRC DELEGATED CO-COMMISSIONING,S9 1DJ
Department of Health,NHS Sheffield CCG,6/30/2020,C&M-PMS Contract Value,PRC DELEGATED CO-COMMISSIONING,WINCOBANK MEDICAL CENTRE,32673598,"62,603.83",PRC DELEGATED CO-COMMISSIONING,S9 1DJ
Department of Health,NHS Sheffield CCG,6/30/2020,C&M-PMS DES Learn Dsblty Hlth Chk,PRC DELEGATED CO-COMMISSIONING,WINCOBANK MEDICAL CENTRE,32673598,560.00,PRC DELEGATED CO-COMMISSIONING,S9 1DJ
Department of Health,NHS Sheffield CCG,6/30/2020,C&M-PMS DES Minor Surgery,PRC DELEGATED CO-COMMISSIONING,WINCOBANK MEDICAL CENTRE,32673598,"1,135.00",PRC DELEGATED CO-COMMISSIONING,S9 1DJ
Department of Health,NHS Sheffield CCG,6/30/2020,C&M-PMS GP Statutory Levy,PRC DELEGATED CO-COMMISSIONING,WINCOBANK MEDICAL CENTRE,32673598,0.46,PRC DELEGATED CO-COMMISSIONING,S9 1DJ
Department of Health,NHS Sheffield CCG,6/30/2020,C&M-PMS Out of Hours Opt Outs,PRC DELEGATED CO-COMMISSIONING,WINCOBANK MEDICAL CENTRE,32673598,36.81,PRC DELEGATED CO-COMMISSIONING,S9 1DJ
Department of Health,NHS Sheffield CCG,6/30/2020,C&M-PMS PCN DES Participation,PRC DELEGATED CO-COMMISSIONING,WINCOBANK MEDICAL CENTRE,32673598,"1,191.31",PRC DELEGATED CO-COMMISSIONING,S9 1DJ
Department of Health,NHS Sheffield CCG,6/30/2020,C&M-PMS Prem Healthcentre Rent,PRC DELEGATED CO-COMMISSIONING,WINCOBANK MEDICAL CENTRE,32673598,"45,121.79",PRC DELEGATED CO-COMMISSIONING,S9 1DJ
Department of Health,NHS Sheffield CCG,6/30/2020,C&M-PMS QOF Achievement,PRC DELEGATED CO-COMMISSIONING,WINCOBANK MEDICAL CENTRE,32673598,"21,866.63",PRC DELEGATED CO-COMMISSIONING,S9 1DJ
Department of Health,NHS Sheffield CCG,6/30/2020,C&M-PMS QOF Aspiration,PRC DELEGATED CO-COMMISSIONING,WINCOBANK MEDICAL CENTRE,32673598,"17,917.32",PRC DELEGATED CO-COMMISSIONING,S9 1DJ
Department of Health,NHS Sheffield CCG,6/30/2020,C&M-PMS Contract Value,PRC DELEGATED CO-COMMISSIONING,WOODHOUSE HEALTH CENTRE,32673595,"-3,334.06",PRC DELEGATED CO-COMMISSIONING,S13 7LY
Department of Health,NHS Sheffield CCG,6/30/2020,C&M-PMS GP Statutory Levy,PRC DELEGATED CO-COMMISSIONING,WOODHOUSE HEALTH CENTRE,32673595,-427.39,PRC DELEGATED CO-COMMISSIONING,S13 7LY
Department of Health,NHS Sheffield CCG,6/30/2020,C&M-PMS Out of Hours Opt Outs,PRC DELEGATED CO-COMMISSIONING,WOODHOUSE HEALTH CENTRE,32673595,"-4,705.92",PRC DELEGATED CO-COMMISSIONING,S13 7LY
Department of Health,NHS Sheffield CCG,6/30/2020,C&M-PMS QOF Aspiration,PRC DELEGATED CO-COMMISSIONING,WOODHOUSE HEALTH CENTRE,32673595,"-27,824.60",PRC DELEGATED CO-COMMISSIONING,S13 7LY
Department of Health,NHS Sheffield CCG,6/30/2020,C&M-PMS Voluntary Levy,PRC DELEGATED CO-COMMISSIONING,WOODHOUSE HEALTH CENTRE,32673595,-61.06,PRC DELEGATED CO-COMMISSIONING,S13 7LY
Department of Health,NHS Sheffield CCG,6/30/2020,C&M-PMS Contract Value,PRC DELEGATED CO-COMMISSIONING,WOODHOUSE HEALTH CENTRE,32673596,"100,836.67",PRC DELEGATED CO-COMMISSIONING,S13 7LY
Department of Health,NHS Sheffield CCG,6/30/2020,C&M-PMS DES Learn Dsblty Hlth Chk,PRC DELEGATED CO-COMMISSIONING,WOODHOUSE HEALTH CENTRE,32673596,"13,020.00",PRC DELEGATED CO-COMMISSIONING,S13 7LY
Department of Health,NHS Sheffield CCG,6/30/2020,C&M-PMS DES Minor Surgery,PRC DELEGATED CO-COMMISSIONING,WOODHOUSE HEALTH CENTRE,32673596,"2,440.00",PRC DELEGATED CO-COMMISSIONING,S13 7LY
Department of Health,NHS Sheffield CCG,6/30/2020,C&M-PMS GP Statutory Levy,PRC DELEGATED CO-COMMISSIONING,WOODHOUSE HEALTH CENTRE,32673596,2.70,PRC DELEGATED CO-COMMISSIONING,S13 7LY
Department of Health,NHS Sheffield CCG,6/30/2020,C&M-PMS Out of Hours Opt Outs,PRC DELEGATED CO-COMMISSIONING,WOODHOUSE HEALTH CENTRE,32673596,155.95,PRC DELEGATED CO-COMMISSIONING,S13 7LY
Department of Health,NHS Sheffield CCG,6/30/2020,C&M-PMS PCN DES Participation,PRC DELEGATED CO-COMMISSIONING,WOODHOUSE HEALTH CENTRE,32673596,"1,913.91",PRC DELEGATED CO-COMMISSIONING,S13 7LY
Department of Health,NHS Sheffield CCG,6/30/2020,C&M-PMS PCO Other,PRC DELEGATED CO-COMMISSIONING,WOODHOUSE HEALTH CENTRE,32673596,751.30,PRC DELEGATED CO-COMMISSIONING,S13 7LY
Department of Health,NHS Sheffield CCG,6/30/2020,C&M-PMS Prem Notional Rent,PRC DELEGATED CO-COMMISSIONING,WOODHOUSE HEALTH CENTRE,32673596,"6,338.58",PRC DELEGATED CO-COMMISSIONING,S13 7LY
Department of Health,NHS Sheffield CCG,6/30/2020,C&M-PMS QOF Achievement,PRC DELEGATED CO-COMMISSIONING,WOODHOUSE HEALTH CENTRE,32673596,"60,776.35",PRC DELEGATED CO-COMMISSIONING,S13 7LY
Department of Health,NHS Sheffield CCG,6/30/2020,C&M-PMS QOF Aspiration,PRC DELEGATED CO-COMMISSIONING,WOODHOUSE HEALTH CENTRE,32673596,"40,193.30",PRC DELEGATED CO-COMMISSIONING,S13 7LY
Department of Health,NHS Sheffield CCG,6/30/2020,C&M-PMS GP Statutory Levy,PRC DELEGATED CO-COMMISSIONING,WOODSEATS MEDICAL CENTRE,32674352,-371.32,PRC DELEGATED CO-COMMISSIONING,S8 0SH
Department of Health,NHS Sheffield CCG,6/30/2020,C&M-PMS Out of Hours Opt Outs,PRC DELEGATED CO-COMMISSIONING,WOODSEATS MEDICAL CENTRE,32674352,"-3,805.79",PRC DELEGATED CO-COMMISSIONING,S8 0SH
Department of Health,NHS Sheffield CCG,6/30/2020,C&M-PMS QOF Aspiration,PRC DELEGATED CO-COMMISSIONING,WOODSEATS MEDICAL CENTRE,32674352,"-16,485.28",PRC DELEGATED CO-COMMISSIONING,S8 0SH
Department of Health,NHS Sheffield CCG,6/30/2020,C&M-PMS Voluntary Levy,PRC DELEGATED CO-COMMISSIONING,WOODSEATS MEDICAL CENTRE,32674352,-52.58,PRC DELEGATED CO-COMMISSIONING,S8 0SH
Department of Health,NHS Sheffield CCG,6/30/2020,C&M-PMS Contract Value,PRC DELEGATED CO-COMMISSIONING,WOODSEATS MEDICAL CENTRE,32674353,"80,907.84",PRC DELEGATED CO-COMMISSIONING,S8 0SH
Department of Health,NHS Sheffield CCG,6/30/2020,C&M-PMS DES Learn Dsblty Hlth Chk,PRC DELEGATED CO-COMMISSIONING,WOODSEATS MEDICAL CENTRE,32674353,"1,540.00",PRC DELEGATED CO-COMMISSIONING,S8 0SH
Department of Health,NHS Sheffield CCG,6/30/2020,C&M-PMS DES Minor Surgery,PRC DELEGATED CO-COMMISSIONING,WOODSEATS MEDICAL CENTRE,32674353,"5,140.00",PRC DELEGATED CO-COMMISSIONING,S8 0SH
Department of Health,NHS Sheffield CCG,6/30/2020,C&M-PMS PCN DES Participation,PRC DELEGATED CO-COMMISSIONING,WOODSEATS MEDICAL CENTRE,32674353,"1,504.80",PRC DELEGATED CO-COMMISSIONING,S8 0SH
Department of Health,NHS Sheffield CCG,6/30/2020,C&M-PMS PCO Locum Sickness,PRC DELEGATED CO-COMMISSIONING,WOODSEATS MEDICAL CENTRE,32674353,"13,371.15",PRC DELEGATED CO-COMMISSIONING,S8 0SH
Department of Health,NHS Sheffield CCG,6/30/2020,C&M-PMS PCO Other,PRC DELEGATED CO-COMMISSIONING,WOODSEATS MEDICAL CENTRE,32674353,645.70,PRC DELEGATED CO-COMMISSIONING,S8 0SH
Department of Health,NHS Sheffield CCG,6/30/2020,C&M-PMS Prem Notional Rent,PRC DELEGATED CO-COMMISSIONING,WOODSEATS MEDICAL CENTRE,32674353,"11,666.67",PRC DELEGATED CO-COMMISSIONING,S8 0SH
Department of Health,NHS Sheffield CCG,6/30/2020,C&M-PMS Prem Rates,PRC DELEGATED CO-COMMISSIONING,WOODSEATS MEDICAL CENTRE,32674353,"3,149.00",PRC DELEGATED CO-COMMISSIONING,S8 0SH
Department of Health,NHS Sheffield CCG,6/30/2020,C&M-PMS Prem Water Rates,PRC DELEGATED CO-COMMISSIONING,WOODSEATS MEDICAL CENTRE,32674353,717.92,PRC DELEGATED CO-COMMISSIONING,S8 0SH
Department of Health,NHS Sheffield CCG,6/30/2020,C&M-PMS QOF Achievement,PRC DELEGATED CO-COMMISSIONING,WOODSEATS MEDICAL CENTRE,32674353,"40,968.06",PRC DELEGATED CO-COMMISSIONING,S8 0SH
Department of Health,NHS Sheffield CCG,6/30/2020,C&M-PMS QOF Aspiration,PRC DELEGATED CO-COMMISSIONING,WOODSEATS MEDICAL CENTRE,32674353,"25,766.98",PRC DELEGATED CO-COMMISSIONING,S8 0SH
Department of Health,NHS Sheffield CCG,6/30/2020,Hcare Srv Rec Fdtn Trust-Non Contract,NCAS/OATS,YORK TEACHING HOSPITAL NHS FOUNDATION TRUST,32681791,"29,013.29",NCAS/OATS,YO30 4RY
Department of Health,NHS Sheffield CCG,6/30/2020,"Books, Journals & Subscr",COUNSELLING SERVICES,YORKSHIRE & HUMBER AHSN LTD,32605890,"48,994.80",https://nww.einvoice-prod.sbs.nhs.uk:8179/invoicepdf/44f16aa8-7b38-5f7f-98b5-83ddf7810b3f,WF4 3BA
Department of Health,NHS Sheffield CCG,6/30/2020,Hcare Srv Rec NHS Trust-Contract Baseline,AMBULANCE SERVICES,YORKSHIRE AMBULANCE SERVICE NHS TRUST,32681792,"2,487,179.62",AMBULANCE SERVICES,WF2 0XQ
